Workbook

Sheet Programm
I1: =$BN$2 -> Berechnung von Tellerfedern | AD1: =IF($AT$4<1.25,$BN$3,IF($AT$4=$AT$5,$BN$108,$BN$94)) -> Gruppe 1 | AQ1: =BN58 -> Sprache | AS1: De | AT1: =$J$14*$AT$51 -> 8 | AU1: E | AV1: =$AS$99 -> 206000 | AW1: mue | AX1: 0.3 | AY1: C1N | AZ1: =(0.25*$AT$6/$AT$4-1+0.75)*(5/8*$AT$6/$AT$4-1+3/8) -> 0.1085069444 | BB1: Lebensdauer nach diskreter Wöhlerlinie | BF1: Lebensdauer nach genäherter Wöhlerlinie | BN1: Sprachblock | BO1: Deutsch | BP1: Englisch | BQ1: Französisch
I2: =$BN$4 -> Teile/Zeichn. Nr.: | O2: 17 0001 | Z2: =$BN$174 -> Revision | AQ2: 1 | AS2: Di | AT2: =$J$15*$AT$51 -> 3.2 | AU2: Delta | AV2: =$AT$1/$AT$2 -> 2.5 | AW2: ho/t | AX2: =$AV$6/$AT$5 -> 0.8333333333 | AY2: C1 | AZ2: =1/$AZ$1 -> 9.216 | BA2: Maximale Oberspannung | BB2: =AND(($AT$5<=0.6),($AT$5>0))*1300+AND(($AT$5<=1.25),($AT$5>0.6))*1300+AND(($AT$5<=3),($AT$5>1.25))*1290+AND(($AT$5<=6),($AT$5>3))*1278+AND(($AT$5<=10),($AT$5>6))*1264+AND(($AT$5<=16),($AT$5>10))*1248 -> 1300 | BC2: NE2 | BD2: =($BB$6-$BB$4)/$BB$3 -> 6.922781932 | BE2: Maximale Oberspannung | BF2: =$AY$25+$AY$26*$AT$5+$AY$27*$AT$5*$AT$5 -> 1301.348286 | BG2: NE2 | BH2: =($BB$6-$BF$4)/$BF$3 -> 6.921651151 | BN2: =IF($AQ$2=1,BO2,IF($AQ$2=2,BP2,IF($AQ$2=3,BQ2,"Wrong language selection"))) -> Berechnung von Tellerfedern | BO2: Berechnung von Tellerfedern | BP2: Disc Springs, Data Sheet | BQ2: Calcul des Rondelles Ressorts
B3: K-Version 10.03.22 | I3: =$BN$5 -> Projekt: | Z3: =$BN$175 -> Kunde | AQ3: 1 = Deutsch | AU3: K1 | AV3: =(($AV$2-1)/$AV$2)^2/(($AV$2+1)/($AV$2-1)-2/LN($AV$2))/$AV$5 -> 0.7607991034 | AW3: K2 | AX3: =6/$AV$5*((($AV$2-1)/LN($AV$2)-1)/LN($AV$2)) -> 1.327796071 | AY3: C2 | AZ3: =AZ2*(5/32*($AT$6/$AT$4-1)^2+1) -> 10.216 | BA3: M | BB3: =AND(($AT$5<=0.6),($AT$5>0))*-161.41+AND(($AT$5<=1.25),($AT$5>0.6))*-159.87+AND(($AT$5<=3),($AT$5>1.25))*-154.49+AND(($AT$5<=6),($AT$5>3))*-146.04+AND(($AT$5<=10),($AT$5>6))*-133.74+AND(($AT$5<=16),($AT$5>10))*-115.29 -> -161.41 | BC3: NE3 | BD3: =($BB$7-$BB$4)/$BB$3 -> 6.770836748 | BE3: M | BF3: =$BB$25+$BB$26*$AT$5+$BB$27*$AT$5*$AT$5 -> -161.5882253 | BG3: NE3 | BH3: =($BB$7-$BF$4)/$BF$3 -> 6.769873556 | BN3: Gruppe 1 | BO3: Gruppe 1 | BP3: group 1 | BQ3: Groupe 1
B4: =NOW() -> 2022-03-10T14:18:38.430 | I4: Mubea Tellerfedern GmbH, Postfach 120, 57564 Daaden | AQ4: 2 = Englisch | AS4: t | AT4: =$J$16*$AT$51 -> 0.3 | AU4: K_eins | AV4: 1 | AW4: K3 | AX4: =3/$AV$5*($AV$2-1)/LN($AV$2) -> 1.563253275 | AY4: E_20° | AZ4: =AZ99 -> 206000 | BA4: B | BB4: =AND(($AT$5<=0.6),($AT$5>0))*1907.05+AND(($AT$5<=1.25),($AT$5>0.6))*1886.37+AND(($AT$5<=3),($AT$5>1.25))*1825.46+AND(($AT$5<=6),($AT$5>3))*1725.19+AND(($AT$5<=10),($AT$5>6))*1585.7+AND(($AT$5<=16),($AT$5>10))*1376.47 -> 1907.05 | BC4: N2 | BD4: =10^BD2 -> 8371088.475 | BE4: B | BF4: =$BE$25+$BE$26*$AT$5+$BE$27*$AT$5*$AT$5 -> 1908.101094 | BG4: N2 | BH4: =10^BH2 -> 8349320.863 | BN4: Teile/Zeichn. Nr.: | BO4: Teile/Zeichn. Nr.: | BP4: part./drawing no.: | BQ4: Pièce/ Plan n°:
I5: =$BN$107 -> Tel.: Vertrieb: +49 2743/806- 3588, -3593, -3625; Entwicklung: +49 2743/806-3510 | AQ5: 3 = France | AS5: t' | AT5: =$J$17*$AT$51 -> 0.3 | AU5: pi | AV5: =4*ATAN(1) -> 3.141592654 | AW5: 4e/(1-mue**2) | AX5: =4*$AV$1/(1-$AX$1*$AX$1) -> 905494.5055 | AY5: E_rechn | AZ5: =$AS$99 -> 206000 | BA5: Korrektur für Säule | BB5: =AND($J$23=1,$B$23<=10)*1+AND($J$23=1,$B$23>10)*(0.004*$B$23+0.96)+($J$23<>1)*(0.007143*$B$23+1.092857) -> 1 | BC5: N3 | BD5: =10^BD3 -> 5899792.639 | BG5: N3 | BH5: =10^BH3 -> 5886722.4 | BN5: Projekt: | BO5: Projekt: | BP5: project: | BQ5: Projet:
W6: =IF(OR($J$23>1,$B$23>1),BN7,BN6) -> Kennlinie der Tellerfeder | AQ6: =BN150 -> Einheiten | AS6: L0 | AT6: =$J$18*$AT$51 -> 0.55 | AU6: h0 | AV6: =AT6-AT5 -> 0.25 | BA6: Schwellspannung 2 | BB6: =$BB$5*($BB$9-$BB$8/SQRT(3)) -> 789.6437683 | BC6: N | BD6: =MIN(BD4:BD5) -> 5899792.639 | BG6: N | BH6: =MIN(BH4:BH5) -> 5886722.4 | BN6: Kennlinie der Tellerfeder | BO6: Kennlinie der Tellerfeder | BP6: characteristic of spring | BQ6: Caractéristique de la rondelle ressort
AQ7: 1 | BA7: Schwellspannung 3 | BB7: =$BB$5*($BB$11-$BB$10/SQRT(3)) -> 814.1692406 | BN7: Kennlinie der Federsäule | BO7: Kennlinie der Federsäule | BP7: characteristic of stack | BQ7: Caractéristique de l'empilage
T8: =BN56 -> Feder- | AQ8: 1 = mm N s | AT8: Näherung der Blockspannung | AX8: Reduktion | BA8: Sigma II 1 | BB8: =MIN(INDEX($V$28:$X$34,$AQ$41+1,1),INDEX($V$28:$X$34,$AQ$42+1,1))*$BB$12 -> 205.4506707 | BC8: s1/ho | BD8: =IF($AQ$41=0,$E$28,IF($AQ$41=1,$E$29,IF($AQ$41=2,$E$30,IF($AQ$41=3,$E$31,IF($AQ$41=4,$E$32,IF($AQ$41=5,$E$33,IF(OR($AQ$41="c",$AQ$41="C"),$E$34))))))) -> 0.248 | BN8: Tellerfederabmessung | BO8: Tellerfederabmessung | BP8: dimensions | BQ8: Dimensions
T9: =BN57 -> kraft | AQ9: 2 = in lbf s | AS9: de/di | AT9: Sigma_1_max | AU9: Sigma_1_näher | AV9: Fehler | AX9: t/t' | AY9: =$AT$5/$AT$4 -> 1 | BA9: Sigma II 2 | BB9: =MAX(INDEX(V28:X34,AQ41+1,1),INDEX(V28:X34,AQ42+1,1))*BB12 -> 908.2607684 | BC9: s2/ho | BD9: =IF($AQ$42=0,$E$28,IF($AQ$42=1,$E$29,IF($AQ$42=2,$E$30,IF($AQ$42=3,$E$31,IF($AQ$42=4,$E$32,IF($AQ$42=5,$E$33,IF(OR($AQ$42="c",$AQ$42="C"),$E$34))))))) -> 0.748 | BN9: Außendurchm.: | BO9: Außendurchm.: | BP9: outer diam.: | BQ9: Diam. extérieur:
T10: =BN96 -> in N | AQ10: =$BN$59 -> Diagramm- | AS10: 1.5 | AT10: -2600 | AU10: =$AT$15+$AT$16*AS10+$AT$17*AS10*AS10 -> -2599.998741 | AV10: =(AT10-AU10)^2 -> 1.585337781e-06 | AX10: c1 | AY10: =($AY$9^2)/(($AT$6/(4*$AT$4)-$AY$9+0.75)*(5*$AT$6/8/$AT$4-$AY$9+3/8)) -> 9.216 | BA10: Sigma III 1 | BB10: =MIN(INDEX($Y$28:$AA$34,$AQ$41+1,1),INDEX($Y$28:$AA$34,$AQ$42+1,1))*$BB$12 -> 397.9649011 | BN10: Innendurchm.: | BO10: Innendurchm.: | BP10: inner diam.: | BQ10: Diam. intérieur:
AQ11: =$BN$60 -> steuerung | AS11: 2 | AT11: -3400 | AU11: =$AT$15+$AT$16*AS11+$AT$17*AS11*AS11 -> -3400.001331 | AV11: =(AT11-AU11)^2 -> 1.770913263e-06 | AX11: c2 | AY11: =(5/32*($AT$6/$AT$4-1)^2+1)*$AY$10/($AY$9^3) -> 10.216 | BA11: Sigma III 2 | BB11: =MAX(INDEX(Y28:AA34,AQ41+1,1),INDEX(Y28:AA34,AQ42+1,1))*BB12 -> 1043.934383 | BN11: Blechdicke: | BO11: Blechdicke: | BP11: thickness: | BQ11: Epaisseur:
AQ12: =$BN$61 -> Federweg | AS12: 2.5 | AT12: -3600 | AU12: =$AT$15+$AT$16*AS12+$AT$17*AS12*AS12 -> -3600.001378 | AV12: =(AT12-AU12)^2 -> 1.899829018e-06 | AX12: eta | AY12: =SQRT(-$AY$10/2+SQRT(($AY$10/2)^2+$AY$11)) -> 1 | BA12: Kor. f. T. u. Einh. | BB12: =$AZ$4/$AZ$5/$AT$56 -> 1 | BN12: Kennwerte | BO12: Kennwerte | BP12: data | BQ12: Données
B13: =BN8 -> Tellerfederabmessung | O13: =$BN$193 -> DIN-Toleranzen | AQ13: =$BN$62 -> von | AX13: H | AY13: =($AT$6-$AT$5)*$AY$12 -> 0.25 | BA13: Dauer ganzzahlig | BB13: =IF($BD$6<10000,INT($BD$6/100)*100,IF($BD$6<100000,INT($BD$6/1000)*1000,IF($BD$6<1000000,INT($BD$6/10000)*10000,IF($BD$6<2000000,INT($BD$6/100000)*100000,BN71)))) -> größer als 2 Mio. | BE13: Dauer ganzzahlig | BF13: =IF($BH$6<10000,INT($BH$6/100)*100,IF($BH$6<100000,INT($BH$6/1000)*1000,IF($BH$6<1000000,INT($BH$6/10000)*10000,IF($BH$6<2000000,INT($BH$6/100000)*100000,BN71)))) -> größer als 2 Mio. | BN13: Federsäule: | BO13: Federsäule: | BP13: stack: | BQ13: Empilage:
B14: =BN9 -> Außendurchm.: | H14: De= | J14: 8 | M14: =$AT$53 -> mm | O14: =$AS$47/$AT$51 -> 7.85 | R14: =$J$14 -> 8 | U14: =$AT$53 -> mm | AV14: =SUM(AV10:AV13) -> 5.256080062e-06 | BA14: Dauer gerundet | BB14: =IF($BD$6<10000,ROUND($BD$6,-1),IF($BD$6<100000,ROUND($BD$6,-2),IF($BD$6<1000000,ROUND($BD$6,-3),IF($BD$6<2000000,ROUND($BD$6,-4),BN71)))) -> größer als 2 Mio. | BE14: Dauer gerundet | BF14: =IF($BH$6<10000,ROUND($BH$6,-1),IF($BH$6<100000,ROUND($BH$6,-2),IF($BH$6<1000000,ROUND($BH$6,-3),IF($BH$6<2000000,ROUND($BH$6,-4),BN71)))) -> größer als 2 Mio. | BN14: Federn zu | BO14: Federn zu | BP14: springs as | BQ14: Rond. Ressort
B15: =BN10 -> Innendurchm.: | H15: Di= | J15: 3.2 | M15: =$AT$53 -> mm | O15: =J15 -> 3.2 | R15: =$AS$46/$AT$51 -> 3.32 | U15: =$AT$53 -> mm | AQ15: =BN63 -> bis | AS15: a0 | AT15: 3400.024282 | BN15: Feder | BO15: Feder | BP15: spring | BQ15: R. Res.
B16: =BN11 -> Blechdicke: | H16: t= | J16: 0.3 | M16: =$AT$53 -> mm | O16: =IF(AND(AT99<>13,AT99<>14),IF(J16=J17,$AR$142/$AT$51,""),"") -> 0.24 | R16: =IF(AND(AT99<>13,AT99<>14),IF(J16=J17,$AS$142/$AT$51,""),"") -> 0.32 | U16: =IF(O16<>"",$AT$53,"") -> mm | AS16: a1 | AT16: -5800.022976 | AU16: x | BB16: Näherung der Wöhlerlinie | BN16: Federn | BO16: Federn | BP16: springs | BQ16: R. Res.
B17: =BN73 -> red. Blechdicke: | H17: t'= | J17: =J16 -> 0.3 | M17: =$AT$53 -> mm | O17: =IF(AND(AT99<>13,AT99<>14),IF(J16<>J17,$AR$142/$AT$51,""),"") ->  | R17: =IF(AND(AT99<>13,AT99<>14),IF(J16<>J17,$AS$142/$AT$51,""),"") ->  | U17: =IF(O17<>"",$AT$53,"") ->  | AS17: a2 | AT17: 1200.005085 | AU17: x*x | AX17: t | AY17: Sigma_max | AZ17: Sigma_näher | BA17: Fehler | BB17: M | BC17: M_näher | BD17: Fehler | BE17: B | BF17: B_näher | BG17: Fehler | BN17: Paketen | BO17: Paketen | BP17: packets | BQ17: Paquets
B18: =BN72 -> Federhöhe: | H18: l0= | J18: 0.55 | M18: =$AT$53 -> mm | O18: =$AR$143/$AT$51 -> 0.5 | R18: =$AS$143/$AT$51 -> 0.65 | U18: =$AT$53 -> mm | AX18: 0.3 | AY18: 1300 | AZ18: =$AY$25+$AY$26*AX18+$AY$27*AX18*AX18 -> 1301.348286 | BA18: =(AY18-AZ18)^2 -> 1.817876413 | BB18: -161.41 | BC18: =$BB$25+$BB$26*AX18+$BB$27*AX18*AX18 -> -161.5882253 | BD18: =(BB18-BC18)^2 -> 0.0317642412 | BE18: 1907.05 | BF18: =$BE$25+$BE$26*AX18+$BE$27*AX18*AX18 -> 1908.101094 | BG18: =(BE18-BF18)^2 -> 1.104797983 | BN18: Paket | BO18: Paket | BP18: packet | BQ18: Paquet
B19: =BN12 -> Kennwerte | AS19: Kürzel: | AT19: Telefon. | AU19: Entwickler: | AV19: Index | AX19: 0.925 | AY19: 1300 | AZ19: 1297.636691 | BA19: 5.585228213 | BB19: -159.87 | BC19: -159.2962475 | BD19: 0.3291919647 | BE19: 1886.37 | BF19: 1881.080038 | BG19: 27.98369894 | BN19: fach geschichtet | BO19: fach geschichtet | BP19: times stacked | BQ19: RR en parallèle
B20: h0= | D20: =$J$18-$J$16 -> 0.25 | G20: h0/t= | J20: =$D$20/$J$16 -> 0.8333333333 | M20: De/Di= | R20: =$J$14/$J$15 -> 2.5 | AS20: - | AT20: 3510 | AU20: Weib | AV20: 1 | AX20: 2.125 | AY20: 1290 | AZ20: 1290.827181 | BA20: 0.6842279053 | BB20: -154.49 | BC20: -154.9005878 | BD20: 0.1685823124 | BE20: 1825.46 | BF20: 1829.463389 | BG20: 16.02712505 | BN20: fach wechselsinnig | BO20: fach wechselsinnig | BP20: times against e.o. | BQ20: En opposition
B21: h0'= | D21: =$J$18-$J$17 -> 0.25 | G21: h0'/t'= | J21: =$D$21/$J$17 -> 0.8333333333 | M21: (De-Di)/2= | R21: =($J$14-$J$15)/2 -> 2.4 | U21: =$AT$53 -> mm | AS21: KDD | AT21: 3034 | AU21: Kuras | AV21: 2 | AX21: 4.5 | AY21: 1278 | AZ21: 1278.578072 | BA21: 0.3341674029 | BB21: -146.04 | BC21: -146.2199878 | BD21: 0.03239561026 | BE21: 1725.19 | BF21: 1728.328107 | BG21: 9.847715406 | BN21: Lastpunkte | BO21: Lastpunkte | BP21: load points | BQ21: Points de charge
B22: =IF($J$23*$B$23>1,$BN$13," ") ->  | J22: =IF($J$23=1," ",$B$23*$J$23) ->  | N22: =IF($J$23=1," ",IF($J$22>1,BN14," ")) ->  | AS22: TRR | AT22: 3109 | AU22: Treude | AV22: 3 | AX22: 8 | AY22: 1264 | AZ22: 1263.500827 | BA22: 0.2491741642 | BB22: -133.74 | BC22: -133.4738855 | BD22: 0.07081691711 | BE22: 1585.7 | BF22: 1581.763325 | BG22: 15.49740884 | BN22: der Einzelfeder | BO22: der Einzelfeder | BP22: of one spring | BQ22: d'une rondelle ressort
B23: 1 | F23: =IF($J$23=1,IF($B$23=1,BN15,BN16),IF($B$23>1,BN17,BN18)) -> Feder | J23: 1 | N23: =IF($J$23*$B$23=1," ",IF($J$22>1,IF($J$23>1,BN19,BN20)," ")) ->  | W23: =BN55 -> Federweg in mm | AS23: GM | AT23: 3013 | AU23: Gaumann | AV23: 4 | AX23: 13 | AY23: 1248 | AZ23: 1248.108923 | BA23: 0.01186418035 | BB23: -115.29 | BC23: -115.3609897 | BD23: 0.005039537618 | BE23: 1376.47 | BF23: 1377.504053 | BG23: 1.069265873 | BN23: Last- | BO23: Last- | BP23: load- | BQ23: Point
B24: =$BN$21 -> Lastpunkte | S24: =$BN$29 -> rechnerische | AE24: =$BN$21 -> Lastpunkte | AQ24: =BN95 -> Berechnungen | AS24: SV | AT24: 3361 | AU24: Schütz | AV24: 5 | BA24: =SUM(BA18:BA23) -> 8.682538279 | BD24: =SUM(BD18:BD23) -> 0.6377905834 | BG24: =SUM(BG18:BG23) -> 71.5300121 | BN24: punkt | BO24: punkt | BP24: point | BQ24: charge
B25: =$BN$22 -> der Einzelfeder | S25: =$BN$30 -> Randspannungen | AE25: =IF(($J$23*$B$23)>1,$BN$32,$BN$33) -> der Einzelfeder | AQ25: =BN66 -> Weg | AS25: HL | AT25: 3098 | AU25: Heuel | AV25: 6 | AX25: a0 | AY25: 1303.169989 | BB25: -162.6890002 | BE25: 1921.104624 | BN25: Höhe l | BO25: Höhe l | BP25: height l | BQ25: Hauteur
B26: =$BN$23 -> Last- | E26: s/h0' | H26: =$BN$25 -> Höhe l | L26: =$BN$26 -> Weg s | O26: =$BN$27 -> Kraft F | S26: σI | V26: σII | Y26: σIII | AB26: σOM | AE26: =$BN$31 -> Länge l | AI26: =$BN$26 -> Weg s | AM26: =$BN$27 -> Kraft F | AQ26: =BN67 -> Einzelfeder | AS26: BJ | AT26: 3050 | AU26: Becker | AV26: 7 | AX26: a1 | AY26: -6.115731117 | AZ26: x | BB26: 3.669926374 | BC26: x | BE26: -43.38123657 | BF26: x | BN26: Weg s | BO26: Weg s | BP26: travel s | BQ26: Course s
B27: =$BN$24 -> punkt | E27: % | H27: =$AT$53 -> mm | L27: =$AT$53 -> mm | O27: =$AT$54 -> N | S27: =$AT$55 -> MPa | AE27: =$AT$53 -> mm | AI27: =$AT$53 -> mm | AM27: =$AT$54 -> N | AQ27: =BN68 -> Kraft | AS27: WÜS | AT27: 3205 | AU27: Wüst | AV27: 8 | AX27: a2 | AY27: 0.1446357322 | AZ27: x*x | BB27: -0.002254629058 | BC27: x*x | BE27: 0.12044677 | BF27: x*x | BJ27: Lebensdauer Zeile 4 | BN27: Kraft F | BO27: Kraft F | BP27: load F | BQ27: Force F
B28: 0 | E28: =L28/D21*100 -> 0 | H28: =$J$18 -> 0.55 | AE28: =(H28+($J$23-1)*$J$17)*$B$23 -> 0.55 | AQ28: =BN67 -> Einzelfeder | AS28: TJ | AT28: 3561 | AU28: Terzyk | AV28: 9 | BJ28: Input | BN28: Plan | BO28: Plan | BP28: Flat | BQ28: à plat
B29: 1 | E29: =L29/D21 -> 0.248 | H29: 0.488 | L29: =$J$18-H29 -> 0.062 | O29: =$AX$5*$AT$5^3*L29*$AT$51*$AY$12*$AY$12/$AV$3/$AT$1^2*AS36/$AT$52 -> 45.37221045 | S29: =-$AX$5*$AT$5/$AV$3/$AT$1^2*L29*$AT$51*$AY$12*($AX$3*($AY$13/$AT$5-L29*$AT$51*$AY$12/2/$AT$5)+$AX$4)*$AT$56 -> -876.0035513 | V29: =-$AX$5*$AT$5/$AV$3/$AT$1^2*L29*$AT$51*$AY$12*($AX$3*($AY$13/$AT$5-L29*$AT$51*$AY$12/2/$AT$5)-$AX$4)*$AT$56 -> 205.4506707 | Y29: =-$AX$5*$AT$5/$AV$3/$AT$1^2*L29*$AT$51*$AY$12/$AV$2*(($AX$3-2*$AX$4)*($AY$13/$AT$5-L29*$AT$51*$AY$12/2/$AT$5)-$AX$4)*$AT$56 -> 397.9649011 | AB29: =-3*$AX$5*$AT$5/$AV$3/$AT$1^2*L29*$AT$51*$AY$12/$AV$5*$AT$56 -> -330.3088268 | AE29: =(H29+($J$23-1)*$J$17)*$B$23 -> 0.488 | AI29: =L29*$B$23 -> 0.062 | AM29: =O29*$J$23 -> 45.37221045 | AQ29: =BN69 -> Länge | AS29: =IF(AV29>1,CONCATENATE(INDEX(AT20:AT28,AV29)," (",INDEX(AS20:AS28,AV29),")"),CONCATENATE(INDEX(AT20:AT28,AV29))) -> 3510 | AU29: =INDEX(AU20:AU28,AV29) -> Weib | AV29: =_xlfn.IFNA(VLOOKUP(B5,AS21:AV28,4,FALSE),1) -> 1 | AZ29: Näherung des Setzverlustes CK Stähle 20° | BF29: Lebensdauer Zeile 1 | BJ29: Weg | BK29: L1 | BL29: L2 | BN29: rechnerische | BO29: rechnerische | BP29: calculated | BQ29: Contraintes de fatigue
B30: 2 | E30: =L30/D21 -> 0.748 | H30: 0.363 | L30: =$J$18-H30 -> 0.187 | O30: =$AX$5*$AT$5^3*L30*$AT$51*$AY$12*$AY$12/$AV$3/$AT$1^2*AS37/$AT$52 -> 104.1808992 | S30: =-$AX$5*$AT$5/$AV$3/$AT$1^2*L30*$AT$51*$AY$12*($AX$3*($AY$13/$AT$5-L30*$AT$51*$AY$12/2/$AT$5)+$AX$4)*$AT$56 -> -2353.544708 | V30: =-$AX$5*$AT$5/$AV$3/$AT$1^2*L30*$AT$51*$AY$12*($AX$3*($AY$13/$AT$5-L30*$AT$51*$AY$12/2/$AT$5)-$AX$4)*$AT$56 -> 908.2607684 | Y30: =-$AX$5*$AT$5/$AV$3/$AT$1^2*L30*$AT$51*$AY$12/$AV$2*(($AX$3-2*$AX$4)*($AY$13/$AT$5-L30*$AT$51*$AY$12/2/$AT$5)-$AX$4)*$AT$56 -> 1043.934383 | AB30: =-3*$AX$5*$AT$5/$AV$3/$AT$1^2*L30*$AT$51*$AY$12/$AV$5*$AT$56 -> -996.2540423 | AE30: =(H30+($J$23-1)*$J$17)*$B$23 -> 0.363 | AI30: =L30*$B$23 -> 0.187 | AM30: =O30*$J$23 -> 104.1808992 | AQ30: =BN70 -> Säule | AX30: sigma 1 | AY30: 48 h | AZ30: 48h_näher | BA30: Fehler | BB30: 1000h | BC30: 1000h_näher | BD30: Fehler | BF30: =IF($BI$47,CONCATENATE($BN$143," ",$BN$46),CONCATENATE($BN$40,": ",$BF$14," ",$BN$47)) -> Lebensdauer von Mubea Federn: größer als 2 Mio. Lastzyklen (Pü=99%) | BJ30: =ABS(BK30-BL30) -> 0.125 | BK30: =INDEX($AE$28:$AH$33,$AQ$41+1,1) -> 0.488 | BL30: =INDEX($AE$28:$AH$33,$AQ$42+1,1) -> 0.363 | BN30: Randspannungen | BO30: Randspannungen | BP30: stresses | BQ30: calculées
B31: =IF(ISBLANK($H31)," ","3") ->  | E31: =IF(ISBLANK(H31)," ",L31/D21) ->  | L31: =IF(ISBLANK($H31)," ",IF((H31>($J$18+0.00001)),"l > l0",$J$18-H31)) ->  | O31: =IF(ISBLANK($H31)," ",$AX$5*$AT$5^3*L31*$AT$51*$AY$12*$AY$12/$AV$3/$AT$1^2*AS38/$AT$52) ->  | S31: =IF(ISBLANK($H31)," ",-$AX$5*$AT$5/$AV$3/$AT$1^2*L31*$AT$51*$AY$12*($AX$3*($AY$13/$AT$5-L31*$AT$51*$AY$12/2/$AT$5)+$AX$4)*$AT$56) ->  | V31: =IF(ISBLANK($H31)," ",-$AX$5*$AT$5/$AV$3/$AT$1^2*L31*$AT$51*$AY$12*($AX$3*($AY$13/$AT$5-L31*$AT$51*$AY$12/2/$AT$5)-$AX$4)*$AT$56) ->  | Y31: =IF(ISBLANK($H31)," ",-$AX$5*$AT$5/$AV$3/$AT$1^2*L31*$AT$51*$AY$12/$AV$2*(($AX$3-2*$AX$4)*($AY$13/$AT$5-L31*$AT$51*$AY$12/2/$AT$5)-$AX$4)*$AT$56) ->  | AB31: =IF(ISBLANK($H31)," ",-3*$AX$5*$AT$5/$AV$3/$AT$1^2*L31*$AT$51*$AY$12/$AV$5*$AT$56) ->  | AE31: =IF(ISBLANK($H31)," ",(H31+($J$23-1)*$J$17)*$B$23) ->  | AI31: =IF(ISBLANK($H31)," ",L31*$B$23) ->  | AM31: =IF(ISBLANK($H31)," ",O31*$J$23) ->  | AQ31: =BN66 -> Weg | AX31: 0 | AY31: 0 | AZ31: =$AY$38+$AY$39*AX31+$AY$40*AX31*AX31 -> 0.01377646077 | BA31: =(AY31-AZ31)^2 -> 0.0001897908714 | BB31: 0 | BC31: =$BB$38+$BB$39*AX31+$BB$40*AX31*AX31 -> 0.01934777057 | BD31: =(BB31-BC31)^2 -> 0.0003743362259 | BF31: Lebensdauer Zeile 2 und 3 | BJ31: Output | BN31: Länge l | BO31: Länge l | BP31: height l | BQ31: Long. L
B32: =IF(ISBLANK($H32)," ","4") ->  | E32: =IF(ISBLANK(H32)," ",L32/D21) ->  | L32: =IF(ISBLANK($H32)," ",IF((H32>($J$18+0.00001)),"l > l_0",$J$18-H32)) ->  | O32: =IF(ISBLANK($H32)," ",$AX$5*$AT$5^3*L32*$AT$51*$AY$12*$AY$12/$AV$3/$AT$1^2*AS39/$AT$52) ->  | S32: =IF(ISBLANK($H32)," ",-$AX$5*$AT$5/$AV$3/$AT$1^2*L32*$AT$51*$AY$12*($AX$3*($AY$13/$AT$5-L32*$AT$51*$AY$12/2/$AT$5)+$AX$4)*$AT$56) ->  | V32: =IF(ISBLANK($H32)," ",-$AX$5*$AT$5/$AV$3/$AT$1^2*L32*$AT$51*$AY$12*($AX$3*($AY$13/$AT$5-L32*$AT$51*$AY$12/2/$AT$5)-$AX$4)*$AT$56) ->  | Y32: =IF(ISBLANK($H32)," ",-$AX$5*$AT$5/$AV$3/$AT$1^2*L32*$AT$51*$AY$12/$AV$2*(($AX$3-2*$AX$4)*($AY$13/$AT$5-L32*$AT$51*$AY$12/2/$AT$5)-$AX$4)*$AT$56) ->  | AB32: =IF(ISBLANK($H32)," ",-3*$AX$5*$AT$5/$AV$3/$AT$1^2*L32*$AT$51*$AY$12/$AV$5*$AT$56) ->  | AE32: =IF(ISBLANK($H32)," ",(H32+($J$23-1)*$J$17)*$B$23) ->  | AI32: =IF(ISBLANK($H32)," ",L32*$B$23) ->  | AM32: =IF(ISBLANK($H32)," ",O32*$J$23) ->  | AQ32: =BN70 -> Säule | AX32: 1000 | AY32: 0.25 | AZ32: 0.1932399755 | BA32: 0.003221700386 | BB32: 0.5 | BC32: 0.4562614859 | BD32: 0.001913057615 | BF32: =CONCATENATE(BJ36,BJ37,BJ38,BJ39,BJ40,BJ41,BJ42,BJ43,BJ44,BJ48,BJ45,BJ46) ->  | BJ32: =IF(BI47,"",CONCATENATE($BN$97,ROUND($BJ$30,2),$AT$53,$BN$48," "&ROUND($BK$30,2),$AT$53,$BN$49," "&ROUND($BL$30,2),$AT$53)) -> Weg: 0,13 mm zwischen L 1 : 0,49 mm und L 2 : 0,36 mm | BN32: der Säule | BO32: der Säule | BP32: of stack | BQ32: de l'empilage
B33: =IF(ISBLANK($H33)," ","5") ->  | E33: =IF(ISBLANK(H33)," ",L33/D21) ->  | L33: =IF(ISBLANK($H33)," ",IF((H33>($J$18+0.00001)),"l > l_0",$J$18-H33)) ->  | O33: =IF(ISBLANK($H33)," ",$AX$5*$AT$5^3*L33*$AT$51*$AY$12*$AY$12/$AV$3/$AT$1^2*AS40/$AT$52) ->  | S33: =IF(ISBLANK($H33)," ",-$AX$5*$AT$5/$AV$3/$AT$1^2*L33*$AT$51*$AY$12*($AX$3*($AY$13/$AT$5-L33*$AT$51*$AY$12/2/$AT$5)+$AX$4)*$AT$56) ->  | V33: =IF(ISBLANK($H33)," ",-$AX$5*$AT$5/$AV$3/$AT$1^2*L33*$AT$51*$AY$12*($AX$3*($AY$13/$AT$5-L33*$AT$51*$AY$12/2/$AT$5)-$AX$4)*$AT$56) ->  | Y33: =IF(ISBLANK($H33)," ",-$AX$5*$AT$5/$AV$3/$AT$1^2*L33*$AT$51*$AY$12/$AV$2*(($AX$3-2*$AX$4)*($AY$13/$AT$5-L33*$AT$51*$AY$12/2/$AT$5)-$AX$4)*$AT$56) ->  | AB33: =IF(ISBLANK($H33)," ",-3*$AX$5*$AT$5/$AV$3/$AT$1^2*L33*$AT$51*$AY$12/$AV$5*$AT$56) ->  | AE33: =IF(ISBLANK($H33)," ",(H33+($J$23-1)*$J$17)*$B$23) ->  | AI33: =IF(ISBLANK($H33)," ",L33*$B$23) ->  | AM33: =IF(ISBLANK($H33)," ",O33*$J$23) ->  | AQ33: =BN68 -> Kraft | AS33: k | AT33: s_diagr | AX33: 1500 | AY33: 0.3 | AZ33: 0.3383240735 | BA33: 0.001468734607 | BB33: 0.75 | BC33: 0.7506062312 | BD33: 3.675162114e-07 | BN33: der Einzelfeder | BO33: der Einzelfeder | BP33: of one spring | BQ33: d'une rondelle ressort
B34: =BN28 -> Plan | H34: =$J$17 -> 0.3 | L34: =IF((H34>($J$18+0.00001)),"l_1 > l_0",$J$18-H34) -> 0.25 | O34: =$AX$5*$AT$5^3*L34*$AT$51*$AY$12*$AY$12/$AV$3/$AT$1^2*AS41/$AT$52 -> 125.5277158 | S34: =-$AX$5*$AT$5/$AV$3/$AT$1^2*L34*$AT$51*$AY$12*($AX$3*($AY$13/$AT$5-L34*$AT$51*$AY$12/2/$AT$5)+$AX$4)*$AT$56 -> -2951.995735 | V34: =-$AX$5*$AT$5/$AV$3/$AT$1^2*L34*$AT$51*$AY$12*($AX$3*($AY$13/$AT$5-L34*$AT$51*$AY$12/2/$AT$5)-$AX$4)*$AT$56 -> 1408.706773 | Y34: =-$AX$5*$AT$5/$AV$3/$AT$1^2*L34*$AT$51*$AY$12/$AV$2*(($AX$3-2*$AX$4)*($AY$13/$AT$5-L34*$AT$51*$AY$12/2/$AT$5)-$AX$4)*$AT$56 -> 1290.266461 | AB34: =-3*$AX$5*$AT$5/$AV$3/$AT$1^2*L34*$AT$51*$AY$12/$AV$5*$AT$56 -> -1331.890431 | AE34: =(H34+($J$23-1)*$J$17)*$B$23 -> 0.3 | AI34: =L34*$B$23 -> 0.25 | AM34: =O34*$J$23 -> 125.5277158 | AQ34: =BN70 -> Säule | AX34: 2000 | AY34: 0.5 | AZ34: 0.5203097319 | BA34: 0.0004124852107 | BB34: 1.125 | BC34: 1.095542901 | BD34: 0.0008677206556 | BF34: Bemerkungen | BN34: =IF($AQ$2=1,BO34,IF($AQ$2=2,BP34,IF($AQ$2=3,BQ34,"Wrong language selection"))) -> Spezifikation | BO34: Spezifikation | BP34: specification | BQ34: Spécification
B35: =BN34 -> Spezifikation | AQ35: =BN141 -> Werkstoffwahl | AS35: =($AV$6/$AT$5-M28*$AT$51/$AT$5)*($AV$6/$AT$5-M28*$AT$51/2/$AT$5)+$AV$4 -> 1.694444444 | AX35: 2500 | AY35: 0.75 | AZ35: 0.7391969508 | BA35: 0.0001167058717 | BB35: 1.375 | BC35: 1.491071497 | BD35: 0.01347259236 | BF35: Parameter | BG35: Ist | BH35: n.i.O.-Kriterium | BJ35: Ausgabe | BN35: Werkstoff: | BO35: Werkstoff: | BP35: material: | BQ35: Matière:
B36: =BN35 -> Werkstoff: | N36: =AU99 -> 1.8159 (51 CrV 4) | X36: =$BN$50 -> E-Modul: | AE36: =ROUND($AS$99*$AT$60,1) -> 206000 | AL36: =$AT$59 -> MPa | AS36: =($AY$13/$AT$5-L29*$AT$51*$AY$12/$AT$5)*($AY$13/$AT$5-L29*$AT$51*$AY$12/2/$AT$5)+$AV$4 -> 1.457466667 | AT36: =AI29*1 -> 0.062 | AX36: 3000 | AY36: 1 | AZ36: 0.9949857302 | BA36: 2.514290207e-05 | BB36: 2 | BC36: 1.937192017 | BD36: 0.00394484271 | BF36: Material | BG36: =$AT$99 -> 2 | BH36: > 3 | BI36: =$BG$36>3 -> FALSE | BJ36: =IF($BI$36,$BN$194&"; ","") ->  | BN36: Oberfläche: | BO36: Oberfläche: | BP36: surface finish: | BQ36: Finition de surface:
B37: =BN36 -> Oberfläche: | N37: =IF($AT$99<4,$BN$37,"") -> kugelgestrahlt | X37: =$BN$137 -> Temperatur: | AE37: 20 | AL37: =$AT$62 -> °C | AS37: 1.10955 | AT37: 0.187 | BA37: =SUM(BA31:BA36) -> 0.005434559849 | BD37: =SUM(BD31:BD36) -> 0.02057291708 | BF37: Anzahl Federn | BG37: =$J$23*$B$23 -> 1 | BH37: > 60 | BI37: =$BG$37>60 -> FALSE | BJ37: =IF($BI$37,$BN$41&"; ","") ->  | BN37: kugelgestrahlt | BO37: kugelgestrahlt | BP37: shot peening | BQ37: grenaillage de précontrainte
B38: =BN38 -> Korrosionsschutz: | N38: =IF($AT$99<4,$BN$39,$BN$173) -> phosphatiert und geölt | AQ38: =BN64 -> Lebensdauer- | AS38: =($AY$13/$AT$5-L31*$AT$51*$AY$12/$AT$5)*($AY$13/$AT$5-L31*$AT$51*$AY$12/2/$AT$5)+$AV$4 ->  | AX38: a0 | AY38: 0.01377646077 | BB38: 0.01934777057 | BF38: Schichtung | BG38: =$J$23 -> 1 | BH38: > 2 | BI38: =$BG$38>2 -> FALSE | BJ38: =IF($BI$38,$BN$42&"; ","") ->  | BN38: Korrosionsschutz: | BO38: Korrosionsschutz: | BP38: corrosion prot.: | BQ38: Protection à la corrosion:
B39: =$BF$30 -> Lebensdauer von Mubea Federn: größer als 2 Mio. Lastzyklen (Pü=99%) | AQ39: =BN65 -> berechnungen | AX39: a1 | AY39: 0.0001056603938 | AZ39: x | BB39: 0.0003357298653 | BC39: x | BF39: Pakete | BG39: =$B$23 -> 1 | BH39: Pakete > 15 UND Schichtung > 1 | BI39: =AND($BG$39>15,$BG$38>1) -> FALSE | BJ39: =IF($BI$39,$BN$44&"; ","") ->  | BN39: phosphatiert und geölt | BO39: phosphatiert und geölt | BP39: phosphated and oiled | BQ39: phosphaté et huilé
B40: =$BF$32 ->  | AQ40: =BN43 -> zw. d. Lastp. | AX40: a2 | AY40: 7.380312089e-08 | AZ40: x*x | BB40: 1.011838501e-07 | BC40: x*x | BF40: Sigma II 2 | BG40: =$BB$9 -> 908.2607684 | BH40: =CONCATENATE("> ",$BB$2,"(Max Oberspannnung)") -> > 1300(Max Oberspannnung) | BI40: =$BG$40>$BB$2 -> FALSE | BJ40: =IF($BI$40,$BN$45&" (Sigma II); ","") ->  | BN40: Lebensdauer von Mubea Federn | BO40: Lebensdauer von Mubea Federn | BP40: fatigue life of Mubea springs | BQ40: Durée de vie de Mubea rond. res.
AQ41: 1 | AS41: 1 | AT41: 0.25 | BF41: Sigma III 2 | BG41: =$BB$11 -> 1043.934383 | BH41: =CONCATENATE("> ",$BB$2,"(Max Oberspannnung)") -> > 1300(Max Oberspannnung) | BI41: =$BG$41>$BB$2 -> FALSE | BJ41: =IF($BI$41,$BN$45&" (Sigma III); ","") ->  | BN41: mehr als 60 Federn | BO41: mehr als 60 Federn | BP41: more than 60 springs | BQ41: plus de 60 rondelles
B42: =$BJ$32 -> Weg: 0,13 mm zwischen L 1 : 0,49 mm und L 2 : 0,36 mm | AQ42: 2 | AZ42: Näherung des Setzverlustes CK Stähle 100° | BF42: t' | BG42: =$AT$5 -> 0.3 | BH42: > 16 | BI42: =$BG$42>16 -> FALSE | BJ42: =IF($BI$42,$BN$109&"; ","") ->  | BN42: mehr als 2 fach geschichtet | BO42: mehr als 2 fach geschichtet | BP42: more than 2 springs stacked | BQ42: > de 2 rond. /paquet
B43: =$BN$54 -> Bemerkungen | AQ43: =BN81 -> Lebensdauer | AX43: sigma 1 | AY43: 48 h | AZ43: 48h_näher | BA43: Fehler | BB43: 1000h | BC43: 1000h_näher | BD43: Fehler | BF43: s1/h0 | BG43: =MIN(E29:G33) -> 0.248 | BH43: < 0,15 | BI43: =$BG$43<0.15 -> FALSE | BJ43: =IF($BI$43,$BN$52&"; ","") ->  | BN43: zw. d. Lastp. | BO43: zw. d. Lastp. | BP43: betw. loadp. | BQ43: entre pt charge n°
AQ44: =BN83 -> löschen | AX44: 0 | AY44: 0 | AZ44: =$AY$51+$AY$52*AX44+$AY$53*AX44*AX44 -> 0.0356546584 | BA44: =(AY44-AZ44)^2 -> 0.001271254666 | BB44: 0 | BC44: =$BB$51+$BB$52*AX44+$BB$53*AX44*AX44 -> 0.02161926537 | BD44: =(BB44-BC44)^2 -> 0.0004673926351 | BF44: s2/h0 | BG44: =MAX(E29:G33) -> 0.748 | BH44: > 0,8 | BI44: =$BG$44>0.8 -> FALSE | BJ44: =IF($BI$44,$BN$53&"; ","") ->  | BN44: mehr als 15 Pakete | BO44: mehr als 15 Pakete | BP44: more than 15 packets | BQ44: plus de 15 paquets
AQ45: =BN82 -> Lebensdauer | AS45: Toleranzhilfe | AX45: 1000 | AY45: 1.625 | AZ45: 1.595301771 | BA45: 0.000881984827 | BB45: 2.375 | BC45: 2.131171841 | BD45: 0.05945217112 | BF45: h(L1) | BG45: =INDEX($H$28:$K$33,$AQ41+1,1) -> 0.488 | BH45: h(L1) = 0 | BI45: =BG45=0 -> FALSE | BJ45: =IF(BI45,$BN$196,"") ->  | BN45: Dynamische Oberspannung zu groß | BO45: Dynamische Oberspannung zu groß | BP45: dynamic upper stress too high | BQ45: Contrainte dynamique sup. trop grande
AQ46: =BN84 -> hinzufügen | AS46: =IF($AT$2<6,$AT$2+0.12,IF($AT$2<10,$AT$2+0.15,IF($AT$2<18,$AT$2+0.18,IF($AT$2<30,$AT$2+0.21,IF($AT$2<50,$AT$2+0.25,IF($AT$2<80,$AT$2+0.3,IF($AT$2<120,$AT$2+0.35,$AT$46))))))) -> 3.32 | AT46: =IF($AT$2<180,$AT$2+0.4,IF($AT$2<250,$AT$2+0.46,IF($AT$2<315,$AT$2+0.52,IF($AT$2<400,$AT$2+0.57,IF($AT$2<500,$AT$2+0.63,IF($AT$2<600,$AT$2+0.68,$AT$2+0.75)))))) -> 3.6 | AX46: 1500 | AY46: 2.5 | AZ46: 2.546146463 | BA46: 0.002129496069 | BB46: 3.5 | BC46: 3.513500568 | BD46: 0.0001822653285 | BF46: h(L2) | BG46: =INDEX($H$28:$K$33,$AQ42+1,1) -> 0.363 | BH46: h(L2) = 0 | BI46: =BG46=0 -> FALSE | BJ46: =IF(AND($BJ45="",$BI46),$BN$196,"") ->  | BN46: Rücksprache mit Mubea | BO46: Rücksprache mit Mubea | BP46: please contact Mubea | BQ46: Veuillez contacter Mubea
B47: =$BF$51 ->  | AS47: =IF($AT$1<6,$AT$1-0.12,IF($AT$1<10,$AT$1-0.15,IF($AT$1<18,$AT$1-0.18,IF($AT$1<30,$AT$1-0.21,IF($AT$1<50,$AT$1-0.25,IF($AT$1<80,$AT$1-0.3,IF($AT$1<120,$AT$1-0.35,$AT$47))))))) -> 7.85 | AT47: =IF($AT$1<180,$AT$1-0.4,IF($AT$1<250,$AT$1-0.46,IF($AT$1<315,$AT$1-0.52,IF($AT$1<400,$AT$1-0.57,IF($AT$1<500,$AT$1-0.63,IF($AT$1<600,$AT$1-0.68,$AT$1-0.75)))))) -> 7.6 | AX47: 2000 | AY47: 3.625 | AZ47: 3.611005247 | BA47: 0.0001958531172 | BB47: 5 | BC47: 5.114197587 | BD47: 0.01304108888 | BF47: Ergebnis: | BI47: =OR($BI$36:$BI$46) -> FALSE | BN47: Lastzyklen (Pü=99%) | BO47: Lastzyklen (Pü=99%) | BP47: load cycles (Pü=99%) | BQ47: cycles (Pü=99%)
B48: =$BF$53 ->  | AX48: 2500 | AY48: 4.75 | AZ48: 4.789878121 | BA48: 0.001590264562 | BB48: 6.9 | BC48: 6.933262899 | BD48: 0.001106420445 | BF48: t' | BG48: =$AT$5 -> 0.3 | BH48: 5 <= t <= 7 | BI48: =AND($BG$48>=5,$BG$48<=7) -> FALSE | BJ48: =IF(AND($BI$48,NOT($BI$47)),$BN$177,"") ->  | BN48: zwischen L 1 : | BO48: =" zwischen L "&$AQ$41&" :" -> zwischen L 1 : | BP48: =" between L "&$AQ$41&" :" -> between L 1 : | BQ48: =" entre L "&$AQ$41&" :" -> entre L 1 :
AX49: 3000 | AY49: 6.1 | AZ49: 6.082765087 | BA49: 0.0002970422306 | BB49: 9.125 | BC49: 8.970696503 | BD49: 0.02380956905 | BN49: und L 2 : | BO49: =" und L "&$AQ$42&" :" -> und L 2 : | BP49: =" and L "&$AQ$42&" :" -> and L 2 : | BQ49: =" et L"&$AQ$42&" :" -> et L2 :
B50: =$BN$104 -> DIN-Toleranz der Federkraft: | M50: =IF($AT$5<1.25,"+25 / -7,5%",IF($AT$5<=3,"+15 / -7,5%",IF($AT$5<=6,"+10 / -5%","+5 / -5%"))) -> +25 / -7,5% | R50: =$BN$105 -> bei 75% von h0 einer Feder | AS50: Einheitensteuerung | BA50: =SUM(BA44:BA49) -> 0.006365895471 | BD50: =SUM(BD44:BD49) -> 0.09805890746 | BF50: Kommentar Zeile 1 | BJ50: Hilfe für Lastpunkte | BK50: Wert | BL50: Index | BN50: E-Modul: | BO50: E-Modul: | BP50: Youngs-modulus: | BQ50: module E:
AS51: mm/inch | AT51: =IF($AQ$7=2,$AV51,$AU51) -> 1 | AU51: 1 | AV51: 25.4 | AX51: a0 | AY51: 0.0356546584 | BB51: 0.02161926537 | BF51: =IF(OR(BI57:BI65),$BN$46,"") ->  | BJ51: Min | BK51: =MIN(E29:G33) -> 0.248 | BL51: =MATCH(BK51,$E$29:$E$33) -> 1 | BN51: bei | BO51: bei | BP51: at | BQ51: à
I52: =$BN$2 -> Berechnung von Tellerfedern | AD52: =IF($AT$4<1.25,$BN$3,IF($AT$4=$AT$5,$BN$108,$BN$94)) -> Gruppe 1 | AS52: N/lbf | AT52: 1 | AU52: 1 | AV52: 4.44822 | AX52: a1 | AY52: 0.00133161893 | AZ52: x | BB52: 0.00167281599 | BC52: x | BF52: Kommentar Zeile 2 und 3 | BJ52: Max | BK52: =MAX(E29:G33) -> 0.748 | BL52: =MATCH(BK52,$E$29:$E$33) -> 2 | BN52: Vorspannweg zu klein (S1) | BO52: ="Vorspannweg zu klein (S" & $BL$51 & ")" -> Vorspannweg zu klein (S1) | BP52: ="preload travel too low (S" & $BL$51 & ")" -> preload travel too low (S1) | BQ52: ="S" & $BL$51 & " trop petit" -> S1 trop petit
I53: =$BN$4 -> Teile/Zeichn. Nr.: | O53: =IF(ISBLANK($O$2),"",$O$2) -> 17 0001 | Z53: =$BN$174 -> Revision | AD53: =IF(ISBLANK($AD$2),"",$AD$2) ->  | AT53: mm | AU53: mm | AV53: inch | AX53: a2 | AY53: 2.28028182e-07 | AZ53: x*x | BB53: 4.367365852e-07 | BC53: x*x | BF53: =CONCATENATE(BJ57,BJ58,BJ59,BJ60,BJ61,BJ62,BJ63,BJ64,BJ65) ->  | BN53: Einfederung zu hoch (S2) | BO53: ="Einfederung zu hoch (S"&BL52&")" -> Einfederung zu hoch (S2) | BP53: ="Deflection too high (S"&BL52&")" -> Deflection too high (S2) | BQ53: ="(S"&BL52&") trop grand" -> (S2) trop grand
B54: =IF(ISBLANK($B$3),"",$B$3) -> K-Version 10.03.22 | I54: =$BN$5 -> Projekt: | O54: =IF(ISBLANK($O$3),"",$O$3) ->  | Z54: =$BN$175 -> Kunde | AD54: =IF(ISBLANK($AD$3),"",$AD$3) ->  | AT54: N | AU54: N | AV54: lbf | BN54: Bemerkungen | BO54: Bemerkungen | BP54: remarks | BQ54: Remarques
B55: =IF(ISBLANK($B$4),"",B4) -> 2022-03-10T14:18:38.430 | I55: Mubea Tellerfedern GmbH, Postfach 120, 57564 Daaden | AT55: MPa | AU55: MPa | AV55: * 1000 psi | AZ55: Näherung des Setzverlustes Cr Stähle 20° | BF55: Warnungen | BN55: Federweg in mm | BO55: ="Federweg in "&$AT$53 -> Federweg in mm | BP55: ="travel in "&$AT$53 -> travel in mm | BQ55: ="Course en "&$AT$53 -> Course en mm
B56: =IF(ISBLANK($B$5),"",$B$5) ->  | I56: =$BN$107 -> Tel.: Vertrieb: +49 2743/806- 3588, -3593, -3625; Entwicklung: +49 2743/806-3510 | AS56: MPA/1000psi | AT56: 1 | AU56: 1 | AV56: =145.03/1000 -> 0.14503 | AX56: sigma 1 | AY56: 48 h | AZ56: 48h_näher | BA56: Fehler | BB56: 1000h | BC56: 1000h_näher | BD56: Fehler | BF56: Parameter | BG56: Ist | BH56: n.i.O.-Kriterium | BJ56: Ausgabe | BN56: Feder- | BO56: Feder- | BP56: spring- | BQ56: Force
AT57: N/mm | AU57: N/mm | AV57: lbf/in | AX57: 0 | AY57: 0 | AZ57: =$AY$64+$AY$65*AX57+$AY$66*AX57*AX57 -> 0.01231576657 | BA57: =(AY57-AZ57)^2 -> 0.0001516781063 | BB57: 0 | BC57: =$BB$64+$BB$65*AX57+$BB$66*AX57*AX57 -> 0.01860614271 | BD57: =(BB57-BC57)^2 -> 0.0003461885465 | BF57: ho/t | BG57: =(AV6)/$AT$5 -> 0.8333333333 | BH57: > 1.3 | BI57: =$BG$57>1.3 -> FALSE | BJ57: =IF($BI$57,$BN$176&"; ","") ->  | BK57: Federkennwerte | BN57: kraft | BO57: kraft | BP57: load | BQ57: du ressort
AS58: N/mm/lbf/in | AT58: 1 | AU58: 1 | AV58: =$AV$51/$AV$52 -> 5.710149228 | AX58: 1000 | AY58: 0.07 | AZ58: 0.06438989096 | BA58: 3.147332339e-05 | BB58: 0.25 | BC58: 0.2141208643 | BD58: 0.001287312377 | BF58: De/Di | BG58: =$AT$1/$AT$2 -> 2.5 | BH58: <1,8 oder >2,5 | BI58: =OR($BG$58<1.8,$BG$58>2.5) -> FALSE | BJ58: =IF($BI$58,$BN$178&" (De/Di)"&"; ","") ->  | BK58: Federkennwerte | BN58: Sprache | BO58: Sprache | BP58: Language | BQ58: Langue
R59: =$W$6 -> Kennlinie der Tellerfeder | AT59: MPa | AU59: MPa | AV59: * 1E6 psi | AX59: 1500 | AY59: 0.1 | AZ59: 0.1036951174 | BA59: 1.365389248e-05 | BB59: 0.36 | BC59: 0.3598743694 | BD59: 1.578303997e-08 | BF59: De/t | BG59: =$AT$1/$AT$5 -> 26.66666667 | BH59: <16 oder > 40 | BI59: =OR($BG$59<16,$BG$59>40) -> FALSE | BJ59: =IF($BI$59,$BN$178&" (De/t)"&"; ","") ->  | BK59: Federkennwerte | BN59: Diagramm- | BO59: Diagramm- | BP59: setup of | BQ59: Modification
AS60: MPA/1000000psi | AT60: 1 | AU60: 1 | AV60: =145.03/1000000 -> 0.00014503 | AX60: 2000 | AY60: 0.15 | AZ60: 0.1518457866 | BA60: 3.406928234e-06 | BB60: 0.5 | BC60: 0.5376253041 | BD60: 0.001415663507 | BF60: De/h0 | BG60: =$AT$1/$AV$6 -> 32 | BK60: Federkennwerte | BN60: steuerung | BO60: steuerung | BP60: curve | BQ60: du diagramme
AT61: 20 | AU61: =$AE$37 -> 20 | AV61: =($AE$37-32)*5/9 -> -6.666666667 | AX61: 2500 | AY61: 0.21 | AZ61: 0.2088418987 | BA61: 1.341198702e-06 | BB61: 0.75 | BC61: 0.7473736683 | BD61: 6.897618346e-06 | BF61: Setzfestigkeit | BG61: =$S$34 -> -2951.995735 | BH61: ="< "&ROUND((MAX($AT$15+$AT$16*$R$20+$AT$17*$R$20*$R$20,-3600)*$AT$56),0) -> < -3600 | BI61: =BG61<(MAX($AT$15+$AT$16*$R$20+$AT$17*$R$20*$R$20,-3600)*$AT$56) -> FALSE | BJ61: =IF($BI$61,$BN$179&"; ","") ->  | BK61: Statische Belastung | BN61: Federweg | BO61: Federweg | BP61: travel | BQ61: Course
AT62: °C | AU62: °C | AV62: °F | AX62: 3000 | AY62: 0.275 | AZ62: 0.2746834535 | BA62: 1.002016686e-07 | BB62: 1 | BC62: 0.989119462 | BD62: 0.0001183861072 | BF62: Sigma Max | BG62: =MAX(V29:AA33) -> 1043.934383 | BH62: > 1680 | BI62: =BG62>1680 -> FALSE | BJ62: =IF($BI$62,$BN$180&"; ","") ->  | BK62: Statische Belastung | BN62: von | BO62: von | BP62: from | BQ62: de:
BA63: =SUM(BA57:BA62) -> 0.0002016536508 | BD63: =SUM(BD57:BD62) -> 0.00317446394 | BF63: min-temp | BG63: =$BH$99 -> 0 | BH63: > 0 | BI63: =BG63>0 -> FALSE | BJ63: =IF($BI$63,$BN$144&"; ","") ->  | BK63: Temperatur | BN63: bis | BO63: bis | BP63: to | BQ63: à
AX64: a0 | AY64: 0.01231576657 | BB64: 0.01860614271 | BF64: max-temp | BG64: =$BI$99 -> 0 | BH64: > 0 | BI64: =BG64>0 -> FALSE | BJ64: =IF($BI$64,$BN$145&"; ","") ->  | BK64: Temperatur | BN64: Lebensdauer- | BO64: Lebensdauer- | BP64: calculation of | BQ64: Calcul de la
AQ65: =$BN$59 -> Diagramm- | AX65: a1 | AY65: 3.438323876e-05 | AZ65: x | BB65: 0.0001315198625 | BC65: x | BF65: Temperatur | BG65: =$AT$61 -> 20 | BH65: != 20 | BI65: =BG65<>20 -> FALSE | BJ65: =IF($BI$65,$BN$195,"") ->  | BK65: Temperatur | BN65: berechnungen | BO65: berechnungen | BP65: fatigue life | BQ65: durée de vie
AQ66: =$BN$60 -> steuerung | AX66: a2 | AY66: 1.769088563e-08 | AZ66: x*x | BB66: 6.399485908e-08 | BC66: x*x | BN66: =IF($AQ$2=1,BO66,IF($AQ$2=2,BP66,IF($AQ$2=3,BQ66,"Wrong language selection"))) -> Weg | BO66: Weg | BP66: travel of | BQ66: Course
AQ67: =$BN$101 -> Anzeige der | BF67: Toleranzen | BN67: Einzelfeder | BO67: Einzelfeder | BP67: one spring | BQ67: 1 rond. res.
AQ68: =$BN$102 -> Spannungen | AZ68: Näherung des Setzverlustes Cr Stähle 100° | BF68: Parameter | BH68: Kriterium | BI68: Toleranzfeld | BN68: Kraft | BO68: Kraft | BP68: load of | BQ68: Force
AQ69: =$BN$103 -> 0 = nein, 1 = ja | AX69: sigma 1 | AY69: 48 h | AZ69: 48h_näher | BA69: Fehler | BB69: 1000h | BC69: 1000h_näher | BD69: Fehler | BF69: t' | BG69: 1 | BH69: t' < 1,25 | BI69: =BG69<1.25 -> TRUE | BJ69: =IF($BI$69,"+25 / -7,5%","") -> +25 / -7,5% | BN69: Länge | BO69: Länge | BP69: height of | BQ69: Longueur
AQ70: 1 | AX70: 0 | AY70: 0 | AZ70: =$AY$77+$AY$78*AX70+$AY$79*AX70*AX70 -> 0.02940341546 | BA70: =(AY70-AZ70)^2 -> 0.0008645608405 | BB70: 0 | BC70: =$BB$77+$BB$78*AX70+$BB$79*AX70*AX70 -> 0.0239075165 | BD70: =(BB70-BC70)^2 -> 0.0005715693454 | BF70: t' | BG70: =BG69 -> 1 | BH70: 1,25 <= t' <= 3,0 | BI70: =AND(BG70>=1.25,BG70<=3) -> FALSE | BJ70: =IF($BI$70,"+15 / -7,5%","") ->  | BN70: Säule | BO70: Säule | BP70: stack | BQ70: empilage
AX71: 1000 | AY71: 1.25 | AZ71: 1.221100731 | BA71: 0.0008351677474 | BB71: 1.9 | BC71: 1.829357884 | BD71: 0.004990308591 | BF71: t' | BG71: =BG70 -> 1 | BH71: 3,0 < t' <= 6,0 | BI71: =AND(BG71>3,BG71<=6) -> FALSE | BJ71: =IF($BI$71,"+10 / -5%","") ->  | BN71: größer als 2 Mio. | BO71: größer als 2 Mio. | BP71: more than 2 Mio. | BQ71: plus de 2 Mio.
D72: =BN56 -> Feder- | AN72: =IF(AQ70=1,BN92," ") -> Spannung | AX72: 1500 | AY72: 2 | AZ72: 1.984661619 | BA72: 0.0002352659317 | BB72: 2.875 | BC72: 2.87142864 | BD72: 1.275461286e-05 | BF72: t' | BG72: =BG71 -> 1 | BH72: sonst | BI72: =BG72>6 -> FALSE | BJ72: =IF($BI$72,"+5 / -5%","") ->  | BN72: Federhöhe: | BO72: Federhöhe: | BP72: spring height: | BQ72: Hauteur:
D73: =BN57 -> kraft | AN73: =IF(AQ70=1,BN93," ") -> in | AX73: 2000 | AY73: 2.875 | AZ73: 2.86003066 | BA73: 0.0002240811269 | BB73: 4 | BC73: 4.006396444 | BD73: 4.091450202e-05 | BF73: Ausgabe | BN73: red. Blechdicke: | BO73: red. Blechdicke: | BP73: red. thickness: | BQ73: Epaisseur réd.:
D74: =BN96 -> in N | AN74: =IF(AQ70=1,$AT$55," ") -> MPa | AX74: 2500 | AY74: 3.75 | AZ74: 3.847207855 | BA74: 0.00944936714 | BB74: 5.125 | BC74: 5.234261297 | BD74: 0.01193803112 | BF74: =CONCATENATE($BN$104," ",CONCATENATE($BJ$69,$BJ$70,$BJ$71,$BJ$72)," ",$BN$105) -> DIN-Toleranz der Federkraft: +25 / -7,5% bei 75% von h0 einer Feder | BN74: Bitte die gewünschte Federkraft der Einzelfeder eingeben. | BO74: Bitte die gewünschte Federkraft der Einzelfeder eingeben. | BP74: Please enter required load of one spring | BQ74: Entrez la force souhaitée pour la Rond. Ressort, SVP.
AX75: 3000 | AY75: 5 | AZ75: 4.946193204 | BA75: 0.002895171328 | BB75: 6.625 | BC75: 6.555023199 | BD75: 0.004896752711 | BN75: Bitte die gewünschte Federkraft der Federsäule eingeben. | BO75: Bitte die gewünschte Federkraft der Federsäule eingeben. | BP75: Please enter required load of stack | BQ75: Entrez la force souhaitée pour l'empilage, SVP.
BA76: =SUM(BA70:BA75) -> 0.01450361411 | BD76: =SUM(BD70:BD75) -> 0.02245033088 | BN76: Bitte den gewünschten Federweg der Federsäule eingeben. | BO76: Bitte den gewünschten Federweg der Federsäule eingeben. | BP76: Please enter required travel of stack | BQ76: Entrez la course souhaitée pour l'empilage, SVP.
AX77: a0 | AY77: 0.02940341546 | BB77: 0.0239075165 | BN77: Bitte die gewünschte Länge der Federsäule eingeben. | BO77: Bitte die gewünschte Länge der Federsäule eingeben. | BP77: Please enter required height of stack | BQ77: Entrez la longueur souhaitée pour l'empilage, SVP.
AX78: a1 | AY78: 0.0009680810086 | AZ78: x | BB78: 0.00161965627 | BC78: x | BN78: Bitte den gewünschten Weg der Einzelfeder eingeben. | BO78: Bitte den gewünschten Weg der Einzelfeder eingeben. | BP78: Please enter required travel of one spring | BQ78: Entrez la course souhaitée pour l'empilage, SVP.
AX79: a2 | AY79: 2.236163069e-07 | AZ79: x*x | BB79: 1.857940968e-07 | BC79: x*x | BN79: Bitte eine Zeile im Kennlinienbereich l_1 bis l_5 wählen! | BO79: Bitte eine Zeile im Kennlinienbereich l_1 bis l_5 wählen! | BP79: Please select a row between l1 and l5 | BQ79: Selectionnez une cellule entre L1 et L5, SVP.
BN80: Bitte eine Zeile im Bereich der Federtabelle wählen! | BO80: Bitte eine Zeile im Bereich der Federtabelle wählen! | BP80: Please select a row in data field | BQ80: Selectionnez une cellule dans le tableau, SVP.
AY81: Werkstoffe | BN81: Lebensdauer | BO81: Lebensdauer | BP81: remove | BQ81: Supprimer
AR82: Blechdicke | AS82: E-Berechnet | AT82: Auswahl | AU82: Name | AV82: Nummer | AW82: max. Materialdicke | AX82: min Temperatur | AY82: max Temperatur | BC82: E-Modul | BH82: min-temp | BI82: max temp | BJ82: E-Näher | BN82: Lebensdauer | BO82: Lebensdauer | BP82: add | BQ82: Indiquer
AR83: =$AT$5 -> 0.3 | AS83: =AT61 -> 20 | AZ83: 20 ° | BA83: 100° | BB83: 200° | BC83: 300° | BD83: 400° | BE83: 500° | BF83: 600° | BG83: 700° | BJ83: n | BK83: m | BN83: löschen | BO83: löschen | BP83: fatigue life | BQ83: Durée de vie
AR84: =($AR$83>AW84)*AT84 -> 0 | AS84: =IF(AT84=1,IF($AS$83=20,AZ84,BJ84),0) -> 0 | AT84: =IF($AT$99=1,1,0) -> 0 | AU84: 1.1231 (C67S) | AV84: 1.1231 | AW84: 1.25 | AX84: -10 | AY84: 100 | AZ84: 206000 | BA84: 202000 | BH84: =($AS$83<AX84)*AT84 -> 0 | BI84: =($AS$83>AY84)*AT84 -> 0 | BJ84: =IF($AS$83<=20,AZ84,IF(AND($AS$83>20,$AS$83<100),AZ84+($AS$83-20)*BK84,BA84)) -> 206000 | BK84: =IF(AND($AS$83>20,$AS$83<100),(BA84-AZ84)/80) -> FALSE | BN84: hinzufügen | BO84: hinzufügen | BP84: fatigue life | BQ84: Durée de vie
AR85: =($AR$83>AW85)*AT85 -> 0 | AS85: =IF(AT85=1,IF($AS$83=20,AZ85,BJ85),0) -> 206000 | AT85: =IF($AT$99=2,1,0) -> 1 | AU85: 1.8159 (51 CrV 4) | AV85: 1.8159 | AW85: 25 | AX85: -20 | AY85: 150 | AZ85: 206000 | BA85: 202000 | BB85: 196000 | BH85: =($AS$83<AX85)*AT85 -> 0 | BI85: =($AS$83>AY85)*AT85 -> 0 | BJ85: =IF($AS$83<=20,AZ85,IF(AND($AS$83>20,$AS$83<100),AZ85+($AS$83-20)*BK85,IF($AS$83=100,BA85,IF(AND($AS$83>100,$AS$83<200),BA85+($AS$83-100)*BK85,BB85)))) -> 206000 | BK85: =IF(AND($AS$83>20,$AS$83<100),(BA85-AZ85)/80,IF(AND($AS$83>100,$AS$83<200),(BB85-BA85)/100)) -> FALSE | BN85: kopieren | BO85: kopieren | BP85: copy | BQ85: Recopier
AR86: 0 | AS86: =IF(AT86=1,IF($AS$83=20,AZ86,BJ86),0) -> 0 | AT86: =IF($AT$99=3,1,0) -> 0 | AU86: 1.7701 (52 CrMoV 4) | AV86: 1.7701 | AW86: 40 | AX86: -20 | AY86: 150 | AZ86: 206000 | BA86: 202000 | BB86: 196000 | BH86: 0 | BI86: 0 | BJ86: =IF($AS$83<=20,AZ86,IF(AND($AS$83>20,$AS$83<100),AZ86+($AS$83-20)*BK86,IF($AS$83=100,BA86,IF(AND($AS$83>100,$AS$83<200),BA86+($AS$83-100)*BK86,BB86)))) -> 206000 | BK86: =IF(AND($AS$83>20,$AS$83<100),(BA86-AZ86)/80,IF(AND($AS$83>100,$AS$83<200),(BB86-BA86)/100)) -> FALSE | BN86: Standardabmessungen | BO86: Standardabmessungen | BP86: standard-dimensions | BQ86: Dimensions standards
AR87: 0 | AS87: 0 | AT87: =IF($AT$99=4,1,0) -> 0 | AU87: 1.4310 (X 10 CrNi 18-8) | AV87: 1.4310 | AW87: 2 | AX87: -150 | AY87: 200 | AZ87: 190000 | BA87: 185000 | BB87: 178000 | BH87: 0 | BI87: 0 | BJ87: =IF($AS$83<=20,AZ87,IF(AND($AS$83>20,$AS$83<100),AZ87+($AS$83-20)*BK87,IF($AS$83=100,BA87,IF(AND($AS$83>100,$AS$83<200),BA87+($AS$83-100)*BK87,BB87)))) -> 190000 | BK87: =IF(AND($AS$83>20,$AS$83<100),(BA87-AZ87)/80,IF(AND($AS$83>100,$AS$83<200),(BB87-BA87)/100)) -> FALSE | BN87: Sonderabmessungen | BO87: Sonderabmessungen | BP87: extra-dimensions | BQ87: Dimensions spéciales
V88: =BN55 -> Federweg in mm | AR88: 0 | AS88: 0 | AT88: =IF($AT$99=5,1,0) -> 0 | AU88: 1.4568 (X 7 CrNiAl 17 7) | AV88: 1.4568 | AW88: 2.5 | AX88: -200 | AY88: 200 | AZ88: 200000 | BA88: 195000 | BB88: 190000 | BH88: 0 | BI88: 0 | BJ88: =IF($AS$83<=20,AZ88,IF(AND($AS$83>20,$AS$83<100),AZ88+($AS$83-20)*BK88,IF($AS$83=100,BA88,IF(AND($AS$83>100,$AS$83<200),BA88+($AS$83-100)*BK88,BB88)))) -> 200000 | BK88: =IF(AND($AS$83>20,$AS$83<100),(BA88-AZ88)/80,IF(AND($AS$83>100,$AS$83<200),(BB88-BA88)/100)) -> FALSE | BN88: Bestell- | BO88: Bestell- | BP88: order- | BQ88: Numéro de
AR89: 0 | AS89: 0 | AT89: =IF($AT$99=6,1,0) -> 0 | AU89: 1.4401 (X 5 CrNiMo 17-12-2) | AV89: 1.4401 | AW89: 1.6 | AX89: -200 | AY89: 200 | AZ89: 190000 | BA89: 185000 | BB89: 178000 | BH89: 0 | BI89: 0 | BJ89: =IF($AS$83<=20,AZ89,IF(AND($AS$83>20,$AS$83<100),AZ89+($AS$83-20)*BK89,IF($AS$83=100,BA89,IF(AND($AS$83>100,$AS$83<200),BA89+($AS$83-100)*BK89,BB89)))) -> 190000 | BK89: =IF(AND($AS$83>20,$AS$83<100),(BA89-AZ89)/80,IF(AND($AS$83>100,$AS$83<200),(BB89-BA89)/100)) -> FALSE | BN89: Nr.: | BO89: Nr.: | BP89: no.: | BQ89: référence
B90: =$B$22 ->  | J90: =$J$22 ->  | N90: =$N$22 ->  | R90: =$B$23 -> 1 | V90: =$F$23 -> Feder | Z90: =$J$23 -> 1 | AD90: =$N$23 ->  | AR90: 0 | AS90: 0 | AT90: =IF($AT$99=7,1,0) -> 0 | AU90: 1.7737 (45 CrMoV 6 7) | AV90: 1.7737 | AW90: 20 | AX90: -60 | AY90: 250 | AZ90: 206000 | BA90: 202000 | BB90: 196000 | BC90: 189000 | BH90: 0 | BI90: 0 | BJ90: =IF($AS$83<=20,AZ90,IF(AND($AS$83>20,$AS$83<100),AZ90+($AS$83-20)*BK90,IF($AS$83=100,BA90,IF(AND($AS$83>100,$AS$83<200),BA90+($AS$83-100)*BK90,IF($AS$83=200,BB90,IF(AND($AS$83>200,$AS$83<300),BB90+($AS$83-200)*BK90,BC90)))))) -> 206000 | BK90: =IF(AND($AS$83>20,$AS$83<100),(BA90-AZ90)/80,IF(AND($AS$83>100,$AS$83<200),(BB90-BA90)/100,IF(AND($AS$83>200,$AS$83<300),(BC90-BB90)/100))) -> FALSE | BN90: Masse 1000 Stück | BO90: Masse 1000 Stück | BP90: weight of 1000 pcs. | BQ90: Poids au 1000 pcs
B91: =$B$13 -> Tellerfederabmessung | AC91: =$AE$24 -> Lastpunkte | AR91: 0 | AS91: 0 | AT91: =IF($AT$99=8,1,0) -> 0 | AU91: 1.6580 (30 CrNiMo 8) | AV91: 1.6580 | AW91: 20 | AX91: -80 | AY91: 250 | AZ91: 206000 | BA91: 202000 | BB91: 196000 | BC91: 189000 | BH91: 0 | BI91: 0 | BJ91: =IF($AS$83<=20,AZ91,IF(AND($AS$83>20,$AS$83<100),AZ91+($AS$83-20)*BK91,IF($AS$83=100,BA91,IF(AND($AS$83>100,$AS$83<200),BA91+($AS$83-100)*BK91,IF($AS$83=200,BB91,IF(AND($AS$83>200,$AS$83<300),BB91+($AS$83-200)*BK91,BC91)))))) -> 206000 | BK91: =IF(AND($AS$83>20,$AS$83<100),(BA91-AZ91)/80,IF(AND($AS$83>100,$AS$83<200),(BB91-BA91)/100,IF(AND($AS$83>200,$AS$83<300),(BC91-BB91)/100))) -> FALSE | BN91: Werkzeuge vorhanden | BO91: Werkzeuge vorhanden | BP91: tooling prepared | BQ91: outillage existant
B92: =$B$14 -> Außendurchm.: | H92: De= | K92: =$J$14 -> 8 | R92: =$AT$53 -> mm | AC92: =$AE$25 -> der Einzelfeder | AR92: 0 | AS92: 0 | AT92: =IF($AT$99=9,1,0) -> 0 | AU92: 1.4122 (X 39 CrMo 17-1) | AV92: 1.4122 | AW92: 8 | AX92: -60 | AY92: 300 | AZ92: 209000 | BA92: 205000 | BB92: 199000 | BC92: 192000 | BH92: 0 | BI92: 0 | BJ92: =IF($AS$83<=20,AZ92,IF(AND($AS$83>20,$AS$83<100),AZ92+($AS$83-20)*BK92,IF($AS$83=100,BA92,IF(AND($AS$83>100,$AS$83<200),BA92+($AS$83-100)*BK92,IF($AS$83=200,BB92,IF(AND($AS$83>200,$AS$83<300),BB92+($AS$83-200)*BK92,BC92)))))) -> 209000 | BK92: =IF(AND($AS$83>20,$AS$83<100),(BA92-AZ92)/80,IF(AND($AS$83>100,$AS$83<200),(BB92-BA92)/100,IF(AND($AS$83>200,$AS$83<300),(BC92-BB92)/100))) -> FALSE | BN92: Spannung | BO92: Spannung | BP92: stress | BQ92: Contraintes
B93: =$B$15 -> Innendurchm.: | H93: Di= | K93: =$J$15 -> 3.2 | R93: =$AT$53 -> mm | AC93: =$B$26 -> Last- | AF93: =$AE$26 -> Länge l | AK93: =$AI$26 -> Weg s | AN93: =$AM$26 -> Kraft F | AR93: 0 | AS93: 0 | AT93: =IF($AT$99=10,1,0) -> 0 | AU93: 1.2567 (X 30 WCrV 5 3) | AV93: 1.2567 | AW93: 20 | AX93: -60 | AY93: 350 | AZ93: 206000 | BA93: 202000 | BB93: 196000 | BC93: 189000 | BD93: 178000 | BH93: 0 | BI93: 0 | BJ93: =IF($AS$83<=20,AZ93,IF(AND($AS$83>20,$AS$83<100),AZ93+($AS$83-20)*BK93,IF($AS$83=100,BA93,IF(AND($AS$83>100,$AS$83<200),BA93+($AS$83-100)*BK93,IF($AS$83=200,BB93,IF(AND($AS$83>200,$AS$83<300),BB93+($AS$83-200)*BK93,BL93)))))) -> 206000 | BK93: =IF(AND($AS$83>20,$AS$83<100),(BA93-AZ93)/80,IF(AND($AS$83>100,$AS$83<200),(BB93-BA93)/100,IF(AND($AS$83>200,$AS$83<300),(BC93-BB93)/100,IF(AND($AS$83>300,$AS$83<400),(BD93-BC93)/100)))) -> FALSE | BL93: =IF($AS$83=300,BC93,IF(AND($AS$83>300,$AS$83<400),BC93+($AS$83-300)*BK93,BD93)) -> 178000 | BN93: in | BO93: in | BP93: in | BQ93: en
B94: =$B$16 -> Blechdicke: | H94: t= | K94: =$J$16 -> 0.3 | R94: =$AT$53 -> mm | AC94: =$B$27 -> punkt | AF94: =$AT$53 -> mm | AK94: =$AT$53 -> mm | AN94: =$AT$54 -> N | AR94: 0 | AS94: 0 | AT94: =IF($AT$99=11,1,0) -> 0 | AU94: 1.4923 (X 22 CrMoV 12 1) | AV94: 1.4923 | AW94: 8 | AX94: -60 | AY94: 350 | AZ94: 209000 | BA94: 205000 | BB94: 200000 | BC94: 193000 | BH94: 0 | BI94: 0 | BJ94: =IF($AS$83<=20,AZ94,IF(AND($AS$83>20,$AS$83<100),AZ94+($AS$83-20)*BK94,IF($AS$83=100,BA94,IF(AND($AS$83>100,$AS$83<200),BA94+($AS$83-100)*BK94,IF($AS$83=200,BB94,IF(AND($AS$83>200,$AS$83<300),BB94+($AS$83-200)*BK94,BC94)))))) -> 209000 | BK94: =IF(AND($AS$83>20,$AS$83<100),(BA94-AZ94)/80,IF(AND($AS$83>100,$AS$83<200),(BB94-BA94)/100,IF(AND($AS$83>200,$AS$83<300),(BC94-BB94)/100))) -> FALSE | BN94: Gruppe 3 mit Auflageflächen | BO94: Gruppe 3 mit Auflageflächen | BP94: group 3 including load input surfaces | BQ94: Groupe 3
B95: =$B$17 -> red. Blechdicke: | H95: t'= | K95: =$J$17 -> 0.3 | R95: =$AT$53 -> mm | AC95: =$B$28 -> 0 | AG95: =$AE$28 -> 0.55 | AJ95: =$AL$28 -> 0 | AN95: =$AP$28 -> 0 | AR95: 0 | AS95: 0 | AT95: =IF($AT$99=12,1,0) -> 0 | AU95: 2.1247 (CuBe 2) | AV95: 2.1247 | AW95: 3 | AX95: -250 | AY95: 150 | AZ95: 135000 | BA95: 131000 | BB95: 126000 | BH95: 0 | BI95: 0 | BJ95: =IF($AS$83<=20,AZ95,IF(AND($AS$83>20,$AS$83<100),AZ95+($AS$83-20)*BK95,IF($AS$83=100,BA95,IF(AND($AS$83>100,$AS$83<200),BA95+($AS$83-100)*BK95,BB95)))) -> 135000 | BK95: =IF(AND($AS$83>20,$AS$83<100),(BA95-AZ95)/80,IF(AND($AS$83>100,$AS$83<200),(BB95-BA95)/100)) -> FALSE | BN95: Berechnungen | BO95: Berechnungen | BP95: calculations | BQ95: calcul
B96: =$B$18 -> Federhöhe: | H96: l0= | K96: =$J$18 -> 0.55 | R96: =$AT$53 -> mm | AC96: =IF($AQ$41=0,B$28,IF($AQ$41=1,B$29,IF($AQ$41=2,B$30,IF($AQ$41=3,B$31,IF($AQ$41=4,#REF!,IF($AQ$41=5,#REF!,IF(OR($AQ$41="c",$AQ$41="C"),B$34))))))) -> 1 | AG96: =IF($AQ$41=0,AE$28,IF($AQ$41=1,AE$29,IF($AQ$41=2,AE$30,IF($AQ$41=3,AE$31,IF($AQ$41=4,AE$32,IF($AQ$41=5,AE$33,IF(OR($AQ$41="c",$AQ$41="C"),AE$34))))))) -> 0.488 | AJ96: =IF($AQ$41=0,AL$28,IF($AQ$41=1,AI$29,IF($AQ$41=2,AI$30,IF($AQ$41=3,AI$31,IF($AQ$41=4,AI$32,IF($AQ$41=5,AI$33,IF(OR($AQ$41="c",$AQ$41="C"),AI$34))))))) -> 0.062 | AN96: =IF($AQ$41=0,AP$28,IF($AQ$41=1,AM$29,IF($AQ$41=2,AM$30,IF($AQ$41=3,AM$31,IF($AQ$41=4,AM$32,IF($AQ$41=5,AM$33,IF(OR($AQ$41="c",$AQ$41="C"),AM$34))))))) -> 45.37221045 | AR96: =($AR$83>AW96)*AT96 -> 0 | AS96: =IF(AT96=1,IF($AS$83=20,AZ96,BJ96),0) -> 0 | AT96: =IF($AT$99=13,1,0) -> 0 | AU96: 2.4668 (Inconel 718) | AV96: 2.4668 | AW96: 8 | AX96: -200 | AY96: 500 | AZ96: 200000 | BA96: 196000 | BB96: 190000 | BC96: 186000 | BD96: 179000 | BE96: 172000 | BH96: =($AS$83<AX96)*AT96 -> 0 | BI96: =($AS$83>AY96)*AT96 -> 0 | BJ96: =IF($AS$83<=20,AZ96,IF(AND($AS$83>20,$AS$83<100),AZ96+($AS$83-20)*BK96,IF($AS$83=100,BA96,IF(AND($AS$83>100,$AS$83<200),BA96+($AS$83-100)*BK96,IF($AS$83=200,BB96,IF(AND($AS$83>200,$AS$83<300),BB96+($AS$83-200)*BK96,BL96)))))) -> 200000 | BK96: =IF(AND($AS$83>20,$AS$83<100),(BA96-AZ96)/80,IF(AND($AS$83>100,$AS$83<200),(BB96-BA96)/100,IF(AND($AS$83>200,$AS$83<300),(BC96-BB96)/100,IF(AND($AS$83>300,$AS$83<400),(BD96-BC96)/100,IF(AND($AS$83>400,$AS$83<500),(BE96-BD96)/100))))) -> FALSE | BL96: =IF($AS$83=300,BC96,IF(AND($AS$83>300,$AS$83<400),BC96+($AS$83-300)*BK96,IF($AS$83=400,BD96,IF(AND($AS$83>400,$AS$83<500),BD96+($AS$83-400)*BK96,BE96)))) -> 172000 | BN96: in N | BO96: ="in"&$AT$54 -> in N | BP96: ="in"&$AT$54 -> in N | BQ96: ="en"&$AT$54 -> en N
B97: =$B$36 -> Werkstoff: | H97: =$N$36 -> 1.8159 (51 CrV 4) | AC97: =IF($AQ$42=0,B$28,IF($AQ$42=1,B$29,IF($AQ$42=2,B$30,IF($AQ$42=3,B$31,IF($AQ$42=4,#REF!,IF($AQ$42=5,#REF!,IF(OR($AQ$42="c",$AQ$42="C"),B$34))))))) -> 2 | AG97: =IF($AQ$42=0,AE$28,IF($AQ$42=1,AE$29,IF($AQ$42=2,AE$30,IF($AQ$42=3,AE$31,IF($AQ$42=4,AE$32,IF($AQ$42=5,AE$33,IF(OR($AQ$42="c",$AQ$42="C"),AE$34))))))) -> 0.363 | AJ97: =IF($AQ$42=0,AL$28,IF($AQ$42=1,AI$29,IF($AQ$42=2,AI$30,IF($AQ$42=3,AI$31,IF($AQ$42=4,AI$32,IF($AQ$42=5,AI$33,IF(OR($AQ$42="c",$AQ$42="C"),AI$34))))))) -> 0.187 | AN97: =IF($AQ$42=0,AP$28,IF($AQ$42=1,AM$29,IF($AQ$42=2,AM$30,IF($AQ$42=3,AM$31,IF($AQ$42=4,AM$32,IF($AQ$42=5,AM$33,IF(OR($AQ$42="c",$AQ$42="C"),AM$34))))))) -> 104.1808992 | AR97: =($AR$83>AW97)*AT97 -> 0 | AS97: =IF(AT97=1,IF($AS$83=20,AZ97,BJ97),0) -> 0 | AT97: =IF($AT$99=14,1,0) -> 0 | AU97: 2.4669 (Inconel X 750) | AV97: 2.4669 | AW97: 8 | AX97: -200 | AY97: 500 | AZ97: 214000 | BA97: 207000 | BB97: 198000 | BC97: 190000 | BD97: 179000 | BE97: 170000 | BH97: =($AS$83<AX97)*AT97 -> 0 | BI97: =($AS$83>AY97)*AT97 -> 0 | BJ97: =IF($AS$83<=20,AZ97,IF(AND($AS$83>20,$AS$83<100),AZ97+($AS$83-20)*BK97,IF($AS$83=100,BA97,IF(AND($AS$83>100,$AS$83<200),BA97+($AS$83-100)*BK97,IF($AS$83=200,BB97,IF(AND($AS$83>200,$AS$83<300),BB97+($AS$83-200)*BK97,BL97)))))) -> 214000 | BK97: =IF(AND($AS$83>20,$AS$83<100),(BA97-AZ97)/80,IF(AND($AS$83>100,$AS$83<200),(BB97-BA97)/100,IF(AND($AS$83>200,$AS$83<300),(BC97-BB97)/100,IF(AND($AS$83>300,$AS$83<400),(BD97-BC97)/100,IF(AND($AS$83>400,$AS$83<500),(BE97-BD97)/100))))) -> FALSE | BL97: =IF($AS$83=300,BC97,IF(AND($AS$83>300,$AS$83<400),BC97+($AS$83-300)*BK97,IF($AS$83=400,BD97,IF(AND($AS$83>400,$AS$83<500),BD97+($AS$83-400)*BK97,BE97)))) -> 170000 | BN97: Weg: | BO97: Weg: | BP97: travel: | BQ97: Course:
B98: =$X$36 -> E-Modul: | H98: =$AE$36 -> 206000 | M98: =$AT$59 -> MPa | Q98: =$BN$51 -> bei | U98: =$AE$37 -> 20 | Y98: =$AL$37 -> °C | AD98: =$B$34 -> Plan | AG98: =$AE$34 -> 0.3 | AJ98: =$AI$34 -> 0.25 | AN98: =$AM$34 -> 125.5277158 | AR98: =($AR$83>AW98)*AT98 -> 0 | AS98: =IF(AT98=1,IF($AS$83=20,AZ98,BJ98),0) -> 0 | AT98: =IF($AT$99=15,1,0) -> 0 | AU98: 2.4632 (Nimonic 90) | AV98: 2.4632 | AW98: 8 | AX98: -200 | AY98: 600 | AZ98: 206000 | BA98: 201000 | BB98: 195000 | BC98: 189000 | BD98: 181000 | BE98: 175000 | BF98: 167000 | BG98: 160000 | BH98: =($AS$83<AX98)*AT98 -> 0 | BI98: =($AS$83>AY98)*AT98 -> 0 | BJ98: =IF($AS$83<=20,AZ98,IF(AND($AS$83>20,$AS$83<100),AZ98+($AS$83-20)*BK98,IF($AS$83=100,BA98,IF(AND($AS$83>100,$AS$83<200),BA98+($AS$83-100)*BK98,IF($AS$83=200,BB98,IF(AND($AS$83>200,$AS$83<300),BB98+($AS$83-200)*BK98,BL98)))))) -> 206000 | BK98: =IF(AND($AS$83>20,$AS$83<100),(BA98-AZ98)/80,IF(AND($AS$83>100,$AS$83<200),(BB98-BA98)/100,IF(AND($AS$83>200,$AS$83<300),(BC98-BB98)/100,IF(AND($AS$83>300,$AS$83<400),(BD98-BC98)/100,IF(AND($AS$83>400,$AS$83<700),(BG98-BD98)/300))))) -> FALSE | BL98: =IF($AS$83=300,BC98,IF(AND($AS$83>300,$AS$83<400),BC98+($AS$83-300)*BK98,IF($AS$83=400,BD98,IF(AND($AS$83>400,$AS$83<700),BD98+($AS$83-400)*BK98,BG98)))) -> 160000 | BN98: =IF($AQ$2=1,BO98,IF($AQ$2=2,BP98,IF($AQ$2=3,BQ98,"Wrong language selection"))) -> Punkte 1 bis 5 | BO98: Punkte 1 bis 5 | BP98: points 1 to 5 | BQ98: Points 1 à 5
AR99: =SUM(AR84:AR98) -> 0 | AS99: =SUM(AS84:AS98) -> 206000 | AT99: 2 | AU99: =INDEX(AU84:AU98,AT99) -> 1.8159 (51 CrV 4) | AW99: =IF($AT$99=16,$AU$98) -> FALSE | AZ99: =INDEX(AZ84:AZ98,AT99) -> 206000 | BH99: =SUM(BH84:BH98) -> 0 | BI99: =SUM(BI84:BI98) -> 0 | BN99: Federrate | BO99: Federrate | BP99: stiffness | BQ99: Raideur
I100: =$BN$2 -> Berechnung von Tellerfedern | AD100: =IF($AT$4<1.25,$BN$3,IF($AT$4=$AT$5,$BN$108,$BN$94)) -> Gruppe 1 | BN100: in MPa | BO100: ="in "&$AT$55 -> in MPa | BP100: ="in "&$AT$55 -> in MPa | BQ100: ="in "&$AT$55 -> in MPa
I101: =$BN$4 -> Teile/Zeichn. Nr.: | O101: =IF(ISBLANK($O$2),"",$O$2) -> 17 0001 | Z101: =$BN$174 -> Revision | AD101: =IF(ISBLANK($AD$2),"",$AD$2) ->  | BN101: Anzeige der | BO101: Anzeige der | BP101: show | BQ101: Indication des
B102: =IF(ISBLANK($B$3),"",$B$3) -> K-Version 10.03.22 | I102: =$BN$5 -> Projekt: | O102: =IF(ISBLANK($O$3),"",$O$3) ->  | Z102: =$BN$175 -> Kunde | AD102: =IF(ISBLANK($AD$3),"",$AD$3) ->  | BN102: Spannungen | BO102: Spannungen | BP102: stresses | BQ102: Contraintes
B103: =$B$4 -> 2022-03-10T14:18:38.430 | I103: Mubea Tellerfedern GmbH, Postfach 120, 57564 Daaden | BN103: 0 = nein, 1 = ja | BO103: 0 = nein, 1 = ja | BP103: 0 = no, 1 = yes | BQ103: 0 = non, 1 = oui
B104: =IF(ISBLANK($B$5),"",$B$5) ->  | I104: =$BN$107 -> Tel.: Vertrieb: +49 2743/806- 3588, -3593, -3625; Entwicklung: +49 2743/806-3510 | BN104: DIN-Toleranz der Federkraft: | BO104: DIN-Toleranz der Federkraft: | BP104: Load DIN-tolerance: | BQ104: Tolérances DIN sur force:
BN105: bei 75% von h0 einer Feder | BO105: bei 75% von h0 einer Feder | BP105: at 75% of h0 of one spring | BQ105: à 75% de ho pour une rondelle seule
B106: =$BN$21 -> Lastpunkte | N106: =$BN$29 -> rechnerische | AA106: =$BN$21 -> Lastpunkte | BN106: 0 | BQ106: Ces calculs ont été effectués par Mubea avec les paramêtres qui lui ont été fournies et Mubea ne s'engage que surla base de ceux-ci.
B107: =$BN$22 -> der Einzelfeder | N107: =$BN$30 -> Randspannungen | AA107: =IF(($J$23*$B$23)>1,$BN$32,$BN$33) -> der Einzelfeder | BN107: Tel.: Vertrieb: +49 2743/806- 3588, -3593, -3625; Entwicklung: +49 2743/806-3510 | BO107: =CONCATENATE("Tel.: Vertrieb: +49 2743/806- 3588, -3593, -3625; Entwicklung: +49 2743/806-",$AS$29) -> Tel.: Vertrieb: +49 2743/806- 3588, -3593, -3625; Entwicklung: +49 2743/806-3510 | BP107: =CONCATENATE("phone: sales: +49 2743/806- 3588, -3593, -3625; engineering: +49 2743/806-",$AS$29) -> phone: sales: +49 2743/806- 3588, -3593, -3625; engineering: +49 2743/806-3510 | BQ107: =CONCATENATE("Tel.: Sce de Vente: +49 2743/806- 3588, -3593, -3625; Bur. d'Etudes: +49 2743/806-",$AS$29) -> Tel.: Sce de Vente: +49 2743/806- 3588, -3593, -3625; Bur. d'Etudes: +49 2743/806-3510
B108: =$BN$25 -> Höhe l | F108: =$BN$26 -> Weg s | J108: =$BN$27 -> Kraft F | N108: σI | R108: σII | U108: σIII | X108: σOM | AA108: =$BN$31 -> Länge l | AE108: =$BN$26 -> Weg s | AI108: =$BN$27 -> Kraft F | AM108: =$BN$99 -> Federrate | AR108: k | AS108: k_sigma | AT108: =IF($AQ$70=1,"σ I"," ") -> σ I | AU108: =IF($AQ$70=1,"σ II"," ") -> σ II | AV108: =IF($AQ$70=1,"σ III"," ") -> σ III | AW108: =IF($AQ$70=1,"σ OM"," ") -> σ OM | BN108: Gruppe 2 | BO108: Gruppe 2 | BP108: group 2 | BQ108: Groupe 2
B109: =$AT$53 -> mm | F109: =$AT$53 -> mm | J109: =$AT$54 -> N | N109: =$AT$55 -> MPa | AA109: =$AT$53 -> mm | AE109: =$AT$53 -> mm | AI109: =$AT$54 -> N | AM109: =$AT$57 -> N/mm | AT109: N/mm2 | AU109: N/mm2 | AV109: N/mm2 | AW109: N/mm2 | BN109: Blechdicke zu groß | BO109: Blechdicke zu groß | BP109: material thickness too big | BQ109: Epaisseur trop importante
B110: =IF(ISBLANK($AQ$14),$J$18,$J$18-$AQ$14) -> 0.55 | F110: =$J$18-B110 -> 0 | J110: =$AX$5*$AT$5^3*F110*$AT$51*$AY$12*$AY$12/$AV$3/$AT$1^2*AR110/$AT$52 -> 0 | N110: =-$AX$5*$AT$5/$AV$3/$AT$1^2*F110*$AT$51*$AY$12*($AX$3*($AY$13/$AT$5-F110*$AT$51*$AY$12/2/$AT$5)+$AX$4)*$AT$56 -> 0 | R110: =-$AX$5*$AT$5/$AV$3/$AT$1^2*F110*$AT$51*$AY$12*($AX$3*($AY$13/$AT$5-F110*$AT$51*$AY$12/2/$AT$5)-$AX$4)*$AT$56 -> 0 | U110: =-$AX$5*$AT$5/$AV$3/$AT$1^2*F110*$AT$51*$AY$12/$AV$2*(($AX$3-2*$AX$4)*($AY$13/$AT$5-F110*$AT$51*$AY$12/2/$AT$5)-$AX$4)*$AT$56 -> 0 | X110: =-3*$AX$5*$AT$5/$AV$3/$AT$1^2*F110*$AT$51*$AY$12/$AV$5*$AT$56 -> 0 | AA110: =(B110+($J$23-1)*$J$17)*$B$23 -> 0.55 | AE110: =F110*$B$23 -> 0 | AI110: =J110*$J$23 -> 0 | AM110: =$J$23/$B$23*($AX$5*$AT$5^3/$AV$3/$AT$1^2*$AY$12*$AY$12*(($AY$13/$AT$5)^2-3*$AY$13/$AT$5*F110*$AT$51*$AY$12/$AT$5+3/2*(F110*$AT$51*$AY$12/$AT$5)^2+1)*$AT$58) -> 850.7989625 | AR110: =($AY$13/$AT$5-F110*$AT$51*$AY$12/$AT$5)*($AY$13/$AT$5-F110*$AT$51*$AY$12/2/$AT$5)+$AV$4 -> 1.694444444 | AS110: =IF($AQ$70=1,1,0) -> 1 | AT110: =N110*$AS$110 -> 0 | AU110: =R110*$AS$110 -> 0 | AV110: =U110*$AS$110 -> 0 | AW110: =X110*$AS$110 -> 0 | AX110: =AE110*$AS$110 -> 0 | BN110: Durchmessertol. innen: | BO110: Durchmessertol. innen: | BP110: tolerance inner diam.: | BQ110: Tolérances sur Dia. int.
B111: =B110-($B$110-$B$135)/25 -> 0.54 | F111: 0.01 | J111: 8.301566271 | N111: -147.7109774 | R111: =-$AX$5*$AT$5/$AV$3/$AT$1^2*F111*$AT$51*$AY$12*($AX$3*($AY$13/$AT$5-F111*$AT$51*$AY$12/2/$AT$5)-$AX$4)*$AT$56 -> 26.71712287 | U111: 67.66669525 | X111: -53.27561723 | AA111: 0.54 | AE111: 0.01 | AI111: 8.301566271 | AM111: 809.7932421 | AR111: 1.653333333 | AT111: -147.7109774 | AU111: 26.71712287 | AV111: 67.66669525 | AW111: -53.27561723 | AX111: 0.01 | BN111: Durchmessertol. außen: | BO111: Durchmessertol. außen: | BP111: tolerance outer diam.: | BQ111: Tolérances sur Dia. ext.
B112: 0.53 | F112: 0.02 | J112: 16.20144385 | N112: -292.9526925 | R112: =-$AX$5*$AT$5/$AV$3/$AT$1^2*F112*$AT$51*$AY$12*($AX$3*($AY$13/$AT$5-F112*$AT$51*$AY$12/2/$AT$5)-$AX$4)*$AT$56 -> 55.90350808 | U112: 133.9953874 | X112: -106.5512345 | AA112: 0.53 | AE112: 0.02 | AI112: 16.20144385 | AM112: 770.4612244 | AR112: 1.613333333 | AT112: -292.9526925 | AU112: 55.90350808 | AV112: 133.9953874 | AW112: -106.5512345 | AX112: 0.02 | BN112: Gesamtspiel innen: | BO112: Gesamtspiel innen: | BP112: gap at inner diam.: | BQ112: Guide int. : jeu total
B113: 0.52 | F113: 0.03 | J113: 23.71636977 | N113: -435.7251453 | R113: 87.55915563 | U113: 198.9860766 | X113: -159.8268517 | AA113: 0.52 | AE113: 0.03 | AI113: 23.71636977 | AM113: 732.8029097 | AR113: 1.574444444 | AT113: -435.7251453 | AU113: 87.55915563 | AV113: 198.9860766 | AW113: -159.8268517 | AX113: 0.03 | BN113: Gesamtspiel außen: | BO113: Gesamtspiel außen: | BP113: gap at outer diam.: | BQ113: Guide ext. : jeu total
B114: 0.51 | F114: 0.04 | J114: 30.86308105 | N114: -576.0283357 | R114: 121.6840655 | U114: 262.6387626 | X114: -213.1024689 | AA114: 0.51 | AE114: 0.04 | AI114: 30.86308105 | AM114: 696.8182979 | AR114: 1.536666667 | AT114: -576.0283357 | AU114: 121.6840655 | AV114: 262.6387626 | AW114: -213.1024689 | AX114: 0.04 | BN114: Toleranz der Blechdicke: | BO114: Toleranz der Blechdicke: | BP114: tolerance of thickness: | BQ114: Tolérances sur épaisseur:
B115: 0.5 | F115: 0.05 | J115: 37.65831474 | N115: -713.8622638 | R115: 158.2782377 | U115: 324.9534456 | X115: -266.3780862 | AA115: 0.5 | AE115: 0.05 | AI115: 37.65831474 | AM115: 662.5073889 | AR115: 1.5 | AT115: -713.8622638 | AU115: 158.2782377 | AV115: 324.9534456 | AW115: -266.3780862 | AX115: 0.05 | BN115: Toleranz der Federhöhe: | BO115: Toleranz der Federhöhe: | BP115: tolerance of spring height: | BQ115: Tolérances sur hauteur:
B116: 0.49 | F116: 0.06 | J116: 44.11880784 | N116: -849.2269296 | R116: 197.3416723 | U116: 385.9301255 | X116: -319.6537034 | AA116: 0.49 | AE116: 0.06 | AI116: 44.11880784 | AM116: 629.8701828 | AR116: 1.464444444 | AT116: -849.2269296 | AU116: 197.3416723 | AV116: 385.9301255 | AW116: -319.6537034 | AX116: 0.06 | BN116: proz. min. Entl. Kraft: | BO116: proz. min. Entl. Kraft: | BP116: rel. min. load at disloading: | BQ116: % min de force à la décomp.
B117: 0.48 | F117: 0.07 | J117: 50.2612974 | N117: -982.122333 | R117: 238.8743692 | U117: 445.5688023 | X117: -372.9293206 | AA117: 0.48 | AE117: 0.07 | AI117: 50.2612974 | AM117: 598.9066795 | AR117: 1.43 | AT117: -982.122333 | AU117: 238.8743692 | AV117: 445.5688023 | AW117: -372.9293206 | AX117: 0.07 | BN117: bei 75% von h0 der Säule | BO117: bei 75% von h0 der Säule | BP117: at 75% of h0 of the stack | BQ117: à 75% de la course tot. ho de l'empilage
B118: 0.47 | F118: 0.08 | J118: 56.10252044 | N118: -1112.548474 | R118: 282.8763285 | U118: 503.8694761 | X118: -426.2049379 | AA118: 0.47 | AE118: 0.08 | AI118: 56.10252044 | AM118: 569.6168792 | AR118: 1.396666667 | AT118: -1112.548474 | AU118: 282.8763285 | AV118: 503.8694761 | AW118: -426.2049379 | AX118: 0.08 | BN118: Spannungen Sigma2 und Sigma3 sind stark unterschiedlich! Material könnte besser ausgenutzt werden. | BO118: Spannungen Sigma2 und Sigma3 sind stark unterschiedlich! Material könnte besser ausgenutzt werden. | BP118: Stresses sigma 2 and sigma 3 differ very much! Material may be better used. | BQ118: Contraintes Sigma 2 et Sigma 3 très différentes
B119: 0.46 | F119: 0.09 | J119: 61.65921399 | N119: -1240.505353 | R119: 329.34755 | U119: 560.8321468 | X119: -479.4805551 | AA119: 0.46 | AE119: 0.09 | AI119: 61.65921399 | AM119: 542.0007817 | AR119: 1.364444444 | AT119: -1240.505353 | AU119: 329.34755 | AV119: 560.8321468 | AW119: -479.4805551 | AX119: 0.09 | BN119: zul. Oberspannung: | BO119: zul. Oberspannung: | BP119: max upper stress: | BQ119: Contrainte sup. admissible
B120: 0.45 | F120: 0.1 | J120: 66.94811509 | N120: -1365.992969 | R120: 378.288034 | U120: 616.4568144 | X120: -532.7561723 | AA120: 0.45 | AE120: 0.1 | AI120: 66.94811509 | AM120: 516.0583871 | AR120: 1.333333333 | AT120: -1365.992969 | AU120: 378.288034 | AV120: 616.4568144 | AW120: -532.7561723 | AX120: 0.1 | BN120: zul Druckspannung: | BO120: zul Druckspannung: | BP120: max compress. stress: | BQ120: Contrainte de pression admissible
B121: 0.44 | F121: 0.11 | J121: 71.98596075 | N121: -1489.011323 | R121: 429.6977802 | U121: 670.743479 | X121: -586.0317896 | AA121: 0.44 | AE121: 0.11 | AI121: 71.98596075 | AM121: 491.7896954 | AR121: 1.303333333 | AT121: -1489.011323 | AU121: 429.6977802 | AV121: 670.743479 | AW121: -586.0317896 | AX121: 0.11 | BN121: ber. Lebensdauer: | BO121: ber. Lebensdauer: | BP121: calc. fatigue life: | BQ121: Durée de vie théorigue
B122: 0.43 | F122: 0.12 | J122: 76.789488 | N122: -1609.560415 | R122: 483.5767888 | U122: 723.6921405 | X122: -639.3074068 | AA122: 0.43 | AE122: 0.12 | AI122: 76.789488 | AM122: 469.1947066 | AR122: 1.274444444 | AT122: -1609.560415 | AU122: 483.5767888 | AV122: 723.6921405 | AW122: -639.3074068 | AX122: 0.12 | BN122: altern. Lebensdauer: | BO122: altern. Lebensdauer: | BP122: altern. fatigue life: | BQ122: Durée de vie alternative
B123: 0.42 | F123: 0.13 | J123: 81.37543389 | N123: -1727.640244 | R123: 539.9250597 | U123: 775.3027989 | X123: -692.583024 | AA123: 0.42 | AE123: 0.13 | AI123: 81.37543389 | AM123: 448.2734206 | AR123: 1.246666667 | AT123: -1727.640244 | AU123: 539.9250597 | AV123: 775.3027989 | AW123: -692.583024 | AX123: 0.13 | BN123: Anmerkungen | BO123: Anmerkungen | BP123: remarks | BQ123: Remarques
B124: 0.41 | F124: 0.14 | J124: 85.76053542 | N124: -1843.250811 | R124: 598.742593 | U124: 825.5754543 | X124: -745.8586413 | AA124: 0.41 | AE124: 0.14 | AI124: 85.76053542 | AM124: 429.0258375 | AR124: 1.22 | AT124: -1843.250811 | AU124: 598.742593 | AV124: 825.5754543 | AW124: -745.8586413 | AX124: 0.14 | BN124: Hilfswerte | BO124: Hilfswerte | BP124: calculated data | BQ124: Autres données de calcul
B125: 0.4 | F125: 0.15 | J125: 89.96152965 | N125: -1956.392116 | R125: 660.0293886 | U125: 874.5101066 | X125: -799.1342585 | AA125: 0.4 | AE125: 0.15 | AI125: 89.96152965 | AM125: 411.4519573 | AR125: 1.194444444 | AT125: -1956.392116 | AU125: 660.0293886 | AV125: 874.5101066 | AW125: -799.1342585 | AX125: 0.15 | BN125: Toleranzen nach Mubea-Tellerfedern-Handbuch | BO125: Toleranzen nach Mubea-Tellerfedern-Handbuch | BP125: tolerances concerning Mubea-disc-spring-handbook | BQ125: Tolérances selon Manuel Rondelles Ressorts Mubea
B126: 0.39 | F126: 0.16 | J126: 93.99515358 | N126: =-$AX$5*$AT$5/$AV$3/$AT$1^2*F126*$AT$51*$AY$12*($AX$3*($AY$13/$AT$5-F126*$AT$51*$AY$12/2/$AT$5)+$AX$4)*$AT$56 -> -2067.064159 | R126: =-$AX$5*$AT$5/$AV$3/$AT$1^2*F126*$AT$51*$AY$12*($AX$3*($AY$13/$AT$5-F126*$AT$51*$AY$12/2/$AT$5)-$AX$4)*$AT$56 -> 723.7854466 | U126: 922.1067558 | X126: -852.4098757 | AA126: 0.39 | AE126: 0.16 | AI126: 93.99515358 | AM126: 395.55178 | AR126: 1.17 | AT126: -2067.064159 | AU126: 723.7854466 | AV126: 922.1067558 | AW126: -852.4098757 | AX126: 0.16 | BN126: Aufstellwinkel bei L0: | BO126: Aufstellwinkel bei L0: | BP126: disc-angle at L0: | BQ126: Angle du cone pour Lo:
B127: 0.38 | F127: 0.17 | J127: 97.87814426 | N127: -2175.266939 | R127: 790.0107668 | U127: 968.3654019 | X127: -905.685493 | AA127: 0.38 | AE127: 0.17 | AI127: 97.87814426 | AM127: 381.3253055 | AR127: 1.146666667 | AT127: -2175.266939 | AU127: 790.0107668 | AV127: 968.3654019 | AW127: -905.685493 | AX127: 0.17 | BN127: De bei Planlage: | BO127: De bei Planlage: | BP127: De at flat: | BQ127: De en position plane
B128: 0.37 | F128: 0.18 | J128: 101.6272387 | N128: -2281.000456 | R128: 858.7053495 | U128: 1013.286045 | X128: -958.9611102 | AA128: 0.37 | AE128: 0.18 | AI128: 101.6272387 | AM128: 368.7725339 | AR128: 1.124444444 | AT128: -2281.000456 | AU128: 858.7053495 | AV128: 1013.286045 | AW128: -958.9611102 | AX128: 0.18 | BN128: Di bei Planlage: | BO128: Di bei Planlage: | BP128: Di at flat: | BQ128: Di en position plane
B129: 0.36 | F129: 0.19 | J129: 105.2591739 | N129: -2384.264712 | R129: 929.8691944 | U129: 1056.868685 | X129: -1012.236727 | AA129: 0.36 | AE129: 0.19 | AI129: 105.2591739 | AM129: 357.8934652 | AR129: 1.103333333 | AT129: -2384.264712 | AU129: 929.8691944 | AV129: 1056.868685 | AW129: -1012.236727 | AX129: 0.19 | BN129: Stülpmittelpunkt: | BO129: Stülpmittelpunkt: | BP129: center of rotation: | BQ129: Point de retournement
B130: 0.35 | F130: 0.2 | J130: 108.790687 | N130: -2485.059705 | R130: 1003.502302 | U130: 1099.113322 | X130: -1065.512345 | AA130: 0.35 | AE130: 0.2 | AI130: 108.790687 | AM130: 348.6880994 | AR130: 1.083333333 | AT130: -2485.059705 | AU130: 1003.502302 | AV130: 1099.113322 | AW130: -1065.512345 | AX130: 0.2 | BN130: =IF($AQ$2=1,BO130,IF($AQ$2=2,BP130,IF($AQ$2=3,BQ130,"Wrong language selection"))) -> Vorblöckhöhe LV: | BO130: Vorblöckhöhe LV: | BP130: preset height LV: | BQ130: Hauteur av. mise en bloc
B131: 0.34 | F131: 0.21 | J131: 112.2385149 | N131: -2583.385435 | R131: 1079.604671 | U131: 1140.019956 | X131: -1118.787962 | AA131: 0.34 | AE131: 0.21 | AI131: 112.2385149 | AM131: 341.1564365 | AR131: 1.064444444 | AT131: -2583.385435 | AU131: 1079.604671 | AV131: 1140.019956 | AW131: -1118.787962 | AX131: 0.21 | BN131: Aufstellwinkel bei LV: | BO131: Aufstellwinkel bei LV: | BP131: disc-angle at LV: | BQ131: Angle du cone à Lv:
B132: 0.33 | F132: 0.22 | J132: 115.6193948 | N132: -2679.241904 | R132: 1158.176303 | U132: 1179.588587 | X132: -1172.063579 | AA132: 0.33 | AE132: 0.22 | AI132: 115.6193948 | AM132: 335.2984764 | AR132: 1.046666667 | AT132: -2679.241904 | AU132: 1158.176303 | AV132: 1179.588587 | AW132: -1172.063579 | AX132: 0.22 | BN132: Setzverlust bei 20°C: | BO132: Setzverlust bei 20°C: | BP132: setting at 20°C: | BQ132: Avachissement à 20°C
B133: 0.32 | F133: 0.23 | J133: 118.9500635 | N133: -2772.62911 | R133: 1239.217198 | U133: 1217.819214 | X133: -1225.339196 | AA133: 0.32 | AE133: 0.23 | AI133: 118.9500635 | AM133: 331.1142192 | AR133: 1.03 | AT133: -2772.62911 | AU133: 1239.217198 | AV133: 1217.819214 | AW133: -1225.339196 | AX133: 0.23 | BN133: Setzverlust bei 100°C: | BO133: Setzverlust bei 100°C: | BP133: setting at 100°C: | BQ133: Avachissement à 100°C
B134: 0.31 | F134: 0.24 | J134: 122.2472581 | N134: -2863.547053 | R134: 1322.727354 | U134: 1254.711839 | X134: -1278.614814 | AA134: 0.31 | AE134: 0.24 | AI134: 122.2472581 | AM134: 328.6036649 | AR134: 1.014444444 | AT134: -2863.547053 | AU134: 1322.727354 | AV134: 1254.711839 | AW134: -1278.614814 | AX134: 0.24 | BN134: % nach 48h | BO134: % nach 48h | BP134: % after 48h | BQ134: % après 48h
B135: =IF(ISBLANK($AQ$16),$H$34,$J$18-$AQ$16/$B$23) -> 0.3 | F135: 0.25 | J135: 125.5277158 | N135: -2951.995735 | R135: 1408.706773 | U135: 1290.266461 | X135: -1331.890431 | AA135: 0.3 | AE135: 0.25 | AI135: 125.5277158 | AM135: 327.7668134 | AR135: 1 | AT135: -2951.995735 | AU135: 1408.706773 | AV135: 1290.266461 | AW135: -1331.890431 | AX135: 0.25 | BN135: % nach 1000h | BO135: % nach 1000h | BP135: % after 1000h | BQ135: % après 1000h
B136: =$B$22 ->  | J136: =$J$22 ->  | N136: =$N$22 ->  | R136: =$B$23 -> 1 | V136: =$F$23 -> Feder | Z136: =$J$23 -> 1 | AD136: =$N$23 ->  | BN136: Druckspannung: | BO136: Druckspannung: | BP136: compressive stress: | BQ136: Contrainte de pression
B137: =$B$13 -> Tellerfederabmessung | AC137: =$AE$24 -> Lastpunkte | BN137: Temperatur: | BO137: Temperatur: | BP137: temperature: | BQ137: Température
B138: =$B$14 -> Außendurchm.: | H138: De= | K138: =$J$14 -> 8 | R138: =$AT$53 -> mm | AC138: =$AE$25 -> der Einzelfeder | BN138: Anwendungstemperatur unterhalb der min-Temperatur für diesen Werkstoff | BO138: Anwendungstemperatur unterhalb der min-Temperatur für diesen Werkstoff | BP138: usage-temperature below min-temperature of this material | BQ138: Temp. d'utilisation au-dessous de la temp. mini pour cette matière
B139: =$B$15 -> Innendurchm.: | H139: Di= | K139: =$J$15 -> 3.2 | R139: =$AT$53 -> mm | AC139: =$B$26 -> Last- | AF139: =$AE$26 -> Länge l | AK139: =$AI$26 -> Weg s | AN139: =$AM$26 -> Kraft F | AR139: Hilfe für Spiel | AU139: Hilfe für Setzverlust | BN139: Anwendungstemperatur oberhalb der max-Temperatur für diesen Werkstoff | BO139: Anwendungstemperatur oberhalb der max-Temperatur für diesen Werkstoff | BP139: usage-temperature above max-temperature of this material | BQ139: Temp. d'utilisation au-dessus de la temp. maxi pour cette matière
B140: =$B$16 -> Blechdicke: | H140: t= | K140: =$J$16 -> 0.3 | R140: =$AT$53 -> mm | AC140: =$B$27 -> punkt | AF140: =$AT$53 -> mm | AK140: =$AT$53 -> mm | AN140: =$AT$54 -> N | AR140: =IF($AT$2<16,0.2,IF($AT$2<20,0.3,IF($AT$2<26,0.4,IF($AT$2<31.5,0.5,IF($AT$2<50,0.6,IF($AT$2<80,0.8,IF($AT$2<140,1,IF($AT$2<250,1.6,2)))))))) -> 0.2 | AU140: =$S$34/$AT$56 -> -2951.995735 | BN140: Blechdicke zu groß für diesen Werkstoff | BO140: Blechdicke zu groß für diesen Werkstoff | BP140: material thickness too big for this material | BQ140: Epaisseur trop grande pour cette matière
B141: =$B$17 -> red. Blechdicke: | H141: t'= | K141: =$J$17 -> 0.3 | R141: =$AT$53 -> mm | AC141: =$B$28 -> 0 | AG141: =$AE$28 -> 0.55 | AJ141: =$AL$28 -> 0 | AN141: =$AP$28 -> 0 | AR141: =IF($AT$1<16,0.2,IF($AT$1<20,0.3,IF($AT$1<26,0.4,IF($AT$1<31.5,0.5,IF($AT$1<50,0.6,IF($AT$1<80,0.8,IF($AT$1<140,1,IF($AT$1<250,1.6,2)))))))) -> 0.2 | BN141: Werkstoffwahl | BO141: Werkstoffwahl | BP141: choose mat. | BQ141: Choix matière
B142: =$B$18 -> Federhöhe: | H142: l0= | K142: =$J$18 -> 0.55 | R142: =$AT$53 -> mm | AC142: =IF($AQ$41=0,B$28,IF($AQ$41=1,B$29,IF($AQ$41=2,B$30,IF($AQ$41=3,B$31,IF($AQ$41=4,#REF!,IF($AQ$41=5,#REF!,IF(OR($AQ$41="c",$AQ$41="C"),B$34))))))) -> 1 | AG142: =IF($AQ$41=0,AE$28,IF($AQ$41=1,AE$29,IF($AQ$41=2,AE$30,IF($AQ$41=3,AE$31,IF($AQ$41=4,AE$32,IF($AQ$41=5,AE$33,IF(OR($AQ$41="c",$AQ$41="C"),AE$34))))))) -> 0.488 | AJ142: =IF($AQ$41=0,AL$28,IF($AQ$41=1,AI$29,IF($AQ$41=2,AI$30,IF($AQ$41=3,AI$31,IF($AQ$41=4,AI$32,IF($AQ$41=5,AI$33,IF(OR($AQ$41="c",$AQ$41="C"),AI$34))))))) -> 0.062 | AN142: =IF($AQ$41=0,AP$28,IF($AQ$41=1,AM$29,IF($AQ$41=2,AM$30,IF($AQ$41=3,AM$31,IF($AQ$41=4,AM$32,IF($AQ$41=5,AM$33,IF(OR($AQ$41="c",$AQ$41="C"),AM$34))))))) -> 45.37221045 | AR142: =IF($AT$5<0.6,$AT$5-0.06,IF($AT$5<1.25,$AT$5-0.09,IF($AT$5<3.8,$AT$5-0.12,IF($AT$5<6,$AT$5-0.15,IF($AT$5<15,$AT$5-0.1,IF($AT$5<25,$AT$5-0.12,IF($AT$5<40,$AT$5-0.15))))))) -> 0.24 | AS142: =IF($AT$5<0.6,$AT$5+0.02,IF($AT$5<1.25,$AT$5+0.03,IF($AT$5<3.8,$AT$5+0.04,IF($AT$5<6,$AT$5+0.05,IF($AT$5<15,$AT$5+0.1,IF($AT$5<25,$AT$5+0.12,IF($AT$5<40,$AT$5+0.15))))))) -> 0.32 | BN142: für diesen Werkstoff: | BO142: für diesen Werkstoff: | BP142: for this material: | BQ142: pour cette matière
B143: =$B$36 -> Werkstoff: | H143: =$N$36 -> 1.8159 (51 CrV 4) | AC143: =IF($AQ$42=0,B$28,IF($AQ$42=1,B$29,IF($AQ$42=2,B$30,IF($AQ$42=3,B$31,IF($AQ$42=4,#REF!,IF($AQ$42=5,#REF!,IF(OR($AQ$42="c",$AQ$42="C"),B$34))))))) -> 2 | AG143: =IF($AQ$42=0,AE$28,IF($AQ$42=1,AE$29,IF($AQ$42=2,AE$30,IF($AQ$42=3,AE$31,IF($AQ$42=4,AE$32,IF($AQ$42=5,AE$33,IF(OR($AQ$42="c",$AQ$42="C"),AE$34))))))) -> 0.363 | AJ143: =IF($AQ$42=0,AL$28,IF($AQ$42=1,AI$29,IF($AQ$42=2,AI$30,IF($AQ$42=3,AI$31,IF($AQ$42=4,AI$32,IF($AQ$42=5,AI$33,IF(OR($AQ$42="c",$AQ$42="C"),AI$34))))))) -> 0.187 | AN143: =IF($AQ$42=0,AP$28,IF($AQ$42=1,AM$29,IF($AQ$42=2,AM$30,IF($AQ$42=3,AM$31,IF($AQ$42=4,AM$32,IF($AQ$42=5,AM$33,IF(OR($AQ$42="c",$AQ$42="C"),AM$34))))))) -> 104.1808992 | AR143: =IF($AT$5<1.25,$AT$6-0.05,IF($AT$5<2,$AT$6-0.08,IF($AT$5<3,$AT$6-0.1,IF($AT$5<6,$AT$6-0.15,IF($AT$5<15,$AT$6-0.3,IF($AT$5<25,$AT$6-0.5,IF($AT$5<40,$AT$6-1))))))) -> 0.5 | AS143: =IF($AT$5<1.25,$AT$6+0.1,IF($AT$5<2,$AT$6+0.15,IF($AT$5<3,$AT$6+0.2,IF($AT$5<6,$AT$6+0.3,IF($AT$5<15,$AT$6+0.3,IF($AT$5<25,$AT$6+0.5,IF($AT$5<40,$AT$6+1))))))) -> 0.65 | BN143: Keine direkte Lebensdauerberechnung. | BO143: Keine direkte Lebensdauerberechnung. | BP143: No direct calculation of fatigue life. | BQ143: Pas de calculation directe de la durée de vie.
B144: =$X$36 -> E-Modul: | H144: =$AE$36 -> 206000 | M144: =$AT$59 -> MPa | Q144: =$BN$51 -> bei | U144: =$AE$37 -> 20 | Y144: =$AL$37 -> °C | AD144: =$B$34 -> Plan | AG144: =$AE$34 -> 0.3 | AJ144: =$AI$34 -> 0.25 | AN144: =$AM$34 -> 125.5277158 | AR144: Hilfe für Dicke | BN144: Temperatur zu niedrig | BO144: Temperatur zu niedrig | BP144: Temperature too low | BQ144: Température trop petit
BN145: Temperatur zu hoch | BO145: Temperatur zu hoch | BP145: Temperature too high | BQ145: Température trop grand
BN146: 0 | BQ146: ="Force min au pt "&$AQ$41&" :" -> Force min au pt 1 :
BN147: 0 | BQ147: ="Force max au pt "&$AQ$41&" :" -> Force max au pt 1 :
BN148: 0 | BQ148: ="Force min au pt "&$AQ$42&" :" -> Force min au pt 2 :
BN149: 0 | BQ149: ="Force max au pt "&$AQ$42&" :" -> Force max au pt 2 :
BN150: Einheiten | BO150: Einheiten | BP150: Dimensions | BQ150: Dimensions
BN151: Fehler! Zelle | BO151: Fehler! Zelle | BP151: Error! Cell | BQ151: Erreur! Cellule
BN152: nicht im vorgesehenen Bereich A30-L34 | BO152: nicht im vorgesehenen Bereich A30-L34 | BP152: not in designated Cell Area A30-L34 | BQ152: pas dans la zone désignée A30-L34
BN153: die Einfederung in Prozent | BO153: die Einfederung in Prozent | BP153: Deflection in Percent | BQ153: Déflexion en pourcentage
BN154: Fehler! Spalte B (Lastpunkt) darf für die Berechnung nicht angewählt werden. | BO154: Fehler! Spalte B (Lastpunkt) darf für die Berechnung nicht angewählt werden. | BP154: Error! Column B (Loadpoint No.) and C (Springheight) are not allowed for calculation. | BQ154: Erreur! La colonne B (point de charge) et C (hauteur du ressort) ne doivent pas être sélectionnées pour le calcul
BN155: die Federhöhe in mm | BO155: ="die Federhöhe in"&$AT$53 -> die Federhöhe in mm | BP155: ="Springheight in"&$AT$53 -> Springheight in mm | BQ155: Hauteur du ressort en
BN156: den Federweg in mm | BO156: ="den Federweg in"&$AT$53 -> den Federweg in mm | BP156: ="Springtravel in"&$AT$53 -> Springtravel in mm | BQ156: Course du ressort en
BN157: die Federkraft in N | BO157: ="die Federkraft in"&$AT$54 -> die Federkraft in N | BP157: ="Springforce in"&$AT$54 -> Springforce in N | BQ157: Effort du ressort en
BN158: die Spannung an Kante I in MPa | BO158: ="die Spannung an Kante I in "&$AT$55 -> die Spannung an Kante I in MPa | BP158: ="Stress at Edge I in "&$AT$55 -> Stress at Edge I in MPa | BQ158: Contrainte à l'angle I en
BN159: die Spannung an Kante II in MPa | BO159: ="die Spannung an Kante II in "&$AT$55 -> die Spannung an Kante II in MPa | BP159: ="Stress at Edge II in "&$AT$55 -> Stress at Edge II in MPa | BQ159: Contrainte à l'angle II en
BN160: die Spannung an Kante III in MPa | BO160: ="die Spannung an Kante III in "&$AT$55 -> die Spannung an Kante III in MPa | BP160: ="Stress at Edge III in "&$AT$55 -> Stress at Edge III in MPa | BQ160: Contrainte à l'angle III en
BN161: die Sigma OM Spannung in MPa | BO161: ="die Sigma OM Spannung in "&$AT$55 -> die Sigma OM Spannung in MPa | BP161: ="Sigma OM Stress in "&$AT$55 -> Sigma OM Stress in MPa | BQ161: Contrainte sigma OM en
BN162: =IF($AQ$2=1,BO162,IF($AQ$2=2,BP162,IF($AQ$2=3,BQ162,"Wrong language selection"))) -> die Länge der Federsäule in mm | BO162: ="die Länge der Federsäule in"&$AT$53 -> die Länge der Federsäule in mm | BP162: ="Height of Springstack in"&$AT$53 -> Height of Springstack in mm | BQ162: Hauteur de l'empilage en
BN163: den Federweg der Federsäule in mm | BO163: ="den Federweg der Federsäule in"&$AT$53 -> den Federweg der Federsäule in mm | BP163: ="Travel of Springstack in"&$AT$53 -> Travel of Springstack in mm | BQ163: Course de l'empilage en
BN164: die Federkraft der Federsäule in mm | BO164: ="die Federkraft der Federsäule in"&$AT$53 -> die Federkraft der Federsäule in mm | BP164: ="Springforce of Springstack in "&$AT$54 -> Springforce of Springstack in N | BQ164: Force de l'empilage en
BN165: Ups, das hätte nicht passieren sollen, bitte wenden Sie sich an Mubea. | BO165: Ups, das hätte nicht passieren sollen, bitte wenden Sie sich an Mubea. | BP165: Error, which shout not happen, please contact Mubea. | BQ165: Erreur, qui n'aurait pas dû se produire, veuillez contacter Mubea.
BN166: Bitte Zielwert für | BO166: Bitte Zielwert für | BP166: Please insert Target Value for | BQ166: Merci d'intègrer une valeur cible pour
BN167: von Lastpunkt | BO167: von Lastpunkt | BP167: of Loadpoint | BQ167: Du point de charge
BN168: angeben | BO168: angeben | BP168: ="" ->  | BQ168: Spécifier
BN169: Zielvorgabe für die Berechnung | BO169: Zielvorgabe für die Berechnung | BP169: Targetvalue for Calculation | BQ169: Valeur cible pour le calcul
BN170: Zielwert- | BO170: Zielwert- | BP170: Target- | BQ170: Valeur cible
BN171: vorgabe | BO171: vorgabe | BP171: value | BQ171: Données
BN172: Fehler! Ungültige Zeile ausgewählt. | BO172: Fehler! Ungültige Zeile ausgewählt. | BP172: Error! Invalid row selected. | BQ172: Erreur! Ligne non valide sélectionnée.
BN173: ist abzustimmen | BO173: ist abzustimmen | BP173: to be defined | BQ173: à définir
BN174: Revision | BO174: Revision | BP174: Revision | BQ174: Révision
BN175: Kunde | BO175: Kunde | BP175: Customer | BQ175: Client
BN176: h0/t Verhältnis zu groß, Feder nicht in wechselsinnig geschichteter Säule einsetzbar | BO176: h0/t Verhältnis zu groß, Feder nicht in wechselsinnig geschichteter Säule einsetzbar | BP176: h0/t ratio too large, spring cannot be used in alternately layered stack | BQ176: Ratio ho/t trop élevé, montage des ressorts dans un empilage en opposition non réalisable
BN177: Lebensdauer ist durch einen Schwingversuch zu bestätigen | BO177: Lebensdauer ist durch einen Schwingversuch zu bestätigen | BP177: Lifetime to be confirmed by vibration test | BQ177: La durée de vie doit être confirmée par un essai de cyclage
BN178: Federgeometrie außerhalb der Normvorgaben | BO178: Federgeometrie außerhalb der Normvorgaben | BP178: Spring geometry outside the standard specifications | BQ178: Géométrie du ressort en dehors des spécifications de la norme.
BN179: Tellerfeder nicht setzfest | BO179: Tellerfeder nicht setzfest | BP179: Springs will have set loss | BQ179: Ressort non mis en bloc
BN180: Oberspannung zu groß | BO180: Oberspannung zu groß | BP180: upper stress too high | BQ180: Contrainte sup. trop grande
BN181: 0
BN182: 0
BN183: 0
BN184: 0
BN185: 0
BN186: 0
BN187: 0
BN188: 0
BN189: 0
BN190: 0
BN191: 0
BN192: 0
BN193: DIN-Toleranzen | BO193: DIN-Toleranzen | BP193: DIN-Tolerances | BQ193: Tolérances DIN
BN194: Sondermaterial | BO194: Sondermaterial | BP194: special material | BQ194: Matière spéciale
BN195: Prüfung aller Federmerkmale bei 20°C | BO195: Prüfung aller Federmerkmale bei 20°C | BP195: Testing of all spring characteristics at 20°C | BQ195: Contrôle de toutes les caractéristiques du ressort à 20°C
BN196: Bitte einen gültigen Lastpunkt eingeben. | BO196: Bitte einen gültigen Lastpunkt eingeben. | BP196: Please enter a valid loadpoint. | BQ196: Entrez un point de charge valide, SVP.

Sheet Standard
A1: =Programm!BN88 -> Bestell- | B1: =Programm!BN85 -> kopieren | D1: =Programm!BN86 -> Standardabmessungen | I1: s = 0,25 h0 | N1: s = 0,50 h0 | S1: s = 0,75 h0 | X1: s = 1,00 h0 | AC1: =Programm!BN90 -> Masse 1000 Stück
A2: =Programm!BN89 -> Nr.: | B2: De | C2: Di | D2: t | E2: t' | F2: l0 | G2: h0 | H2: h0/t | I2: s | J2: F | K2: s1 | L2: s2 | M2: s3 | N2: s | O2: F | P2: s1 | Q2: s2 | R2: s3 | S2: s | T2: F | U2: s1 | V2: s2 | W2: s3 | X2: s | Y2: F | Z2: s1 | AA2: s2 | AB2: s3 | AC2: in kg
A3: 17 0001 | B3: 8 | C3: 3.2 | D3: 0.3 | F3: 0.55 | G3: 0.25 | H3: 0.833 | I3: 0.062 | J3: 45.6 | K3: 883 | L3: 207 | M3: 401 | N3: 0.125 | O3: 79.1 | P3: 1669 | Q3: 511 | R3: 750 | S3: 0.187 | T3: 104.3 | U3: 2359 | V3: 912 | W3: 1046 | X3: 0.25 | Y3: 125.5 | Z3: 2952 | AA3: 1409 | AB3: 1290 | AC3: 0.099
A4: 17 0002 | B4: 8 | C4: 3.2 | D4: 0.4 | F4: 0.6 | G4: 0.2 | H4: 0.5 | I4: 0.05 | J4: 69.2 | K4: 797 | L4: 365 | M4: 350 | N4: 0.1 | O4: 130.1 | P4: 1533 | Q4: 792 | R4: 666 | S4: 0.15 | T4: 185.5 | U4: 2207 | V4: 1281 | W4: 949 | X4: 0.2 | Y4: 238 | Z4: 2820 | AA4: 1832 | AB4: 1198 | AC4: 0.133
A5: 17 0003 | B5: 8 | C5: 3.2 | D5: 0.5 | F5: 0.7 | G5: 0.2 | H5: 0.4 | I5: 0.05 | J5: 128.4 | K5: 943 | L5: 511 | M5: 408 | N5: 0.1 | O5: 246.4 | P5: 1824 | Q5: 1083 | R5: 782 | S5: 0.15 | T5: 357.4 | U5: 2643 | V5: 1717 | W5: 1123 | X5: 0.2 | Y5: 464.9 | Z5: 3401 | AA5: 2413 | AB5: 1430 | AC5: 0.166
A6: 17 0004 | B6: 8 | C6: 4.2 | D6: 0.2 | F6: 0.45 | G6: 0.25 | H6: 1.25 | I6: 0.062 | J6: 21.2 | K6: 696 | L6: 8 | M6: 409 | N6: 0.125 | O6: 33.3 | P6: 1294 | Q6: 114 | R6: 753 | S6: 0.187 | T6: 39.2 | U6: 1794 | V6: 319 | W6: 1034 | X6: 0.25 | Y6: 42 | Z6: 2195 | AA6: 622 | AB6: 1251 | AC6: 0.057
A7: 17 0005 | B7: 8 | C7: 4.2 | D7: 0.3 | F7: 0.55 | G7: 0.25 | H7: 0.833 | I7: 0.062 | J7: 51.6 | K7: 872 | L7: 184 | M7: 501 | N7: 0.125 | O7: 89.3 | P7: 1646 | Q7: 467 | R7: 938 | S7: 0.187 | T7: 117.9 | U7: 2322 | V7: 847 | W7: 1312 | X7: 0.25 | Y7: 141.8 | Z7: 2900 | AA7: 1326 | AB7: 1620 | AC7: 0.086
A8: 17 0006 | B8: 8 | C8: 4.2 | D8: 0.4 | F8: 0.6 | G8: 0.2 | H8: 0.5 | I8: 0.05 | J8: 78.2 | K8: 784 | L8: 343 | M8: 439 | N8: 0.1 | O8: 147 | P8: 1504 | Q8: 749 | R8: 837 | S8: 0.15 | T8: 209.5 | U8: 2162 | V8: 1218 | W8: 1194 | X8: 0.2 | Y8: 268.9 | Z8: 2757 | AA8: 1750 | AB8: 1511 | AC8: 0.114
A9: 17 0007 | B9: 10 | C9: 3.2 | D9: 0.3 | F9: 0.65 | G9: 0.35 | H9: 1.166 | I9: 0.087 | J9: 51.1 | K9: 979 | L9: 90 | M9: 378 | N9: 0.175 | O9: 81.6 | P9: 1831 | Q9: 308 | R9: 697 | S9: 0.262 | T9: 98.3 | U9: 2556 | V9: 652 | W9: 957 | X9: 0.35 | Y9: 108 | Z9: 3154 | AA9: 1123 | AB9: 1158 | AC9: 0.166
A10: 17 0008 | B10: 10 | C10: 3.2 | D10: 0.4 | F10: 0.7 | G10: 0.3 | H10: 0.75 | I10: 0.075 | J10: 75.1 | K10: 938 | L10: 285 | M10: 348 | N10: 0.15 | O10: 132.9 | P10: 1782 | Q10: 663 | R10: 652 | S10: 0.225 | T10: 179.1 | U10: 2533 | V10: 1134 | W10: 913 | X10: 0.3 | Y10: 219.6 | Z10: 3191 | AA10: 1698 | AB10: 1130 | AC10: 0.221
A11: 17 0009 | B11: 10 | C11: 3.2 | D11: 0.5 | F11: 0.85 | G11: 0.35 | H11: 0.7 | I11: 0.087 | J11: 165.3 | K11: 1336 | L11: 447 | M11: 492 | N11: 0.175 | O11: 296.1 | P11: 2544 | Q11: 1021 | R11: 925 | S11: 0.262 | T11: 404 | U11: 3626 | V11: 1721 | W11: 1299 | X11: 0.35 | Y11: 500.4 | Z11: 4580 | AA11: 2549 | AB11: 1614 | AC11: 0.277
A12: 17 0010 | B12: 10 | C12: 4.2 | D12: 0.4 | F12: 0.7 | G12: 0.3 | H12: 0.75 | I12: 0.075 | J12: 79.3 | K12: 860 | L12: 241 | M12: 405 | N12: 0.15 | O12: 140.3 | P12: 1632 | Q12: 570 | R12: 760 | S12: 0.225 | T12: 189.1 | U12: 2316 | V12: 988 | W12: 1066 | X12: 0.3 | Y12: 231.8 | Z12: 2911 | AA12: 1495 | AB12: 1322 | AC12: 0.203
A13: 17 0011 | B13: 10 | C13: 4.2 | D13: 0.5 | F13: 0.75 | G13: 0.25 | H13: 0.5 | I13: 0.062 | J13: 109.8 | K13: 789 | L13: 359 | M13: 361 | N13: 0.125 | O13: 206.3 | P13: 1516 | Q13: 778 | R13: 688 | S13: 0.187 | T13: 294 | U13: 2182 | V13: 1260 | W13: 981 | X13: 0.25 | Y13: 377.3 | Z13: 2786 | AA13: 1803 | AB13: 1239 | AC13: 0.254
A14: 17 0012 | B14: 10 | C14: 4.2 | D14: 0.6 | F14: 0.85 | G14: 0.25 | H14: 0.416 | I14: 0.062 | J14: 181.5 | K14: 904 | L14: 473 | M14: 410 | N14: 0.125 | O14: 347.2 | P14: 1746 | Q14: 1008 | R14: 785 | S14: 0.187 | T14: 502.3 | U14: 2526 | V14: 1604 | W14: 1125 | X14: 0.25 | Y14: 652 | Z14: 3245 | AA14: 2262 | AB14: 1432 | AC14: 0.304
A15: 17 0013 | B15: 10 | C15: 5.2 | D15: 0.25 | F15: 0.55 | G15: 0.3 | H15: 1.2 | I15: 0.075 | J15: 30.4 | K15: 654 | L15: 21 | M15: 380 | N15: 0.15 | O15: 48.2 | P15: 1217 | Q15: 133 | R15: 702 | S15: 0.225 | T15: 57.5 | U15: 1691 | V15: 336 | W15: 965 | X15: 0.3 | Y15: 62.6 | Z15: 2074 | AA15: 628 | AB15: 1169 | AC15: 0.112
A16: 17 0014 | B16: 10 | C16: 5.2 | D16: 0.4 | F16: 0.7 | G16: 0.3 | H16: 0.75 | I16: 0.075 | J16: 87.8 | K16: 857 | L16: 224 | M16: 485 | N16: 0.15 | O16: 155.3 | P16: 1623 | Q16: 539 | R16: 912 | S16: 0.225 | T16: 209.3 | U16: 2299 | V16: 943 | W16: 1281 | X16: 0.3 | Y16: 256.5 | Z16: 2884 | AA16: 1439 | AB16: 1591 | AC16: 0.18
A17: 17 0015 | B17: 10 | C17: 5.2 | D17: 0.5 | F17: 0.75 | G17: 0.25 | H17: 0.5 | I17: 0.062 | J17: 121.5 | K17: 782 | L17: 343 | M17: 435 | N17: 0.125 | O17: 228.3 | P17: 1502 | Q17: 749 | R17: 829 | S17: 0.187 | T17: 325.3 | U17: 2159 | V17: 1218 | W17: 1182 | X17: 0.25 | Y17: 417.5 | Z17: 2753 | AA17: 1749 | AB17: 1495 | AC17: 0.225
A18: 17 0016 | B18: 12 | C18: 4.2 | D18: 0.4 | F18: 0.8 | G18: 0.4 | H18: 1 | I18: 0.1 | J18: 85.1 | K18: 936 | L18: 149 | M18: 385 | N18: 0.2 | O18: 141.4 | P18: 1760 | Q18: 411 | R18: 714 | S18: 0.3 | T18: 178.3 | U18: 2472 | V18: 786 | W18: 988 | X18: 0.4 | Y18: 205.6 | Z18: 3071 | AA18: 1272 | AB18: 1205 | AC18: 0.311
A19: 17 0017 | B19: 12 | C19: 4.2 | D19: 0.5 | F19: 0.9 | G19: 0.4 | H19: 0.8 | I19: 0.1 | J19: 142.6 | K19: 1072 | L19: 285 | M19: 432 | N19: 0.2 | O19: 249 | P19: 2032 | Q19: 683 | R19: 809 | S19: 0.3 | T19: 331.4 | U19: 2879 | V19: 1193 | W19: 1130 | X19: 0.4 | Y19: 401.7 | Z19: 3614 | AA19: 1815 | AB19: 1395 | AC19: 0.389
A20: 17 0018 | B20: 12 | C20: 4.2 | D20: 0.6 | F20: 1 | G20: 0.4 | H20: 0.666 | I20: 0.1 | J20: 224.1 | K20: 1208 | L20: 421 | M20: 480 | N20: 0.2 | O20: 404.9 | P20: 2303 | Q20: 954 | R20: 904 | S20: 0.3 | T20: 556.8 | U20: 3286 | V20: 1600 | W20: 1273 | X20: 0.4 | Y20: 694.1 | Z20: 4157 | AA20: 2358 | AB20: 1585 | AC20: 0.467
A21: 17 0019 | B21: 12 | C21: 5.2 | D21: 0.5 | F21: 0.9 | G21: 0.4 | H21: 0.8 | I21: 0.1 | J21: 150.4 | K21: 1015 | L21: 251 | M21: 493 | N21: 0.2 | O21: 262.7 | P21: 1921 | Q21: 611 | R21: 923 | S21: 0.3 | T21: 349.6 | U21: 2717 | V21: 1080 | W21: 1291 | X21: 0.4 | Y21: 423.8 | Z21: 3404 | AA21: 1658 | AB21: 1596 | AC21: 0.36
A22: 17 0020 | B22: 12 | C22: 5.2 | D22: 0.6 | F22: 0.95 | G22: 0.35 | H22: 0.583 | I22: 0.087 | J22: 195.9 | K22: 957 | L22: 372 | M22: 455 | N22: 0.175 | O22: 361.2 | P22: 1830 | Q22: 828 | R22: 863 | S22: 0.262 | T22: 506.1 | U22: 2620 | V22: 1367 | W22: 1222 | X22: 0.35 | Y22: 640.7 | Z22: 3326 | AA22: 1990 | AB22: 1534 | AC22: 0.432
A23: 17 0021 | B23: 12 | C23: 6.2 | D23: 0.5 | F23: 0.85 | G23: 0.35 | H23: 0.7 | I23: 0.087 | J23: 133.5 | K23: 845 | L23: 249 | M23: 475 | N23: 0.175 | O23: 239.2 | P23: 1605 | Q23: 582 | R23: 894 | S23: 0.262 | T23: 326.4 | U23: 2280 | V23: 1001 | W23: 1259 | X23: 0.35 | Y23: 404.2 | Z23: 2869 | AA23: 1506 | AB23: 1569 | AC23: 0.325
A24: 17 0022 | B24: 12 | C24: 6.2 | D24: 0.6 | F24: 0.95 | G24: 0.35 | H24: 0.583 | I24: 0.087 | J24: 213.6 | K24: 955 | L24: 358 | M24: 531 | N24: 0.175 | O24: 393.8 | P24: 1824 | Q24: 801 | R24: 1007 | S24: 0.262 | T24: 551.7 | U24: 2608 | V24: 1329 | W24: 1429 | X24: 0.35 | Y24: 698.5 | Z24: 3307 | AA24: 1943 | AB24: 1795 | AC24: 0.39
A25: 17 0023 | B25: 12.5 | C25: 6.2 | D25: 0.35 | F25: 0.8 | G25: 0.45 | H25: 1.285 | I25: 0.112 | J25: 83.5 | K25: 903 | L25: 2 | M25: 506 | N25: 0.225 | O25: 129.8 | P25: 1677 | Q25: 134 | R25: 932 | S25: 0.337 | T25: 151.2 | U25: 2323 | V25: 393 | W25: 1278 | X25: 0.45 | Y25: 160.2 | Z25: 2840 | AA25: 782 | AB25: 1542 | AC25: 0.254
A26: 17 0024 | B26: 12.5 | C26: 6.2 | D26: 0.5 | F26: 0.85 | G26: 0.35 | H26: 0.7 | I26: 0.087 | J26: 120 | K26: 775 | L26: 231 | M26: 420 | N26: 0.175 | O26: 215.1 | P26: 1473 | Q26: 539 | R26: 791 | S26: 0.262 | T26: 293.4 | U26: 2093 | V26: 925 | W26: 1114 | X26: 0.35 | Y26: 363.4 | Z26: 2635 | AA26: 1389 | AB26: 1388 | AC26: 0.363
A27: 17 0025 | B27: 12.5 | C27: 6.2 | D27: 0.7 | F27: 1 | G27: 0.3 | H27: 0.428 | I27: 0.075 | J27: 239.4 | K27: 804 | L27: 403 | M27: 425 | N27: 0.15 | O27: 456.8 | P27: 1550 | Q27: 864 | R27: 814 | S27: 0.225 | T27: 659.5 | U27: 2240 | V27: 1382 | W27: 1167 | X27: 0.3 | Y27: 854.9 | Z27: 2872 | AA27: 1957 | AB27: 1484 | AC27: 0.508
A28: 17 0026 | B28: 14 | C28: 7.2 | D28: 0.35 | F28: 0.8 | G28: 0.45 | H28: 1.285 | I28: 0.112 | J28: 68 | K28: 723 | L28: -11 | M28: 418 | N28: 0.225 | O28: 105.7 | P28: 1343 | Q28: 103 | R28: 770 | S28: 0.337 | T28: 123.2 | U28: 1860 | V28: 309 | W28: 1055 | X28: 0.45 | Y28: 130.5 | Z28: 2273 | AA28: 619 | AB28: 1274 | AC28: 0.311
A29: 17 0027 | B29: 14 | C29: 7.2 | D29: 0.5 | F29: 0.9 | G29: 0.4 | H29: 0.8 | I29: 0.1 | J29: 120.1 | K29: 745 | L29: 173 | M29: 419 | N29: 0.2 | O29: 209.8 | P29: 1408 | Q29: 428 | R29: 787 | S29: 0.3 | T29: 279.2 | U29: 1990 | V29: 764 | W29: 1101 | X29: 0.4 | Y29: 338.4 | Z29: 2490 | AA29: 1182 | AB29: 1363 | AC29: 0.444
A30: 17 0028 | B30: 14 | C30: 7.2 | D30: 0.8 | F30: 1.1 | G30: 0.3 | H30: 0.375 | I30: 0.075 | J30: 283.8 | K30: 712 | L30: 390 | M30: 386 | N30: 0.15 | O30: 547.2 | P30: 1377 | Q30: 826 | R30: 743 | S30: 0.225 | T30: 796.8 | U30: 1997 | V30: 1308 | W30: 1071 | X30: 0.3 | Y30: 1040 | Z30: 2571 | AA30: 1836 | AB30: 1369 | AC30: 0.711
A31: 17 0029 | B31: 15 | C31: 5.2 | D31: 0.4 | F31: 0.95 | G31: 0.55 | H31: 1.375 | I31: 0.137 | J31: 101.2 | K31: 957 | L31: 3 | M31: 401 | N31: 0.275 | O31: 154.4 | P31: 1777 | Q31: 142 | R31: 735 | S31: 0.412 | T31: 175.5 | U31: 2462 | V31: 417 | W31: 1002 | X31: 0.55 | Y31: 180.7 | Z31: 3010 | AA31: 828 | AB31: 1202 | AC31: 0.488
A32: 17 0030 | B32: 15 | C32: 5.2 | D32: 0.5 | F32: 1 | G32: 0.5 | H32: 1 | I32: 0.125 | J32: 132.8 | K32: 939 | L32: 151 | M32: 383 | N32: 0.25 | O32: 220.6 | P32: 1766 | Q32: 414 | R32: 711 | S32: 0.375 | T32: 278.2 | U32: 2480 | V32: 790 | W32: 983 | X32: 0.5 | Y32: 320.9 | Z32: 3082 | AA32: 1279 | AB32: 1199 | AC32: 0.61
A33: 17 0031 | B33: 15 | C33: 5.2 | D33: 0.6 | F33: 1.05 | G33: 0.45 | H33: 0.75 | I33: 0.112 | J33: 170.8 | K33: 908 | L33: 269 | M33: 361 | N33: 0.225 | O33: 302.1 | P33: 1725 | Q33: 630 | R33: 678 | S33: 0.337 | T33: 407.2 | U33: 2451 | V33: 1082 | W33: 949 | X33: 0.45 | Y33: 499 | Z33: 3085 | AA33: 1625 | AB33: 1176 | AC33: 0.732
A34: 17 0032 | B34: 15 | C34: 5.2 | D34: 0.7 | F34: 1.25 | G34: 0.55 | H34: 0.785 | I34: 0.137 | J34: 340.2 | K34: 1317 | L34: 362 | M34: 526 | N34: 0.275 | O34: 596.4 | P34: 2497 | Q34: 861 | R34: 985 | S34: 0.412 | T34: 796.5 | U34: 3541 | V34: 1496 | W34: 1376 | X34: 0.55 | Y34: 968.6 | Z34: 4449 | AA34: 2268 | AB34: 1701 | AC34: 0.854
A35: 17 0033 | B35: 15 | C35: 6.2 | D35: 0.5 | F35: 1 | G35: 0.5 | H35: 1 | I35: 0.125 | J35: 138.1 | K35: 895 | L35: 129 | M35: 424 | N35: 0.25 | O35: 229.4 | P35: 1680 | Q35: 368 | R35: 787 | S35: 0.375 | T35: 289.4 | U35: 2356 | V35: 716 | W35: 1089 | X35: 0.5 | Y35: 333.7 | Z35: 2923 | AA35: 1173 | AB35: 1331 | AC35: 0.575
A36: 17 0034 | B36: 15 | C36: 6.2 | D36: 0.6 | F36: 1.05 | G36: 0.45 | H36: 0.75 | I36: 0.112 | J36: 177.6 | K36: 863 | L36: 243 | M36: 400 | N36: 0.225 | O36: 314.2 | P36: 1638 | Q36: 574 | R36: 752 | S36: 0.337 | T36: 423.5 | U36: 2323 | V36: 994 | W36: 1054 | X36: 0.45 | Y36: 519 | Z36: 2921 | AA36: 1503 | AB36: 1307 | AC36: 0.69
A37: 17 0035 | B37: 15 | C37: 6.2 | D37: 0.7 | F37: 1.1 | G37: 0.4 | H37: 0.571 | I37: 0.1 | J37: 222.4 | K37: 818 | L37: 328 | M37: 373 | N37: 0.2 | O37: 411.1 | P37: 1567 | Q37: 727 | R37: 707 | S37: 0.3 | T37: 577.5 | U37: 2245 | V37: 1195 | W37: 1002 | X37: 0.4 | Y37: 732.6 | Z37: 2854 | AA37: 1734 | AB37: 1258 | AC37: 0.805
A38: 17 0036 | B38: 15 | C38: 8.2 | D38: 0.7 | F38: 1.1 | G38: 0.4 | H38: 0.571 | I38: 0.1 | J38: 256.3 | K38: 819 | L38: 311 | M38: 479 | N38: 0.2 | O38: 473.9 | P38: 1566 | Q38: 694 | R38: 909 | S38: 0.3 | T38: 665.6 | U38: 2240 | V38: 1150 | W38: 1291 | X38: 0.4 | Y38: 844.4 | Z38: 2841 | AA38: 1679 | AB38: 1624 | AC38: 0.681
A39: 17 0037 | B39: 15 | C39: 8.2 | D39: 0.8 | F39: 1.2 | G39: 0.4 | H39: 0.5 | I39: 0.1 | J39: 366.8 | K39: 900 | L39: 391 | M39: 523 | N39: 0.2 | O39: 689.3 | P39: 1727 | Q39: 856 | R39: 997 | S39: 0.3 | T39: 982.3 | U39: 2482 | V39: 1392 | W39: 1423 | X39: 0.4 | Y39: 1261 | Z39: 3164 | AA39: 2002 | AB39: 1800 | AC39: 0.778
A40: 17 0038 | B40: 16 | C40: 8.2 | D40: 0.4 | F40: 0.9 | G40: 0.5 | H40: 1.25 | I40: 0.125 | J40: 83.7 | K40: 693 | L40: 10 | M40: 399 | N40: 0.25 | O40: 131.2 | P40: 1289 | Q40: 117 | R40: 735 | S40: 0.375 | T40: 154.3 | U40: 1786 | V40: 322 | W40: 1009 | X40: 0.5 | Y40: 165.4 | Z40: 2186 | AA40: 624 | AB40: 1220 | AC40: 0.465
A41: 17 0039 | B41: 16 | C41: 8.2 | D41: 0.6 | F41: 1.05 | G41: 0.45 | H41: 0.75 | I41: 0.112 | J41: 172 | K41: 751 | L41: 197 | M41: 420 | N41: 0.225 | O41: 304.3 | P41: 1423 | Q41: 474 | R41: 790 | S41: 0.337 | T41: 410 | U41: 2016 | V41: 830 | W41: 1109 | X41: 0.45 | Y41: 502.5 | Z41: 2530 | AA41: 1264 | AB41: 1377 | AC41: 0.698
A42: 17 0040 | B42: 16 | C42: 8.2 | D42: 0.9 | F42: 1.25 | G42: 0.35 | H42: 0.388 | I42: 0.087 | J42: 362.5 | K42: 721 | L42: 386 | M42: 391 | N42: 0.175 | O42: 697 | P42: 1394 | Q42: 820 | R42: 751 | S42: 0.262 | T42: 1013 | U42: 2019 | V42: 1301 | W42: 1080 | X42: 0.35 | Y42: 1319 | Z42: 2596 | AA42: 1831 | AB42: 1379 | AC42: 1.047
A43: 17 0041 | B43: 18 | C43: 6.2 | D43: 0.4 | F43: 1 | G43: 0.6 | H43: 1.5 | I43: 0.15 | J43: 84.6 | K43: 759 | L43: -30 | M43: 319 | N43: 0.3 | O43: 126.1 | P43: 1406 | Q43: 52 | R43: 583 | S43: 0.45 | T43: 138.6 | U43: 1940 | V43: 247 | W43: 791 | X43: 0.6 | Y43: 136.7 | Z43: 2361 | AA43: 555 | AB43: 944 | AC43: 0.704
A44: 17 0042 | B44: 18 | C44: 6.2 | D44: 0.5 | F44: 1.1 | G44: 0.6 | H44: 1.2 | I44: 0.15 | J44: 129.9 | K44: 851 | L44: 61 | M44: 350 | N44: 0.3 | O44: 205.7 | P44: 1588 | Q44: 234 | R44: 646 | S44: 0.45 | T44: 245.4 | U44: 2213 | V44: 520 | W44: 885 | X44: 0.6 | Y44: 267 | Z44: 2725 | AA44: 920 | AB44: 1070 | AC44: 0.88
A45: 17 0043 | B45: 18 | C45: 6.2 | D45: 0.6 | F45: 1.2 | G45: 0.6 | H45: 1 | I45: 0.15 | J45: 191.1 | K45: 942 | L45: 152 | M45: 382 | N45: 0.3 | O45: 317.3 | P45: 1770 | Q45: 416 | R45: 708 | S45: 0.45 | T45: 400.3 | U45: 2486 | V45: 794 | W45: 980 | X45: 0.6 | Y45: 461.6 | Z45: 3090 | AA45: 1284 | AB45: 1195 | AC45: 1.056
A46: 17 0044 | B46: 18 | C46: 6.2 | D46: 0.7 | F46: 1.4 | G46: 0.7 | H46: 1 | I46: 0.175 | J46: 354.1 | K46: 1282 | L46: 207 | M46: 520 | N46: 0.35 | O46: 588 | P46: 2410 | Q46: 567 | R46: 964 | S46: 0.525 | T46: 741.7 | U46: 3384 | V46: 1080 | W46: 1333 | X46: 0.7 | Y46: 855.2 | Z46: 4205 | AA46: 1748 | AB46: 1627 | AC46: 1.232
A47: 17 0045 | B47: 18 | C47: 6.2 | D47: 0.8 | F47: 1.5 | G47: 0.7 | H47: 0.875 | I47: 0.175 | J47: 479.5 | K47: 1388 | L47: 313 | M47: 556 | N47: 0.35 | O47: 821.6 | P47: 2622 | Q47: 779 | R47: 1037 | S47: 0.525 | T47: 1072 | U47: 3703 | V47: 1399 | W47: 1443 | X47: 0.7 | Y47: 1277 | Z47: 4630 | AA47: 2173 | AB47: 1774 | AC47: 1.408
A48: 17 0046 | B48: 18 | C48: 8.2 | D48: 0.7 | F48: 1.25 | G48: 0.55 | H48: 0.785 | I48: 0.137 | J48: 254.6 | K48: 858 | L48: 216 | M48: 434 | N48: 0.275 | O48: 446.2 | P48: 1624 | Q48: 523 | R48: 815 | S48: 0.412 | T48: 596 | U48: 2298 | V48: 922 | W48: 1141 | X48: 0.55 | Y48: 724.7 | Z48: 2881 | AA48: 1413 | AB48: 1412 | AC48: 1.108
A49: 17 0047 | B49: 18 | C49: 8.2 | D49: 0.8 | F49: 1.3 | G49: 0.5 | H49: 0.625 | I49: 0.125 | J49: 308.9 | K49: 823 | L49: 292 | M49: 411 | N49: 0.25 | O49: 563.8 | P49: 1570 | Q49: 660 | R49: 777 | S49: 0.375 | T49: 782.6 | U49: 2242 | V49: 1104 | W49: 1098 | X49: 0.5 | Y49: 983.5 | Z49: 2837 | AA49: 1624 | AB49: 1375 | AC49: 1.266
A50: 17 0048 | B50: 18 | C50: 8.2 | D50: 1 | F50: 1.5 | G50: 0.5 | H50: 0.5 | I50: 0.125 | J50: 559 | K50: 963 | L50: 432 | M50: 475 | N50: 0.25 | O50: 1051 | P50: 1849 | Q50: 939 | R50: 904 | S50: 0.375 | T50: 1497 | U50: 2660 | V50: 1523 | W50: 1289 | X50: 0.5 | Y50: 1921 | Z50: 3395 | AA50: 2182 | AB50: 1629 | AC50: 1.582
A51: 17 0049 | B51: 18 | C51: 9.2 | D51: 0.45 | F51: 1.05 | G51: 0.6 | H51: 1.333 | I51: 0.15 | J51: 120.7 | K51: 763 | L51: -14 | M51: 440 | N51: 0.3 | O51: 185.8 | P51: 1415 | Q51: 83 | R51: 809 | S51: 0.45 | T51: 213.7 | U51: 1957 | V51: 291 | W51: 1106 | X51: 0.6 | Y51: 222.9 | Z51: 2387 | AA51: 610 | AB51: 1333 | AC51: 0.664
A52: 17 0050 | B52: 18 | C52: 9.2 | D52: 0.7 | F52: 1.2 | G52: 0.5 | H52: 0.714 | I52: 0.125 | J52: 233.4 | K52: 756 | L52: 216 | M52: 421 | N52: 0.25 | O52: 416.6 | P52: 1434 | Q52: 509 | R52: 792 | S52: 0.375 | T52: 566.4 | U52: 2035 | V52: 879 | W52: 1114 | X52: 0.5 | Y52: 699.4 | Z52: 2560 | AA52: 1326 | AB52: 1387 | AC52: 1.033
A53: 17 0051 | B53: 18 | C53: 9.2 | D53: 1 | F53: 1.4 | G53: 0.4 | H53: 0.4 | I53: 0.1 | J53: 450.6 | K53: 728 | L53: 382 | M53: 394 | N53: 0.2 | O53: 865 | P53: 1406 | Q53: 814 | R53: 757 | S53: 0.3 | T53: 1254 | U53: 2035 | V53: 1295 | W53: 1088 | X53: 0.4 | Y53: 1631 | Z53: 2615 | AA53: 1826 | AB53: 1387 | AC53: 1.476
A54: 17 0052 | B54: 20 | C54: 8.2 | D54: 0.5 | F54: 1.15 | G54: 0.65 | H54: 1.3 | I54: 0.162 | J54: 128.3 | K54: 739 | L54: 11 | M54: 355 | N54: 0.325 | O54: 198.8 | P54: 1375 | Q54: 126 | R54: 652 | S54: 0.487 | T54: 230.8 | U54: 1906 | V54: 345 | W54: 892 | X54: 0.65 | Y54: 243.4 | Z54: 2333 | AA54: 668 | AB54: 1074 | AC54: 1.026
A55: 17 0053 | B55: 20 | C55: 8.2 | D55: 0.6 | F55: 1.3 | G55: 0.7 | H55: 1.166 | I55: 0.175 | J55: 214.4 | K55: 907 | L55: 63 | M55: 432 | N55: 0.35 | O55: 342.1 | P55: 1694 | Q55: 246 | R55: 797 | S55: 0.525 | T55: 412 | U55: 2360 | V55: 550 | W55: 1095 | X55: 0.7 | Y55: 453 | Z55: 2905 | AA55: 974 | AB55: 1327 | AC55: 1.231
A56: 17 0054 | B56: 20 | C56: 8.2 | D56: 0.7 | F56: 1.35 | G56: 0.65 | H56: 0.928 | I56: 0.162 | J56: 261.5 | K56: 890 | L56: 161 | M56: 416 | N56: 0.325 | O56: 442 | P56: 1675 | Q56: 426 | R56: 775 | S56: 0.487 | T56: 568.5 | U56: 2356 | V56: 795 | W56: 1076 | X56: 0.65 | Y56: 668 | Z56: 2934 | AA56: 1269 | AB56: 1320 | AC56: 1.436
A57: 17 0055 | B57: 20 | C57: 8.2 | D57: 0.8 | F57: 1.4 | G57: 0.6 | H57: 0.75 | I57: 0.15 | J57: 315 | K57: 865 | L57: 244 | M57: 398 | N57: 0.3 | O57: 557.3 | P57: 1640 | Q57: 576 | R57: 748 | S57: 0.45 | T57: 751 | U57: 2328 | V57: 998 | W57: 1048 | X57: 0.6 | Y57: 920.5 | Z57: 2926 | AA57: 1507 | AB57: 1300 | AC57: 1.641
A58: 17 0056 | B58: 20 | C58: 8.2 | D58: 0.9 | F58: 1.5 | G58: 0.6 | H58: 0.666 | I58: 0.15 | J58: 423.2 | K58: 934 | L58: 313 | M58: 427 | N58: 0.3 | O58: 764.5 | P58: 1779 | Q58: 715 | R58: 804 | S58: 0.45 | T58: 1051 | U58: 2535 | V58: 1205 | W58: 1133 | X58: 0.6 | Y58: 1311 | Z58: 3203 | AA58: 1784 | AB58: 1413 | AC58: 1.846
A59: 17 0057 | B59: 20 | C59: 8.2 | D59: 1 | F59: 1.6 | G59: 0.6 | H59: 0.6 | I59: 0.15 | J59: 555.6 | K59: 1003 | L59: 382 | M59: 455 | N59: 0.3 | O59: 1020 | P59: 1917 | Q59: 853 | R59: 861 | S59: 0.45 | T59: 1424 | U59: 2743 | V59: 1413 | W59: 1218 | X59: 0.6 | Y59: 1798 | Z59: 3480 | AA59: 2062 | AB59: 1527 | AC59: 2.051
A60: 17 0058 | B60: 20 | C60: 10.2 | D60: 0.4 | F60: 0.9 | G60: 0.5 | H60: 1.25 | I60: 0.125 | J60: 53.4 | K60: 443 | L60: 6 | M60: 254 | N60: 0.25 | O60: 83.7 | P60: 824 | Q60: 75 | R60: 468 | S60: 0.375 | T60: 98.5 | U60: 1142 | V60: 206 | W60: 642 | X60: 0.5 | Y60: 105.5 | Z60: 1398 | AA60: 400 | AB60: 777 | AC60: 0.73
A61: 17 0059 | B61: 20 | C61: 10.2 | D61: 0.5 | F61: 1.15 | G61: 0.65 | H61: 1.3 | I61: 0.162 | J61: 141.3 | K61: 734 | L61: -4 | M61: 422 | N61: 0.325 | O61: 218.9 | P61: 1363 | Q61: 98 | R61: 776 | S61: 0.487 | T61: 254.1 | U61: 1887 | V61: 305 | W61: 1063 | X61: 0.65 | Y61: 268 | Z61: 2305 | AA61: 617 | AB61: 1283 | AC61: 0.912
A62: 17 0060 | B62: 20 | C62: 10.2 | D62: 0.8 | F62: 1.35 | G62: 0.55 | H62: 0.687 | I62: 0.137 | J62: 304.3 | K62: 759 | L62: 230 | M62: 421 | N62: 0.275 | O62: 546.8 | P62: 1442 | Q62: 536 | R62: 793 | S62: 0.412 | T62: 748.2 | U62: 2050 | V62: 917 | W62: 1118 | X62: 0.55 | Y62: 929 | Z62: 2582 | AA62: 1374 | AB62: 1394 | AC62: 1.46
A63: 17 0061 | B63: 20 | C63: 10.2 | D63: 0.9 | F63: 1.45 | G63: 0.55 | H63: 0.611 | I63: 0.137 | J63: 411.7 | K63: 821 | L63: 292 | M63: 452 | N63: 0.275 | O63: 754 | P63: 1566 | Q63: 659 | R63: 856 | S63: 0.412 | T63: 1050 | U63: 2235 | V63: 1102 | W63: 1212 | X63: 0.55 | Y63: 1323 | Z63: 2829 | AA63: 1621 | AB63: 1520 | AC63: 1.642
A64: 17 0062 | B64: 20 | C64: 10.2 | D64: 1 | F64: 1.55 | G64: 0.55 | H64: 0.55 | I64: 0.137 | J64: 543.6 | K64: 882 | L64: 354 | M64: 484 | N64: 0.275 | O64: 1010 | P64: 1689 | Q64: 783 | R64: 920 | S64: 0.412 | T64: 1425 | U64: 2421 | V64: 1288 | W64: 1307 | X64: 0.55 | Y64: 1815 | Z64: 3077 | AA64: 1868 | AB64: 1646 | AC64: 1.824
A65: 17 0063 | B65: 20 | C65: 10.2 | D65: 1.1 | F65: 1.55 | G65: 0.45 | H65: 0.409 | I65: 0.112 | J65: 548.2 | K65: 733 | L65: 379 | M65: 397 | N65: 0.225 | O65: 1050 | P65: 1416 | Q65: 809 | R65: 761 | S65: 0.337 | T65: 1521 | U65: 2048 | V65: 1290 | W65: 1093 | X65: 0.45 | Y65: 1976 | Z65: 2630 | AA65: 1821 | AB65: 1393 | AC65: 2.007
A66: 17 0064 | B66: 22.5 | C66: 11.2 | D66: 0.6 | F66: 1.4 | G66: 0.8 | H66: 1.33 | I66: 0.2 | J66: 240.4 | K66: 865 | L66: -14 | M66: 488 | N66: 0.4 | O66: 369.9 | P66: 1605 | Q66: 98 | R66: 897 | S66: 0.6 | T66: 425.4 | U66: 2219 | V66: 336 | W66: 1227 | X66: 0.8 | Y66: 443.9 | Z66: 2708 | AA66: 699 | AB66: 1478 | AC66: 1.409
A67: 17 0065 | B67: 22.5 | C67: 11.2 | D67: 0.8 | F67: 1.45 | G67: 0.65 | H67: 0.812 | I67: 0.162 | J67: 306.3 | K67: 751 | L67: 171 | M67: 412 | N67: 0.325 | O67: 533.4 | P67: 1420 | Q67: 425 | R67: 771 | S67: 0.487 | T67: 707.4 | U67: 2006 | V67: 762 | W67: 1079 | X67: 0.65 | Y67: 855.1 | Z67: 2508 | AA67: 1182 | AB67: 1335 | AC67: 1.878
A68: 17 0066 | B68: 23 | C68: 8.2 | D68: 0.7 | F68: 1.5 | G68: 0.8 | H68: 1.142 | I68: 0.2 | J68: 279.4 | K68: 940 | L68: 87 | M68: 397 | N68: 0.4 | O68: 448.4 | P68: 1758 | Q68: 295 | R68: 733 | S68: 0.6 | T68: 543.6 | U68: 2454 | V68: 626 | W68: 1007 | X68: 0.8 | Y68: 601.9 | Z68: 3028 | AA68: 1078 | AB68: 1221 | AC68: 1.993
A69: 17 0067 | B69: 23 | C69: 8.2 | D69: 0.8 | F69: 1.55 | G69: 0.75 | H69: 0.937 | I69: 0.187 | J69: 332 | K69: 925 | L69: 175 | M69: 384 | N69: 0.375 | O69: 560 | P69: 1743 | Q69: 457 | R69: 714 | S69: 0.562 | T69: 718.5 | U69: 2453 | V69: 846 | W69: 991 | X69: 0.75 | Y69: 842.4 | Z69: 3057 | AA69: 1343 | AB69: 1214 | AC69: 2.277
A70: 17 0068 | B70: 23 | C70: 8.2 | D70: 0.9 | F70: 1.7 | G70: 0.8 | H70: 0.888 | I70: 0.2 | J70: 485.7 | K70: 1086 | L70: 233 | M70: 449 | N70: 0.4 | O70: 829.2 | P70: 2051 | Q70: 589 | R70: 837 | S70: 0.6 | T70: 1078 | U70: 2894 | V70: 1066 | W70: 1164 | X70: 0.8 | Y70: 1279 | Z70: 3615 | AA70: 1665 | AB70: 1430 | AC70: 2.561
A71: 17 0069 | B71: 23 | C71: 10.2 | D71: 0.9 | F71: 1.65 | G71: 0.75 | H71: 0.833 | I71: 0.187 | J71: 463.1 | K71: 944 | L71: 213 | M71: 469 | N71: 0.375 | O71: 801.9 | P71: 1784 | Q71: 531 | R71: 877 | S71: 0.562 | T71: 1058 | U71: 2520 | V71: 953 | W71: 1225 | X71: 0.75 | Y71: 1273 | Z71: 3151 | AA71: 1480 | AB71: 1512 | AC71: 2.357
A72: 17 0070 | B72: 23 | C72: 10.2 | D72: 1 | F72: 1.7 | G72: 0.7 | H72: 0.7 | I72: 0.175 | J72: 538.2 | K72: 919 | L72: 282 | M72: 451 | N72: 0.35 | O72: 964.2 | P72: 1746 | Q72: 655 | R72: 849 | S72: 0.525 | T72: 1315 | U72: 2483 | V72: 1119 | W72: 1195 | X72: 0.7 | Y72: 1629 | Z72: 3129 | AA72: 1673 | AB72: 1487 | AC72: 2.619
A73: 17 0071 | B73: 23 | C73: 12.2 | D73: 1 | F73: 1.6 | G73: 0.6 | H73: 0.6 | I73: 0.15 | J73: 474.7 | K73: 753 | L73: 271 | M73: 429 | N73: 0.3 | O73: 871.7 | P73: 1436 | Q73: 612 | R73: 813 | S73: 0.45 | T73: 1217 | U73: 2052 | V73: 1020 | W73: 1152 | X73: 0.6 | Y73: 1536 | Z73: 2598 | AA73: 1498 | AB73: 1446 | AC73: 2.343
A74: 17 0072 | B74: 25 | C74: 12.2 | D74: 0.7 | F74: 1.6 | G74: 0.9 | H74: 1.285 | I74: 0.225 | J74: 331.2 | K74: 902 | L74: 4 | M74: 499 | N74: 0.45 | O74: 514.6 | P74: 1675 | Q74: 136 | R74: 919 | S74: 0.675 | T74: 599.6 | U74: 2320 | V74: 396 | W74: 1259 | X74: 0.9 | Y74: 635.4 | Z74: 2837 | AA74: 785 | AB74: 1519 | AC74: 2.055
A75: 17 0073 | B75: 25 | C75: 12.2 | D75: 0.9 | F75: 1.6 | G75: 0.7 | H75: 0.777 | I75: 0.175 | J75: 366.8 | K75: 724 | L75: 181 | M75: 389 | N75: 0.35 | O75: 644.3 | P75: 1371 | Q75: 440 | R75: 730 | S75: 0.525 | T75: 862.3 | U75: 1940 | V75: 776 | W75: 1023 | X75: 0.7 | Y75: 1050 | Z75: 2432 | AA75: 1190 | AB75: 1268 | AC75: 2.642
A76: 17 0074 | B76: 28 | C76: 10.2 | D76: 0.8 | F76: 1.75 | G76: 0.95 | H76: 1.187 | I76: 0.237 | J76: 347.9 | K76: 870 | L76: 62 | M76: 375 | N76: 0.475 | O76: 552.5 | P76: 1624 | Q76: 239 | R76: 692 | S76: 0.712 | T76: 661.5 | U76: 2264 | V76: 532 | W76: 950 | X76: 0.95 | Y76: 722.7 | Z76: 2787 | AA76: 940 | AB76: 1149 | AC76: 3.354
A77: 17 0075 | B77: 28 | C77: 10.2 | D77: 1 | F77: 2 | G77: 1 | H77: 1 | I77: 0.25 | J77: 615.2 | K77: 1061 | L77: 165 | M77: 451 | N77: 0.5 | O77: 1022 | P77: 1994 | Q77: 459 | R77: 837 | S77: 0.75 | T77: 1289 | U77: 2798 | V77: 880 | W77: 1158 | X77: 1 | Y77: 1486 | Z77: 3475 | AA77: 1429 | AB77: 1414 | AC77: 4.191
A78: 17 0076 | B78: 28 | C78: 12.2 | D78: 1 | F78: 1.95 | G78: 0.95 | H78: 0.95 | I78: 0.237 | J78: 589.9 | K78: 947 | L78: 156 | M78: 467 | N78: 0.475 | O78: 991.7 | P78: 1781 | Q78: 425 | R78: 870 | S78: 0.712 | T78: 1268 | U78: 2502 | V78: 807 | W78: 1208 | X78: 0.95 | Y78: 1482 | Z78: 3111 | AA78: 1302 | AB78: 1480 | AC78: 3.914
A79: 17 0077 | B79: 28 | C79: 14.2 | D79: 0.8 | F79: 1.8 | G79: 1 | H79: 1.25 | I79: 0.25 | J79: 434.8 | K79: 904 | L79: 13 | M79: 515 | N79: 0.5 | O79: 681 | P79: 1680 | Q79: 154 | R79: 950 | S79: 0.75 | T79: 801.4 | U79: 2330 | V79: 422 | W79: 1304 | X79: 1 | Y79: 858.8 | Z79: 2852 | AA79: 817 | AB79: 1577 | AC79: 2.872
A80: 17 0078 | B80: 28 | C80: 14.2 | D80: 1 | F80: 1.8 | G80: 0.8 | H80: 0.8 | I80: 0.2 | J80: 476.4 | K80: 744 | L80: 174 | M80: 414 | N80: 0.4 | O80: 832 | P80: 1406 | Q80: 429 | R80: 776 | S80: 0.6 | T80: 1107 | U80: 1986 | V80: 765 | W80: 1086 | X80: 0.8 | Y80: 1342 | Z80: 2486 | AA80: 1183 | AB80: 1344 | AC80: 3.59
A81: 17 0079 | B81: 31.5 | C81: 16.3 | D81: 0.8 | F81: 1.85 | G81: 1.05 | H81: 1.312 | I81: 0.262 | J81: 384.3 | K81: 771 | L81: -9 | M81: 448 | N81: 0.525 | O81: 593.8 | P81: 1430 | Q81: 94 | R81: 825 | S81: 0.787 | T81: 686.8 | U81: 1978 | V81: 308 | W81: 1130 | X81: 1.05 | Y81: 721.6 | Z81: 2415 | AA81: 633 | AB81: 1363 | AC81: 3.583
A82: 17 0080 | B82: 34 | C82: 12.3 | D82: 1 | F82: 2.2 | G82: 1.2 | H82: 1.2 | I82: 0.3 | J82: 587.2 | K82: 938 | L82: 63 | M82: 403 | N82: 0.6 | O82: 930 | P82: 1751 | Q82: 250 | R82: 742 | S82: 0.9 | T82: 1110 | U82: 2439 | V82: 563 | W82: 1018 | X82: 1.2 | Y82: 1208 | Z82: 3002 | AA82: 1001 | AB82: 1231 | AC82: 6.194
A83: 17 0081 | B83: 35.5 | C83: 18.3 | D83: 0.9 | F83: 2.05 | G83: 1.15 | H83: 1.277 | I83: 0.287 | J83: 457.7 | K83: 737 | L83: 2 | M83: 427 | N83: 0.575 | O83: 712.4 | P83: 1370 | Q83: 108 | R83: 786 | S83: 0.862 | T83: 831.9 | U83: 1897 | V83: 320 | W83: 1078 | X83: 1.15 | Y83: 883.8 | Z83: 2319 | AA83: 637 | AB83: 1302 | AC83: 5.134
A84: 17 0082 | B84: 40 | C84: 20.4 | D84: 1 | F84: 2.3 | G84: 1.3 | H84: 1.3 | I84: 0.325 | J84: 565.3 | K84: 734 | L84: -4 | M84: 422 | N84: 0.65 | O84: 875.8 | P84: 1363 | Q84: 98 | R84: 776 | S84: 0.975 | T84: 1017 | U84: 1887 | V84: 305 | W84: 1063 | X84: 1.3 | Y84: 1072 | Z84: 2305 | AA84: 617 | AB84: 1283 | AC84: 7.299
A85: 18 0001 | B85: 22.5 | C85: 11.2 | D85: 1.25 | F85: 1.75 | G85: 0.5 | H85: 0.4 | I85: 0.125 | J85: 693.1 | K85: 726 | L85: 383 | M85: 384 | N85: 0.25 | O85: 1330 | P85: 1403 | Q85: 815 | R85: 737 | S85: 0.375 | T85: 1929 | U85: 2031 | V85: 1296 | W85: 1059 | X85: 0.5 | Y85: 2509 | Z85: 2610 | AA85: 1825 | AB85: 1350 | AC85: 2.935
A86: 18 0002 | B86: 23 | C86: 12.2 | D86: 1.25 | F86: 1.85 | G86: 0.6 | H86: 0.48 | I86: 0.15 | J86: 863.4 | K86: 881 | L86: 399 | M86: 497 | N86: 0.3 | O86: 1630 | P86: 1692 | Q86: 868 | R86: 949 | S86: 0.45 | T86: 2331 | U86: 2436 | V86: 1404 | W86: 1356 | X86: 0.6 | Y86: 3000 | Z86: 3110 | AA86: 2010 | AB86: 1718 | AC86: 2.929
A87: 18 0003 | B87: 23 | C87: 12.2 | D87: 1.5 | F87: 2.1 | G87: 0.6 | H87: 0.4 | I87: 0.15 | J87: 1432 | K87: 1009 | L87: 527 | M87: 565 | N87: 0.3 | O87: 2748 | P87: 1948 | Q87: 1124 | R87: 1085 | S87: 0.45 | T87: 3986 | U87: 2820 | V87: 1788 | W87: 1560 | X87: 0.6 | Y87: 5184 | Z87: 3622 | AA87: 2522 | AB87: 1990 | AC87: 3.514
A88: 18 0004 | B88: 25 | C88: 12.2 | D88: 1.5 | F88: 2.05 | G88: 0.55 | H88: 0.366 | I88: 0.137 | J88: 1040 | K88: 761 | L88: 425 | M88: 393 | N88: 0.275 | O88: 2007 | P88: 1473 | Q88: 898 | R88: 757 | S88: 0.412 | T88: 2926 | U88: 2138 | V88: 1419 | W88: 1091 | X88: 0.55 | Y88: 3821 | Z88: 2755 | AA88: 1988 | AB88: 1395 | AC88: 4.403
A89: 18 0005 | B89: 28 | C89: 10.2 | D89: 1.25 | F89: 2.25 | G89: 1 | H89: 0.8 | I89: 0.25 | J89: 1030 | K89: 1214 | L89: 319 | M89: 507 | N89: 0.5 | O89: 1799 | P89: 2300 | Q89: 765 | R89: 949 | S89: 0.75 | T89: 2394 | U89: 3258 | V89: 1340 | W89: 1326 | X89: 1 | Y89: 2902 | Z89: 4089 | AA89: 2042 | AB89: 1637 | AC89: 5.238
A90: 18 0006 | B90: 28 | C90: 10.2 | D90: 1.5 | F90: 2.2 | G90: 0.7 | H90: 0.466 | I90: 0.175 | J90: 1003 | K90: 863 | L90: 424 | M90: 346 | N90: 0.35 | O90: 1899 | P90: 1663 | Q90: 911 | R90: 660 | S90: 0.525 | T90: 2723 | U90: 2401 | V90: 1461 | W90: 943 | X90: 0.7 | Y90: 3511 | Z90: 3076 | AA90: 2074 | AB90: 1193 | AC90: 6.286
A91: 18 0007 | B91: 28 | C91: 12.2 | D91: 1.25 | F91: 2.1 | G91: 0.85 | H91: 0.68 | I91: 0.212 | J91: 843.8 | K91: 934 | L91: 300 | M91: 451 | N91: 0.425 | O91: 1519 | P91: 1777 | Q91: 691 | R91: 849 | S91: 0.637 | T91: 2083 | U91: 2529 | V91: 1172 | W91: 1196 | X91: 0.85 | Y91: 2590 | Z91: 3191 | AA91: 1743 | AB91: 1491 | AC91: 4.893
A92: 18 0008 | B92: 28 | C92: 12.2 | D92: 1.5 | F92: 2.25 | G92: 0.75 | H92: 0.5 | I92: 0.187 | J92: 1149 | K92: 900 | L92: 406 | M92: 426 | N92: 0.375 | O92: 2159 | P92: 1729 | Q92: 883 | R92: 812 | S92: 0.562 | T92: 3077 | U92: 2488 | V92: 1431 | W92: 1157 | X92: 0.75 | Y92: 3949 | Z92: 3176 | AA92: 2049 | AB92: 1462 | AC92: 5.872
A93: 18 0009 | B93: 28 | C93: 14.2 | D93: 1.25 | F93: 2.1 | G93: 0.85 | H93: 0.68 | I93: 0.212 | J93: 907.4 | K93: 931 | L93: 287 | M93: 513 | N93: 0.425 | O93: 1634 | P93: 1770 | Q93: 667 | R93: 968 | S93: 0.637 | T93: 2240 | U93: 2516 | V93: 1138 | W93: 1365 | X93: 0.85 | Y93: 2785 | Z93: 3171 | AA93: 1701 | AB93: 1703 | AC93: 4.486
A94: 18 0010 | B94: 28 | C94: 14.2 | D94: 1.5 | F94: 2.15 | G94: 0.65 | H94: 0.433 | I94: 0.162 | J94: 1033 | K94: 747 | L94: 371 | M94: 403 | N94: 0.325 | O94: 1970 | P94: 1440 | Q94: 795 | R94: 772 | S94: 0.487 | T94: 2841 | U94: 2080 | V94: 1274 | W94: 1106 | X94: 0.65 | Y94: 3680 | Z94: 2665 | AA94: 1806 | AB94: 1407 | AC94: 5.386
A95: 18 0011 | B95: 31.5 | C95: 16.3 | D95: 1.25 | F95: 2.15 | G95: 0.9 | H95: 0.72 | I95: 0.225 | J95: 790.5 | K95: 797 | L95: 224 | M95: 449 | N95: 0.45 | O95: 1409 | P95: 1512 | Q95: 530 | R95: 844 | S95: 0.675 | T95: 1913 | U95: 2145 | V95: 917 | W95: 1187 | X95: 0.9 | Y95: 2359 | Z95: 2696 | AA95: 1386 | AB95: 1478 | AC95: 5.599
A96: 18 0012 | B96: 31.5 | C96: 16.3 | D96: 1.5 | F96: 2.4 | G96: 0.9 | H96: 0.6 | I96: 0.225 | J96: 1260 | K96: 899 | L96: 326 | M96: 501 | N96: 0.45 | O96: 2314 | P96: 1716 | Q96: 734 | R96: 950 | S96: 0.675 | T96: 3230 | U96: 2451 | V96: 1223 | W96: 1346 | X96: 0.9 | Y96: 4077 | Z96: 3104 | AA96: 1795 | AB96: 1689 | AC96: 6.717
A97: 18 0013 | B97: 31.5 | C97: 16.3 | D97: 1.75 | F97: 2.45 | G97: 0.7 | H97: 0.4 | I97: 0.175 | J97: 1391 | K97: 729 | L97: 382 | M97: 399 | N97: 0.35 | O97: 2669 | P97: 1408 | Q97: 814 | R97: 766 | S97: 0.525 | T97: 3871 | U97: 2038 | V97: 1296 | W97: 1102 | X97: 0.7 | Y97: 5036 | Z97: 2619 | AA97: 1826 | AB97: 1405 | AC97: 7.839
A98: 18 0014 | B98: 31.5 | C98: 16.3 | D98: 2 | F98: 2.75 | G98: 0.75 | H98: 0.375 | I98: 0.187 | J98: 2199 | K98: 879 | L98: 481 | M98: 480 | N98: 0.375 | O98: 4239 | P98: 1702 | Q98: 1020 | R98: 924 | S98: 0.562 | T98: 6173 | U98: 2467 | V98: 1615 | W98: 1331 | X98: 0.75 | Y98: 8054 | Z98: 3176 | AA98: 2267 | AB98: 1701 | AC98: 8.956
A99: 18 0015 | B99: 34 | C99: 12.3 | D99: 1.25 | F99: 2.45 | G99: 1.2 | H99: 0.96 | I99: 0.3 | J99: 946.4 | K99: 1063 | L99: 188 | M99: 448 | N99: 0.6 | O99: 1587 | P99: 2001 | Q99: 500 | R99: 833 | S99: 0.9 | T99: 2024 | U99: 2814 | V99: 938 | W99: 1154 | X99: 1.2 | Y99: 2359 | Z99: 3502 | AA99: 1501 | AB99: 1412 | AC99: 7.743
A100: 18 0016 | B100: 34 | C100: 12.3 | D100: 1.5 | F100: 2.7 | G100: 1.2 | H100: 0.8 | I100: 0.3 | J100: 1447 | K100: 1188 | L100: 313 | M100: 493 | N100: 6 | O100: 2527 | P100: 2251 | Q100: 750 | R100: 923 | S100: 0.9 | T100: 3363 | U100: 3190 | V100: 1313 | W100: 1290 | X100: 1.2 | Y100: 4076 | Z100: 4003 | AA100: 2001 | AB100: 1593 | AC100: 9.28
A101: 18 0017 | B101: 34 | C101: 14.3 | D101: 1.25 | F101: 2.4 | G101: 1.15 | H101: 0.92 | I101: 0.287 | J101: 912.8 | K101: 964 | L101: 177 | M101: 461 | N101: 0.575 | O101: 1546 | P101: 1816 | Q101: 466 | R101: 858 | S101: 0.862 | T101: 1993 | U101: 2555 | V101: 868 | W101: 1193 | X101: 1.15 | Y101: 2347 | Z101: 3182 | AA101: 1382 | AB101: 1464 | AC101: 7.33
A102: 18 0018 | B102: 34 | C102: 14.3 | D102: 1.5 | F102: 2.55 | G102: 1.05 | H102: 0.7 | I102: 0.262 | J102: 1224 | K102: 953 | L102: 297 | M102: 447 | N102: 0.525 | O102: 2192 | P102: 1813 | Q102: 687 | R102: 841 | S102: 0.787 | T102: 2990 | U102: 2579 | V102: 1172 | W102: 1183 | X102: 1.05 | Y102: 3704 | Z102: 3250 | AA102: 1750 | AB102: 1472 | AC102: 8.799
A103: 18 0019 | B103: 34 | C103: 16.3 | D103: 1.5 | F103: 2.55 | G103: 1.05 | H103: 0.7 | I103: 0.262 | J103: 1291 | K103: 942 | L103: 283 | M103: 495 | N103: 0.525 | O103: 2313 | P103: 1790 | Q103: 660 | R103: 933 | S103: 0.787 | T103: 3155 | U103: 2543 | V103: 1131 | W103: 1313 | X103: 1.05 | Y103: 3908 | Z103: 3203 | AA103: 1696 | AB103: 1635 | AC103: 8.233
A104: 18 0020 | B104: 34 | C104: 16.3 | D104: 2 | F104: 2.85 | G104: 0.85 | H104: 0.425 | I104: 0.212 | J104: 2097 | K104: 877 | L104: 445 | M104: 449 | N104: 0.425 | O104: 4003 | P104: 1692 | Q104: 952 | R104: 860 | S104: 0.637 | T104: 5783 | U104: 2446 | V104: 1520 | W104: 1234 | X104: 0.85 | Y104: 7498 | Z104: 3138 | AA104: 2150 | AB104: 1570 | AC104: 10.978
A105: 18 0021 | B105: 35.5 | C105: 18.3 | D105: 1.25 | F105: 2.25 | G105: 1 | H105: 0.8 | I105: 0.25 | J105: 730.9 | K105: 724 | L105: 168 | M105: 409 | N105: 0.5 | O105: 1277 | P105: 1369 | Q105: 416 | R105: 766 | S105: 0.75 | T105: 1699 | U105: 1935 | V105: 743 | W105: 1073 | X105: 1 | Y105: 2059 | Z105: 2421 | AA105: 1149 | AB105: 1329 | AC105: 7.131
A106: 18 0022 | B106: 35.5 | C106: 18.3 | D106: 2 | F106: 2.8 | G106: 0.8 | H106: 0.4 | I106: 0.2 | J106: 1864 | K106: 749 | L106: 393 | M106: 409 | N106: 0.4 | O106: 3576 | P106: 1448 | Q106: 837 | R106: 785 | S106: 0.6 | T106: 5187 | U106: 2095 | V106: 1332 | W106: 1128 | X106: 0.8 | Y106: 6747 | Z106: 2692 | AA106: 1878 | AB106: 1439 | AC106: 11.41
A107: 18 0023 | B107: 40 | C107: 14.3 | D107: 1.25 | F107: 2.65 | G107: 1.4 | H107: 1.12 | I107: 0.35 | J107: 904.4 | K107: 961 | L107: 98 | M107: 406 | N107: 0.7 | O107: 1459 | P107: 1799 | Q107: 319 | R107: 750 | S107: 1.05 | T107: 1780 | U107: 2514 | V107: 664 | W107: 1033 | X107: 1.4 | Y107: 1984 | Z107: 3105 | AA107: 1132 | AB107: 1253 | AC107: 10.755
A108: 18 0024 | B108: 40 | C108: 14.3 | D108: 1.5 | F108: 2.8 | G108: 1.3 | H108: 0.866 | I108: 0.325 | J108: 1188 | K108: 962 | L108: 218 | M108: 398 | N108: 0.65 | O108: 2040 | P108: 1818 | Q108: 542 | R108: 743 | S108: 0.975 | T108: 2668 | U108: 2568 | V108: 973 | W108: 1034 | X108: 1.3 | Y108: 3184 | Z108: 3212 | AA108: 1510 | AB108: 1271 | AC108: 12.905
A109: 18 0025 | B109: 40 | C109: 14.3 | D109: 1.75 | F109: 3.05 | G109: 1.3 | H109: 0.742 | I109: 0.325 | J109: 1722 | K109: 1061 | L109: 316 | M109: 433 | N109: 0.65 | O109: 3051 | P109: 2015 | Q109: 739 | R109: 813 | S109: 0.975 | T109: 4119 | U109: 2863 | V109: 1268 | W109: 1139 | X109: 1.3 | Y109: 5056 | Z109: 3605 | AA109: 1904 | AB109: 1412 | AC109: 15.056
A110: 18 0026 | B110: 40 | C110: 14.3 | D110: 2 | F110: 3.05 | G110: 1.05 | H110: 0.525 | I110: 0.262 | J110: 1800 | K110: 878 | L110: 393 | M110: 349 | N110: 0.525 | O110: 3363 | P110: 1688 | Q110: 855 | R110: 664 | S110: 0.787 | T110: 4769 | U110: 2427 | V110: 1387 | W110: 943 | X110: 1.05 | Y110: 6096 | Z110: 3098 | AA110: 1988 | AB110: 1188 | AC110: 17.207
A111: 18 0027 | B111: 40 | C111: 16.3 | D111: 1.5 | F111: 2.8 | G111: 1.3 | H111: 0.866 | I111: 0.325 | J111: 1224 | K111: 928 | L111: 199 | M111: 430 | N111: 0.65 | O111: 2102 | P111: 1752 | Q111: 503 | R111: 802 | S111: 0.975 | T111: 2749 | U111: 2472 | V111: 911 | W111: 1118 | X111: 1.3 | Y111: 3281 | Z111: 3088 | AA111: 1422 | AB111: 1376 | AC111: 12.339
A112: 18 0028 | B112: 40 | C112: 16.3 | D112: 1.75 | F112: 3.1 | G112: 1.35 | H112: 0.771 | I112: 0.337 | J112: 1881 | K112: 1076 | L112: 290 | M112: 494 | N112: 0.675 | O112: 3309 | P112: 2040 | Q112: 692 | R112: 926 | S112: 1.012 | T112: 4435 | U112: 2891 | V112: 1207 | W112: 1297 | X112: 1.35 | Y112: 5410 | Z112: 3631 | AA112: 1834 | AB112: 1606 | AC112: 14.396
A113: 18 0029 | B113: 40 | C113: 16.3 | D113: 2 | F113: 3.1 | G113: 1.1 | H113: 0.55 | I113: 0.275 | J113: 1972 | K113: 897 | L113: 375 | M113: 402 | N113: 0.55 | O113: 3663 | P113: 1719 | Q113: 825 | R113: 764 | S113: 0.825 | T113: 5169 | U113: 2467 | V113: 1349 | W113: 1084 | X113: 1.1 | Y113: 6580 | Z113: 3141 | AA113: 1948 | AB113: 1364 | AC113: 16.499
A114: 18 0030 | B114: 40 | C114: 18.3 | D114: 2 | F114: 3.15 | G114: 1.15 | H114: 0.575 | I114: 0.287 | J114: 2182 | K114: 933 | L114: 365 | M114: 466 | N114: 0.575 | O114: 4030 | P114: 1785 | Q114: 810 | R114: 883 | S114: 0.862 | T114: 5656 | U114: 2556 | V114: 1338 | W114: 1252 | X114: 1.15 | Y114: 7171 | Z114: 3246 | AA114: 1946 | AB114: 1573 | AC114: 15.599
A115: 18 0031 | B115: 40 | C115: 20.4 | D115: 1.5 | F115: 2.65 | G115: 1.15 | H115: 0.766 | I115: 0.287 | J115: 1109 | K115: 774 | L115: 196 | M115: 431 | N115: 0.575 | O115: 1953 | P115: 1465 | Q115: 474 | R115: 810 | S115: 0.862 | T115: 2621 | U115: 2073 | V115: 835 | W115: 1136 | X115: 1.15 | Y115: 3201 | Z115: 2599 | AA115: 1278 | AB115: 1410 | AC115: 10.948
A116: 18 0032 | B116: 40 | C116: 20.4 | D116: 2 | F116: 3.1 | G116: 1.1 | H116: 0.55 | I116: 0.275 | J116: 2175 | K116: 882 | L116: 354 | M116: 484 | N116: 0.55 | O116: 4041 | P116: 1689 | Q116: 783 | R116: 920 | S116: 0.825 | T116: 5701 | U116: 2421 | V116: 1288 | W116: 1307 | X116: 1.1 | Y116: 7258 | Z116: 3077 | AA116: 1868 | AB116: 1646 | AC116: 14.59
A117: 18 0033 | B117: 40 | C117: 20.4 | D117: 2.25 | F117: 3.15 | G117: 0.9 | H117: 0.4 | I117: 0.225 | J117: 2336 | K117: 746 | L117: 392 | M117: 403 | N117: 0.45 | O117: 4481 | P117: 1441 | Q117: 835 | R117: 774 | S117: 0.675 | T117: 6500 | U117: 2086 | V117: 1328 | W117: 1112 | X117: 0.9 | Y117: 8456 | Z117: 2680 | AA117: 1871 | AB117: 1419 | AC117: 16.422
A118: 18 0034 | B118: 40 | C118: 20.4 | D118: 2.5 | F118: 3.45 | G118: 0.95 | H118: 0.38 | I118: 0.237 | J118: 3351 | K118: 864 | L118: 470 | M118: 466 | N118: 0.475 | O118: 6453 | P118: 1673 | Q118: 997 | R118: 896 | S118: 0.712 | T118: 9390 | U118: 2424 | V118: 1579 | W118: 1290 | X118: 0.95 | Y118: 12243 | Z118: 3120 | AA118: 2219 | AB118: 1649 | AC118: 18.246
A119: 18 0035 | B119: 45 | C119: 22.4 | D119: 1.25 | F119: 2.85 | G119: 1.6 | H119: 1.28 | I119: 0.4 | J119: 1041 | K119: 883 | L119: 4 | M119: 497 | N119: 0.8 | O119: 1620 | P119: 1641 | Q119: 134 | R119: 914 | S119: 1.2 | T119: 1891 | U119: 2273 | V119: 389 | W119: 1253 | X119: 1.6 | Y119: 2007 | Z119: 2779 | AA119: 770 | AB119: 1514 | AC119: 11.739
A120: 18 0036 | B120: 45 | C120: 22.4 | D120: 1.75 | F120: 3.05 | G120: 1.3 | H120: 0.742 | I120: 0.325 | J120: 1524 | K120: 795 | L120: 214 | M120: 433 | N120: 0.65 | O120: 2701 | P120: 1507 | Q120: 512 | R120: 814 | S120: 0.975 | T120: 3646 | U120: 2135 | V120: 892 | W120: 1144 | X120: 1.3 | Y120: 4475 | Z120: 2681 | AA120: 1355 | AB120: 1421 | AC120: 16.434
A121: 18 0037 | B121: 45 | C121: 22.4 | D121: 2.5 | F121: 3.5 | G121: 1 | H121: 0.4 | I121: 0.25 | J121: 2773 | K121: 726 | L121: 383 | M121: 384 | N121: 0.5 | O121: 5320 | P121: 1403 | Q121: 815 | R121: 737 | S121: 0.75 | T121: 7716 | U121: 2031 | V121: 1296 | W121: 1059 | X121: 1 | Y121: 10037 | Z121: 2610 | AA121: 1825 | AB121: 1350 | AC121: 23.478
A122: 18 0038 | B122: 48 | C122: 16.3 | D122: 1.5 | F122: 3 | G122: 1.5 | H122: 1 | I122: 0.375 | J122: 1048 | K122: 832 | L122: 135 | M122: 333 | N122: 0.75 | O122: 1740 | P122: 1564 | Q122: 370 | R122: 618 | S122: 1.125 | T122: 2195 | U122: 2197 | V122: 704 | W122: 855 | X122: 1.5 | Y122: 2531 | Z122: 2730 | AA122: 1138 | AB122: 1043 | AC122: 18.85
A123: 18 0039 | B123: 50 | C123: 18.4 | D123: 1.25 | F123: 2.85 | G123: 1.6 | H123: 1.28 | I123: 0.4 | J123: 756.9 | K123: 742 | L123: 24 | M123: 325 | N123: 0.8 | O123: 1178 | P123: 1381 | Q123: 151 | R123: 597 | S123: 1.2 | T123: 1375 | U123: 1918 | V123: 380 | W123: 817 | X123: 1.6 | Y123: 1459 | Z123: 2352 | AA123: 712 | AB123: 984 | AC123: 16.657
A124: 18 0040 | B124: 50 | C124: 18.4 | D124: 1.5 | F124: 3.15 | G124: 1.65 | H124: 1.1 | I124: 0.412 | J124: 1166 | K124: 855 | L124: 93 | M124: 370 | N124: 0.825 | O124: 1890 | P124: 1602 | Q124: 294 | R124: 684 | S124: 1.237 | T124: 2319 | U124: 2239 | V124: 605 | W124: 942 | X124: 1.65 | Y124: 2600 | Z124: 2768 | AA124: 1024 | AB124: 1144 | AC124: 19.988
A125: 18 0041 | B125: 50 | C125: 18.4 | D125: 2 | F125: 3.65 | G125: 1.65 | H125: 0.825 | I125: 0.412 | J125: 2229 | K125: 1013 | L125: 251 | M125: 428 | N125: 0.825 | O125: 3868 | P125: 1918 | Q125: 610 | R125: 800 | S125: 1.237 | T125: 5114 | U125: 2713 | V125: 1079 | W125: 1116 | X125: 1.65 | Y125: 6163 | Z125: 3400 | AA125: 1656 | AB125: 1377 | AC125: 26.651
A126: 18 0042 | B126: 50 | C126: 18.4 | D126: 2.5 | F126: 4.15 | G126: 1.65 | H126: 0.66 | I126: 0.412 | J126: 3870 | K126: 1171 | L126: 409 | M126: 486 | N126: 0.825 | O126: 7002 | P126: 2234 | Q126: 926 | R126: 916 | S126: 1.237 | T126: 9643 | U126: 3187 | V126: 1552 | W126: 1291 | X126: 1.65 | Y126: 12038 | Z126: 4032 | AA126: 2288 | AB126: 1609 | AC126: 33.314
A127: 18 0043 | B127: 50 | C127: 18.4 | D127: 3 | F127: 4.2 | G127: 1.2 | H127: 0.4 | I127: 0.3 | J127: 4179 | K127: 891 | L127: 488 | M127: 357 | N127: 0.6 | O127: 8018 | P127: 1725 | Q127: 1033 | R127: 685 | S127: 0.9 | T127: 11630 | U127: 2500 | V127: 1636 | W127: 983 | X127: 1.2 | Y127: 15128 | Z127: 3219 | AA127: 2296 | AB127: 1251 | AC127: 39.977
A128: 18 0044 | B128: 50 | C128: 20.4 | D128: 2 | F128: 3.5 | G128: 1.5 | H128: 0.75 | I128: 0.375 | J128: 1966 | K128: 865 | L128: 244 | M128: 397 | N128: 0.75 | O128: 3478 | P128: 1642 | Q128: 578 | R128: 745 | S128: 1.125 | T128: 4687 | U128: 2330 | V128: 1000 | W128: 1045 | X128: 1.5 | Y128: 5745 | Z128: 2929 | AA128: 1510 | AB128: 1295 | AC128: 25.695
A129: 18 0045 | B129: 50 | C129: 20.4 | D129: 2.5 | F129: 3.85 | G129: 1.35 | H129: 0.54 | I129: 0.337 | J129: 3008 | K129: 876 | L129: 373 | M129: 393 | N129: 0.675 | O129: 5601 | P129: 1680 | Q129: 817 | R129: 746 | S129: 1.012 | T129: 7919 | U129: 2412 | V129: 1334 | W129: 1060 | X129: 1.35 | Y129: 10098 | Z129: 3072 | AA129: 1922 | AB129: 1335 | AC129: 32.118
A130: 18 0046 | B130: 50 | C130: 22.4 | D130: 2 | F130: 3.6 | G130: 1.6 | H130: 0.8 | I130: 0.4 | J130: 2247 | K130: 932 | L130: 228 | M130: 466 | N130: 0.8 | O130: 3924 | P130: 1763 | Q130: 556 | R130: 872 | S130: 1.2 | T130: 5222 | U130: 2493 | V130: 985 | W130: 1220 | X130: 1.6 | Y130: 6329 | Z130: 3123 | AA130: 1514 | AB130: 1509 | AC130: 24.639
A131: 18 0047 | B131: 50 | C131: 22.4 | D131: 2.5 | F131: 3.9 | G131: 1.4 | H131: 0.56 | I131: 0.35 | J131: 3261 | K131: 904 | L131: 364 | M131: 442 | N131: 0.7 | O131: 6044 | P131: 1730 | Q131: 806 | R131: 838 | S131: 1.05 | T131: 8510 | U131: 2480 | V131: 1324 | W131: 1190 | X131: 1.4 | Y131: 10817 | Z131: 3152 | AA131: 1920 | AB131: 1496 | AC131: 30.799
A132: 18 0048 | B132: 50 | C132: 25.4 | D132: 1.25 | F132: 2.85 | G132: 1.6 | H132: 1.28 | I132: 0.4 | J132: 853.7 | K132: 717 | L132: 2 | M132: 410 | N132: 0.8 | O132: 1328 | P132: 1332 | Q132: 106 | R132: 755 | S132: 1.2 | T132: 1550 | U132: 1845 | V132: 312 | W132: 1035 | X132: 1.6 | Y132: 1646 | Z132: 2256 | AA132: 621 | AB132: 1251 | AC132: 14.294
A133: 18 0049 | B133: 50 | C133: 25.4 | D133: 1.5 | F133: 3.1 | G133: 1.6 | H133: 1.066 | I133: 0.4 | J133: 1242 | K133: 789 | L133: 74 | M133: 447 | N133: 0.8 | O133: 2028 | P133: 1476 | Q133: 250 | R133: 828 | S133: 1.2 | T133: 2512 | U133: 2061 | V133: 528 | W133: 1145 | X133: 1.6 | Y133: 2844 | Z133: 2543 | AA133: 909 | AB133: 1397 | AC133: 17.153
A134: 18 0050 | B134: 50 | C134: 25.4 | D134: 2 | F134: 3.4 | G134: 1.4 | H134: 0.7 | I134: 0.35 | J134: 1949 | K134: 777 | L134: 230 | M134: 430 | N134: 0.7 | O134: 3491 | P134: 1476 | Q134: 537 | R134: 810 | S134: 1.05 | T134: 4762 | U134: 2097 | V134: 923 | W134: 1140 | X134: 1.4 | Y134: 5898 | Z134: 2639 | AA134: 1388 | AB134: 1421 | AC134: 22.871
A135: 18 0051 | B135: 50 | C135: 25.4 | D135: 2.25 | F135: 3.75 | G135: 1.5 | H135: 0.666 | I135: 0.375 | J135: 2905 | K135: 921 | L135: 292 | M135: 508 | N135: 0.75 | O135: 5249 | P135: 1752 | Q135: 675 | R135: 959 | S135: 1.125 | T135: 7217 | U135: 2494 | V135: 1147 | W135: 1353 | X135: 1.5 | Y135: 8997 | Z135: 3145 | AA135: 1709 | AB135: 1690 | AC135: 25.73
A136: 18 0052 | B136: 50 | C136: 25.4 | D136: 2.5 | F136: 3.9 | G136: 1.4 | H136: 0.56 | I136: 0.35 | J136: 3473 | K136: 903 | L136: 355 | M136: 494 | N136: 0.7 | O136: 6437 | P136: 1728 | Q136: 789 | R136: 938 | S136: 1.05 | T136: 9063 | U136: 2474 | V136: 1301 | W136: 1332 | X136: 1.4 | Y136: 11519 | Z136: 3143 | AA136: 1891 | AB136: 1677 | AC136: 28.589
A137: 18 0053 | B137: 50 | C137: 25.4 | D137: 3 | F137: 4.1 | G137: 1.1 | H137: 0.366 | I137: 0.275 | J137: 4255 | K137: 762 | L137: 424 | M137: 409 | N137: 0.55 | O137: 8214 | P137: 1476 | Q137: 897 | R137: 787 | S137: 0.825 | T137: 11976 | U137: 2142 | V137: 1418 | W137: 1135 | X137: 1.1 | Y137: 15640 | Z137: 2759 | AA137: 1987 | AB137: 1451 | AC137: 34.306
A138: 18 0054 | B138: 56 | C138: 28.5 | D138: 1.5 | F138: 3.45 | G138: 1.95 | H138: 1.3 | I138: 0.487 | J138: 1458 | K138: 843 | L138: -4 | M138: 483 | N138: 0.975 | O138: 2259 | P138: 1565 | Q138: 112 | R138: 889 | S138: 1.462 | T138: 2622 | U138: 2165 | V138: 350 | W138: 1218 | X138: 1.95 | Y138: 2766 | Z138: 2645 | AA138: 709 | AB138: 1470 | AC138: 21.489
A139: 18 0055 | B139: 56 | C139: 28.5 | D139: 2 | F139: 3.6 | G139: 1.6 | H139: 0.8 | I139: 0.4 | J139: 1910 | K139: 744 | L139: 173 | M139: 415 | N139: 0.8 | O139: 3335 | P139: 1406 | Q139: 428 | R139: 778 | S139: 1.2 | T139: 4438 | U139: 1987 | V139: 765 | W139: 1090 | X139: 1.6 | Y139: 5379 | Z139: 2486 | AA139: 1183 | AB139: 1349 | AC139: 28.653
A140: 18 0056 | B140: 56 | C140: 28.5 | D140: 2.5 | F140: 4.2 | G140: 1.7 | H140: 0.68 | I140: 0.425 | J140: 3638 | K140: 931 | L140: 287 | M140: 515 | N140: 0.85 | O140: 6550 | P140: 1770 | Q140: 666 | R140: 972 | S140: 1.275 | T140: 8978 | U140: 2517 | V140: 1138 | W140: 1369 | X140: 1.7 | Y140: 11164 | Z140: 3173 | AA140: 1701 | AB140: 1709 | AC140: 35.816
A141: 18 0057 | B141: 56 | C141: 28.5 | D141: 3 | F141: 4.3 | G141: 1.3 | H141: 0.433 | I141: 0.325 | J141: 4142 | K141: 747 | L141: 371 | M141: 404 | N141: 0.65 | O141: 7895 | P141: 1441 | Q141: 795 | R141: 775 | S141: 0.975 | T141: 11388 | U141: 2080 | V141: 1274 | W141: 1110 | X141: 1.3 | Y141: 14752 | Z141: 2666 | AA141: 1806 | AB141: 1412 | AC141: 42.979
A142: 18 0058 | B142: 60 | C142: 20.5 | D142: 2 | F142: 4.2 | G142: 2.2 | H142: 1.1 | I142: 0.55 | J142: 2528 | K142: 1082 | L142: 125 | M142: 440 | N142: 1.1 | O142: 4097 | P142: 2028 | Q142: 386 | R142: 812 | S142: 1.65 | T142: 5026 | U142: 2837 | V142: 784 | W142: 1119 | X142: 2.2 | Y142: 5636 | Z142: 3509 | AA142: 1320 | AB142: 1358 | AC142: 39.208
A143: 18 0059 | B143: 60 | C143: 20.5 | D143: 2.5 | F143: 4.7 | G143: 2.2 | H143: 0.88 | I143: 0.55 | J143: 4151 | K143: 1233 | L143: 276 | M143: 491 | N143: 1.1 | O143: 7102 | P143: 2330 | Q143: 688 | R143: 916 | S143: 1.65 | T143: 9255 | U143: 3289 | V143: 1237 | W143: 1273 | X143: 2.2 | Y143: 11008 | Z143: 4112 | AA143: 1923 | AB143: 1564 | AC143: 49.009
A144: 18 0060 | B144: 60 | C144: 20.5 | D144: 3 | F144: 5.2 | G144: 2.2 | H144: 0.733 | I144: 0.55 | J144: 6434 | K144: 1384 | L144: 426 | M144: 543 | N144: 1.1 | O144: 11429 | P144: 2631 | Q144: 990 | R144: 1019 | S144: 1.65 | T144: 15465 | U144: 3742 | V144: 1690 | W144: 1428 | X144: 2.2 | Y144: 19022 | Z144: 4716 | AA144: 2527 | AB144: 1771 | AC144: 58.811
A145: 18 0061 | B145: 60 | C145: 25.5 | D145: 2.5 | F145: 4.4 | G145: 1.9 | H145: 0.76 | I145: 0.475 | J145: 3447 | K145: 949 | L145: 259 | M145: 451 | N145: 0.95 | O145: 6081 | P145: 1799 | Q145: 616 | R145: 847 | S145: 1.425 | T145: 8175 | U145: 2551 | V145: 1072 | W145: 1187 | X145: 1.9 | Y145: 9997 | Z145: 3204 | AA145: 1627 | AB145: 1471 | AC145: 45.465
A146: 18 0062 | B146: 60 | C146: 25.5 | D146: 3 | F146: 4.65 | G146: 1.65 | H146: 0.55 | I146: 0.412 | J146: 4495 | K146: 889 | L146: 369 | M146: 414 | N146: 0.825 | O146: 8352 | P146: 1704 | Q146: 812 | R146: 787 | S146: 1.237 | T146: 11784 | U146: 2445 | V146: 1330 | W146: 1117 | X146: 1.65 | Y146: 15002 | Z146: 3111 | AA146: 1922 | AB146: 1405 | AC146: 54.557
A147: 18 0063 | B147: 60 | C147: 30.5 | D147: 2.5 | F147: 4.5 | G147: 2 | H147: 0.8 | I147: 0.5 | J147: 4059 | K147: 1012 | L147: 236 | M147: 564 | N147: 1 | O147: 7088 | P147: 1914 | Q147: 583 | R147: 1058 | S147: 1.5 | T147: 9432 | U147: 2704 | V147: 1041 | W147: 1481 | X147: 2 | Y147: 11433 | Z147: 3384 | AA147: 1610 | AB147: 1834 | AC147: 41.149
A148: 18 0064 | B148: 60 | C148: 30.5 | D148: 2.75 | F148: 4.75 | G148: 2 | H148: 0.727 | I148: 0.5 | J148: 5125 | K148: 1075 | L148: 299 | M148: 596 | N148: 1 | O148: 9117 | P148: 2039 | Q148: 708 | R148: 1122 | S148: 1.5 | T148: 12356 | U148: 2892 | V148: 1228 | W148: 1576 | X148: 2 | Y148: 15217 | Z148: 3634 | AA148: 1860 | AB148: 1961 | AC148: 45.264
A149: 18 0065 | B149: 60 | C149: 30.5 | D149: 3 | F149: 4.7 | G149: 1.7 | H149: 0.566 | I149: 0.425 | J149: 5083 | K149: 917 | L149: 356 | M149: 502 | N149: 0.85 | O149: 9407 | P149: 1754 | Q149: 793 | R149: 953 | S149: 1.275 | T149: 13226 | U149: 2511 | V149: 1309 | W149: 1353 | X149: 1.7 | Y149: 16792 | Z149: 3188 | AA149: 1906 | AB149: 1703 | AC149: 57.608
A150: 18 0066 | B150: 60 | C150: 30.5 | D150: 3.5 | F150: 5 | G150: 1.5 | H150: 0.428 | I150: 0.375 | J150: 6591 | K150: 874 | L150: 437 | M150: 472 | N150: 0.75 | O150: 12574 | P150: 1685 | Q150: 937 | R150: 905 | S150: 1.125 | T150: 18153 | U150: 2434 | V150: 1499 | W150: 1297 | X150: 1.5 | Y150: 23528 | Z150: 3121 | AA150: 2123 | AB150: 1650 | AC150: 57.608
A151: 18 0067 | B151: 63 | C151: 31 | D151: 1.8 | F151: 4.15 | G151: 2.35 | H151: 1.305 | I151: 0.587 | J151: 2364 | K151: 961 | L151: -4 | M151: 536 | N151: 1.175 | O151: 3658 | P151: 1785 | Q151: 130 | R151: 986 | S151: 1.762 | T151: 4238 | U151: 2470 | V151: 402 | W151: 1351 | X151: 2.35 | Y151: 4463 | Z151: 3018 | AA151: 811 | AB151: 1629 | AC151: 33.381
A152: 18 0068 | B152: 63 | C152: 31 | D152: 2.5 | F152: 4.25 | G152: 1.75 | H152: 0.7 | I152: 0.437 | J152: 2942 | K152: 763 | L152: 227 | M152: 410 | N152: 0.875 | O152: 5270 | P152: 1449 | Q152: 531 | R152: 773 | S152: 1.312 | T152: 7189 | U152: 2059 | V152: 912 | W152: 1088 | X152: 1.75 | Y152: 8904 | Z152: 2592 | AA152: 1368 | AB152: 1355 | AC152: 46.362
A153: 18 0069 | B153: 63 | C153: 31 | D153: 3 | F153: 4.7 | G153: 1.7 | H153: 0.566 | I153: 0.425 | J153: 4524 | K153: 830 | L153: 324 | M153: 441 | N153: 0.85 | O153: 8373 | P153: 1587 | Q153: 721 | R153: 838 | S153: 1.275 | T153: 11772 | U153: 2273 | V153: 1190 | W153: 1189 | X153: 1.7 | Y153: 14946 | Z153: 2886 | AA153: 1731 | AB153: 1495 | AC153: 56.635
A154: 18 0070 | B154: 63 | C154: 31 | D154: 3.5 | F154: 4.9 | G154: 1.4 | H154: 0.4 | I154: 0.35 | J154: 5399 | K154: 726 | L154: 383 | M154: 380 | N154: 0.7 | O154: 10359 | P154: 1403 | Q154: 815 | R154: 729 | S154: 1.05 | T154: 15025 | U154: 2030 | V154: 1296 | W154: 1047 | X154: 1.4 | Y154: 19545 | Z154: 2609 | AA154: 1826 | AB154: 1335 | AC154: 64.907
A155: 18 0071 | B155: 70 | C155: 24.5 | D155: 3 | F155: 5.3 | G155: 2.3 | H155: 0.766 | I155: 0.575 | J155: 5080 | K155: 1070 | L155: 306 | M155: 430 | N155: 1.15 | O155: 8948 | P155: 2031 | Q155: 721 | R155: 806 | S155: 1.725 | T155: 12007 | U155: 2883 | V155: 1245 | W155: 1128 | X155: 2.3 | Y155: 14663 | Z155: 3626 | AA155: 1878 | AB155: 1396 | AC155: 79.526
A156: 18 0072 | B156: 70 | C156: 24.5 | D156: 3.5 | F156: 6 | G156: 2.5 | H156: 0.714 | I156: 0.625 | J156: 8446 | K156: 1324 | L156: 421 | M156: 529 | N156: 1.25 | O156: 15076 | P156: 2519 | Q156: 971 | R156: 994 | S156: 1.875 | T156: 20495 | U156: 3585 | V156: 1650 | W156: 1395 | X156: 2.5 | Y156: 25309 | Z156: 4522 | AA156: 2458 | AB156: 1733 | AC156: 92.781
A157: 18 0073 | B157: 70 | C157: 25.5 | D157: 2 | F157: 4.5 | G157: 2.5 | H157: 1.25 | I157: 0.625 | J157: 2408 | K157: 938 | L157: 43 | M157: 406 | N157: 1.25 | O157: 3771 | P157: 1748 | Q157: 214 | R157: 748 | S157: 1.875 | T157: 4437 | U157: 2431 | V157: 512 | W157: 1024 | X157: 2.5 | Y157: 4755 | Z157: 2985 | AA157: 939 | AB157: 1235 | AC157: 52.401
A158: 18 0074 | B158: 70 | C158: 30.5 | D158: 2.5 | F158: 4.9 | G158: 2.4 | H158: 0.96 | I158: 0.6 | J158: 3755 | K158: 961 | L158: 153 | M158: 475 | N158: 1.2 | O158: 6297 | P158: 1807 | Q158: 422 | R158: 883 | S158: 1.8 | T158: 8031 | U158: 2538 | V158: 806 | W158: 1225 | X158: 2.4 | Y158: 9360 | Z158: 3153 | AA158: 1306 | AB158: 1501 | AC158: 61.186
A159: 18 0075 | B159: 70 | C159: 30.5 | D159: 3 | F159: 5.1 | G159: 2.1 | H159: 0.7 | I159: 0.525 | J159: 4676 | K159: 895 | L159: 276 | M159: 433 | N159: 1.05 | O159: 8376 | P159: 1701 | Q159: 640 | R159: 814 | S159: 1.575 | T159: 11426 | U159: 2418 | V159: 1093 | W159: 1145 | X159: 2.1 | Y159: 14152 | Z159: 3048 | AA159: 1634 | AB159: 1426 | AC159: 73.423
A160: 18 0076 | B160: 70 | C160: 35.5 | D160: 3 | F160: 5.1 | G160: 2.1 | H160: 0.7 | I160: 0.525 | J160: 5028 | K160: 891 | L160: 264 | M160: 493 | N160: 1.05 | O160: 9007 | P160: 1694 | Q160: 617 | R160: 928 | S160: 1.575 | T160: 12287 | U160: 2407 | V160: 1060 | W160: 1307 | X160: 2.1 | Y160: 15218 | Z160: 3029 | AA160: 1593 | AB160: 1628 | AC160: 67.319
A161: 18 0077 | B161: 70 | C161: 35.5 | D161: 3.5 | F161: 5.3 | G161: 1.8 | H161: 0.514 | I161: 0.45 | J161: 6077 | K161: 809 | L161: 347 | M161: 440 | N161: 0.9 | O161: 11384 | P161: 1551 | Q161: 760 | R161: 837 | S161: 1.35 | T161: 16177 | U161: 2228 | V161: 1239 | W161: 1193 | X161: 1.8 | Y161: 20714 | Z161: 2839 | AA161: 1784 | AB161: 1507 | AC161: 78.539
A162: 18 0078 | B162: 70 | C162: 35.5 | D162: 4 | F162: 5.8 | G162: 1.8 | H162: 0.45 | I162: 0.45 | J162: 8757 | K162: 891 | L162: 430 | M162: 482 | N162: 0.9 | O162: 16634 | P162: 1716 | Q162: 925 | R162: 921 | S162: 1.35 | T162: 23923 | U162: 2476 | V162: 1486 | W162: 1319 | X162: 1.8 | Y162: 30919 | Z162: 3169 | AA162: 2114 | AB162: 1675 | AC162: 89.759
A163: 18 0080 | B163: 70 | C163: 40.5 | D163: 4 | F163: 5.7 | G163: 1.7 | H163: 0.425 | I163: 0.425 | J163: 9025 | K163: 858 | L163: 424 | M163: 521 | N163: 0.85 | O163: 17230 | P163: 1654 | Q163: 910 | R163: 1000 | S163: 1.275 | T163: 24889 | U163: 2388 | V163: 1459 | W163: 1435 | X163: 1.7 | Y163: 32274 | Z163: 3059 | AA163: 2069 | AB163: 1827 | AC163: 80.388
A164: 18 0082 | B164: 70 | C164: 40.5 | D164: 5 | F164: 6.4 | G164: 1.4 | H164: 0.28 | I164: 0.35 | J164: 13646 | K164: 807 | L164: 513 | M164: 484 | N164: 0.7 | O164: 26719 | P164: 1572 | Q164: 1068 | R164: 938 | S164: 1.05 | T164: 39410 | U164: 2295 | V164: 1665 | W164: 1364 | X164: 1.4 | Y164: 51911 | Z164: 2975 | AA164: 2303 | AB164: 1760 | AC164: 100.485
A165: 18 0084 | B165: 71 | C165: 36 | D165: 2 | F165: 4.6 | G165: 2.6 | H165: 1.3 | I165: 0.65 | J165: 2861 | K165: 932 | L165: -5 | M165: 532 | N165: 1.3 | O165: 4432 | P165: 1730 | Q165: 125 | R165: 980 | S165: 1.95 | T165: 5144 | U165: 2394 | V165: 388 | W165: 1342 | X165: 2.6 | Y165: 5426 | Z165: 2924 | AA165: 784 | AB165: 1620 | AC165: 46.177
A166: 18 0085 | B166: 71 | C166: 36 | D166: 2.5 | F166: 4.5 | G166: 2 | H166: 0.8 | I166: 0.5 | J166: 2894 | K166: 723 | L166: 169 | M166: 402 | N166: 1 | O166: 5054 | P166: 1366 | Q166: 417 | R166: 754 | S166: 1.5 | T166: 6725 | U166: 1931 | V166: 744 | W166: 1055 | X166: 2 | Y166: 8152 | Z166: 2416 | AA166: 1150 | AB166: 1306 | AC166: 57.722
A167: 18 0086 | B167: 71 | C167: 36 | D167: 4 | F167: 5.6 | G167: 1.6 | H167: 0.4 | I167: 0.4 | J167: 7379 | K167: 748 | L167: 393 | M167: 402 | N167: 0.8 | O167: 14157 | P167: 1445 | Q167: 837 | R167: 772 | S167: 1.2 | T167: 20535 | U167: 2091 | V167: 1332 | W167: 1109 | X167: 1.6 | Y167: 26712 | Z167: 2687 | AA167: 1877 | AB167: 1415 | AC167: 92.355
A168: 18 0088 | B168: 80 | C168: 30.5 | D168: 2.5 | F168: 5.3 | G168: 2.8 | H168: 1.12 | I168: 0.7 | J168: 3664 | K168: 943 | L168: 91 | M168: 421 | N168: 1.4 | O168: 5911 | P168: 1765 | Q168: 303 | R168: 778 | S168: 2.1 | T168: 7211 | U168: 2464 | V168: 637 | W168: 1070 | X168: 2.8 | Y168: 8039 | Z168: 3042 | AA168: 1093 | AB168: 1299 | AC168: 84.305
A169: 18 0089 | B169: 80 | C169: 31 | D169: 3 | F169: 5.5 | G169: 2.5 | H169: 0.833 | I169: 0.625 | J169: 4531 | K169: 890 | L169: 212 | M169: 393 | N169: 1.25 | O169: 7847 | P169: 1682 | Q169: 520 | R169: 735 | S169: 1.875 | T169: 10352 | U169: 2378 | V169: 926 | W169: 1025 | X169: 2.5 | Y169: 12451 | Z169: 2978 | AA169: 1428 | AB169: 1265 | AC169: 100.598
A170: 18 0090 | B170: 80 | C170: 31 | D170: 4 | F170: 6.1 | G170: 2.1 | H170: 0.525 | I170: 0.525 | J170: 7319 | K170: 856 | L170: 378 | M170: 366 | N170: 1.05 | O170: 13677 | P170: 1644 | Q170: 823 | R170: 695 | S170: 1.575 | T170: 19394 | U170: 2363 | V170: 1338 | W170: 989 | X170: 2.1 | Y170: 24791 | Z170: 3014 | AA170: 1920 | AB170: 1246 | AC170: 134.13
A171: 18 0092 | B171: 80 | C171: 35.5 | D171: 4 | F171: 6.2 | G171: 2.2 | H171: 0.55 | I171: 0.55 | J171: 8118 | K171: 884 | L171: 364 | M171: 428 | N171: 1.1 | O171: 15083 | P171: 1693 | Q171: 802 | R171: 812 | S171: 1.65 | T171: 21280 | U171: 2428 | V171: 1314 | W171: 1154 | X171: 2.2 | Y171: 27093 | Z171: 3089 | AA171: 1901 | AB171: 1452 | AC171: 126.75
A172: 18 0094 | B172: 80 | C172: 36 | D172: 3 | F172: 5.7 | G172: 2.7 | H172: 0.9 | I172: 0.675 | J172: 5401 | K172: 964 | L172: 181 | M172: 487 | N172: 1.35 | O172: 9196 | P172: 1817 | Q172: 474 | R172: 909 | S172: 2.025 | T172: 11919 | U172: 2557 | V172: 879 | W172: 1265 | X172: 2.7 | Y172: 14106 | Z172: 3186 | AA172: 1396 | AB172: 1556 | AC172: 94.401
A173: 18 0095 | B173: 80 | C173: 41 | D173: 2.25 | F173: 5.2 | G173: 2.95 | H173: 1.311 | I173: 0.737 | J173: 3698 | K173: 942 | L173: -9 | M173: 544 | N173: 1.475 | O173: 5715 | P173: 1749 | Q173: 117 | R173: 1000 | S173: 2.212 | T173: 6613 | U173: 2419 | V173: 379 | W173: 1370 | X173: 2.95 | Y173: 6950 | Z173: 2953 | AA173: 778 | AB173: 1652 | AC173: 65.46
A174: 18 0096 | B174: 80 | C174: 41 | D174: 3 | F174: 5.3 | G174: 2.3 | H174: 0.766 | I174: 0.575 | J174: 4450 | K174: 774 | L174: 196 | M174: 434 | N174: 1.15 | O174: 7838 | P174: 1466 | Q174: 474 | R174: 814 | S174: 1.725 | T174: 10518 | U174: 2074 | V174: 835 | W174: 1142 | X174: 2.3 | Y174: 12844 | Z174: 2600 | AA174: 1278 | AB174: 1417 | AC174: 87.281
A175: 18 0097 | B175: 80 | C175: 41 | D175: 4 | F175: 6.2 | G175: 2.2 | H175: 0.55 | I175: 0.55 | J175: 8726 | K175: 883 | L175: 354 | M175: 486 | N175: 1.1 | O175: 16213 | P175: 1690 | Q175: 783 | R175: 924 | S175: 1.65 | T175: 22874 | U175: 2422 | V175: 1288 | W175: 1314 | X175: 2.2 | Y175: 29122 | Z175: 3078 | AA175: 1868 | AB175: 1655 | AC175: 116.374
A176: 18 0099 | B176: 80 | C176: 41 | D176: 5 | F176: 6.7 | G176: 1.7 | H176: 0.34 | I176: 0.425 | J176: 11821 | K176: 755 | L176: 439 | M176: 407 | N176: 0.85 | O176: 22928 | P176: 1465 | Q176: 924 | R176: 786 | S176: 1.275 | T176: 33559 | U176: 2130 | V176: 1453 | W176: 1135 | X176: 1.7 | Y176: 43952 | Z176: 2750 | AA176: 2028 | AB176: 1456 | AC176: 145.468
A177: 18 0101 | B177: 90 | C177: 46 | D177: 2.5 | F177: 5.7 | G177: 3.2 | H177: 1.28 | I177: 0.8 | J177: 4232 | K177: 886 | L177: 2 | M177: 509 | N177: 1.6 | O177: 6585 | P177: 1646 | Q177: 130 | R177: 938 | S177: 2.4 | T177: 7684 | U177: 2280 | V177: 385 | W177: 1286 | X177: 3.2 | Y177: 8157 | Z177: 2787 | AA177: 766 | AB177: 1553 | AC177: 92.231
A178: 18 0102 | B178: 90 | C178: 46 | D178: 3.5 | F178: 6 | G178: 2.5 | H178: 0.714 | I178: 0.625 | J178: 5836 | K178: 756 | L178: 216 | M178: 421 | N178: 1.25 | O178: 10416 | P178: 1434 | Q178: 509 | R178: 792 | S178: 1.875 | T178: 14161 | U178: 2035 | V178: 879 | W178: 1114 | X178: 2.5 | Y178: 17487 | Z178: 2560 | AA178: 1326 | AB178: 1387 | AC178: 129.124
A179: 18 0103 | B179: 90 | C179: 46 | D179: 5 | F179: 7 | G179: 2 | H179: 0.4 | I179: 0.5 | J179: 11267 | K179: 728 | L179: 382 | M179: 394 | N179: 1 | O179: 21617 | P179: 1406 | Q179: 814 | R179: 757 | S179: 1.5 | T179: 31354 | U179: 2035 | V179: 1295 | W179: 1088 | X179: 2 | Y179: 40786 | Z179: 2615 | AA179: 1826 | AB179: 1387 | AC179: 184.463
A180: 18 0105 | B180: 100 | C180: 41 | D180: 4 | F180: 7.2 | G180: 3.2 | H180: 0.8 | I180: 0.8 | J180: 8715 | K180: 944 | L180: 238 | M180: 437 | N180: 1.6 | O180: 15219 | P180: 1788 | Q180: 577 | R180: 818 | S180: 2.4 | T180: 20251 | U180: 2530 | V180: 1017 | W180: 1144 | X180: 3.2 | Y180: 24547 | Z180: 3172 | AA180: 1557 | AB180: 1414 | AC180: 205.153
A181: 18 0107 | B181: 100 | C181: 41 | D181: 5 | F181: 7.75 | G181: 2.75 | H181: 0.55 | I181: 0.687 | J181: 12345 | K181: 896 | L181: 374 | M181: 404 | N181: 1.375 | O181: 22937 | P181: 1717 | Q181: 823 | R181: 767 | S181: 2.062 | T181: 32361 | U181: 2464 | V181: 1346 | W181: 1089 | X181: 2.75 | Y181: 41201 | Z181: 3136 | AA181: 1944 | AB181: 1370 | AC181: 256.441
A182: 18 0109 | B182: 100 | C182: 51 | D182: 2.7 | F182: 6.2 | G182: 3.5 | H182: 1.296 | I182: 0.875 | J182: 4779 | K182: 853 | L182: -3 | M182: 490 | N182: 1.75 | O182: 7410 | P182: 1584 | Q182: 116 | R182: 902 | S182: 2.625 | T182: 8609 | U182: 2192 | V182: 357 | W182: 1235 | X182: 3.5 | Y182: 9091 | Z182: 2678 | AA182: 721 | AB182: 1491 | AC182: 123.164
A183: 18 0110 | B183: 100 | C183: 51 | D183: 3.5 | F183: 6.3 | G183: 2.8 | H183: 0.8 | I183: 0.7 | J183: 5624 | K183: 715 | L183: 167 | M183: 399 | N183: 1.4 | O183: 9823 | P183: 1351 | Q183: 411 | R183: 749 | S183: 2.1 | T183: 13070 | U183: 1909 | V183: 734 | W183: 1049 | X183: 2.8 | Y183: 15843 | Z183: 2389 | AA183: 1136 | AB183: 1298 | AC183: 159.657
A184: 18 0111 | B184: 100 | C184: 51 | D184: 4 | F184: 7 | G184: 3 | H184: 0.75 | I184: 0.75 | J184: 8673 | K184: 854 | L184: 225 | M184: 476 | N184: 1.5 | O184: 15341 | P184: 1618 | Q184: 540 | R184: 894 | S184: 2.25 | T184: 20674 | U184: 2292 | V184: 944 | W184: 1255 | X184: 3 | Y184: 25338 | Z184: 2877 | AA184: 1439 | AB184: 1559 | AC184: 182.465
A185: 18 0113 | B185: 100 | C185: 51 | D185: 5 | F185: 7.8 | G185: 2.8 | H185: 0.56 | I185: 0.7 | J185: 13924 | K185: 903 | L185: 355 | M185: 496 | N185: 1.4 | O185: 25810 | P185: 1728 | Q185: 789 | R185: 942 | S185: 2.1 | T185: 36339 | U185: 2475 | V185: 1301 | W185: 1337 | X185: 2.8 | Y185: 46189 | Z185: 3144 | AA185: 1891 | AB185: 1683 | AC185: 228.081
A186: 18 0115 | B186: 100 | C186: 51 | D186: 6 | F186: 8.2 | G186: 2.2 | H186: 0.366 | I186: 0.55 | J186: 17061 | K186: 763 | L186: 424 | M186: 411 | N186: 1.1 | O186: 32937 | P186: 1477 | Q186: 897 | R186: 790 | S186: 1.65 | T186: 48022 | U186: 2143 | V186: 1418 | W186: 1139 | X186: 2.2 | Y186: 62711 | Z186: 2760 | AA186: 1987 | AB186: 1457 | AC186: 273.698
A187: 18 0117 | B187: 112 | C187: 57 | D187: 3 | F187: 6.9 | G187: 3.9 | H187: 1.3 | I187: 0.975 | J187: 5834 | K187: 843 | L187: -4 | M187: 483 | N187: 1.95 | O187: 9038 | P187: 1565 | Q187: 112 | R187: 889 | S187: 2.925 | T187: 10489 | U187: 2165 | V187: 350 | W187: 1218 | X187: 3.9 | Y187: 11064 | Z187: 2645 | AA187: 709 | AB187: 1470 | AC187: 171.917
A188: 18 0118 | B188: 112 | C188: 57 | D188: 4 | F188: 7.2 | G188: 3.2 | H188: 0.8 | I188: 0.8 | J188: 7639 | K188: 744 | L188: 173 | M188: 415 | N188: 1.6 | O188: 13341 | P188: 1406 | Q188: 428 | R188: 778 | S188: 2.4 | T188: 17752 | U188: 1987 | V188: 765 | W188: 1090 | X188: 3.2 | Y188: 21518 | Z188: 2486 | AA188: 1183 | AB188: 1349 | AC188: 229.222
A189: 18 0120 | B189: 112 | C189: 57 | D189: 6 | F189: 8.5 | G189: 2.5 | H189: 0.416 | I189: 0.625 | J189: 15800 | K189: 712 | L189: 363 | M189: 384 | N189: 1.25 | O189: 30215 | P189: 1373 | Q189: 777 | R189: 737 | S189: 1.875 | T189: 43707 | U189: 1985 | V189: 1239 | W189: 1058 | X189: 2.5 | Y189: 56737 | Z189: 2548 | AA189: 1752 | AB189: 1348 | AC189: 343.833
A190: 18 0122 | B190: 125 | C190: 51 | D190: 4 | F190: 8.5 | G190: 4.5 | H190: 1.125 | I190: 1.125 | J190: 10096 | K190: 980 | L190: 86 | M190: 463 | N190: 2.25 | O190: 16265 | P190: 1832 | Q190: 299 | R190: 856 | S190: 3.375 | T190: 19817 | U190: 2556 | V190: 640 | W190: 1178 | X190: 4.5 | Y190: 22060 | Z190: 3153 | AA190: 1109 | AB190: 1431 | AC190: 321.182
A191: 18 0124 | B191: 125 | C191: 51 | D191: 5 | F191: 8.9 | G191: 3.9 | H191: 0.78 | I191: 0.975 | J191: 13063 | K191: 913 | L191: 241 | M191: 420 | N191: 1.95 | O191: 22931 | P191: 1730 | Q191: 579 | R191: 787 | S191: 2.925 | T191: 30669 | U191: 2451 | V191: 1012 | W191: 1102 | X191: 3.9 | Y191: 37342 | Z191: 3076 | AA191: 1541 | AB191: 1363 | AC191: 401.478
A192: 18 0126 | B192: 125 | C192: 51 | D192: 6 | F192: 9.4 | G192: 3.4 | H192: 0.566 | I192: 0.85 | J192: 17027 | K192: 859 | L192: 349 | M192: 386 | N192: 1.7 | O192: 31514 | P192: 1645 | Q192: 770 | R192: 733 | S192: 2.55 | T192: 44307 | U192: 2358 | V192: 1264 | W192: 1039 | X192: 3.4 | Y192: 56254 | Z192: 2999 | AA192: 1832 | AB192: 1306 | AC192: 481.773
A193: 18 0128 | B193: 125 | C193: 61 | D193: 5 | F193: 9 | G193: 4 | H193: 0.8 | I193: 1 | J193: 14615 | K193: 930 | L193: 220 | M193: 500 | N193: 2 | O193: 25526 | P193: 1758 | Q193: 542 | R193: 938 | S193: 3 | T193: 33965 | U193: 2485 | V193: 965 | W193: 1312 | X193: 4 | Y193: 41170 | Z193: 3111 | AA193: 1489 | AB193: 1624 | AC193: 366.953
A194: 18 0130 | B194: 125 | C194: 61 | D194: 6 | F194: 9.6 | G194: 3.6 | H194: 0.6 | I194: 0.9 | J194: 19789 | K194: 908 | L194: 334 | M194: 481 | N194: 1.8 | O194: 36336 | P194: 1734 | Q194: 749 | R194: 911 | S194: 2.7 | T194: 50722 | U194: 2479 | V194: 1247 | W194: 1290 | X194: 3.6 | Y194: 64028 | Z194: 3141 | AA194: 1827 | AB194: 1619 | AC194: 440.343
A195: 18 0132 | B195: 125 | C195: 64 | D195: 3.5 | F195: 8 | G195: 4.5 | H195: 1.285 | I195: 1.125 | J195: 8514 | K195: 907 | L195: 0 | M195: 522 | N195: 2.25 | O195: 13231 | P195: 1684 | Q195: 129 | R195: 961 | S195: 3.375 | T195: 15416 | U195: 2331 | V195: 388 | W195: 1318 | X195: 4.5 | Y195: 16335 | Z195: 2849 | AA195: 777 | AB195: 1591 | AC195: 248.775
A196: 18 0133 | B196: 125 | C196: 64 | D196: 5 | F196: 8.5 | G196: 3.5 | H196: 0.7 | I196: 0.875 | J196: 12238 | K196: 778 | L196: 229 | M196: 433 | N196: 1.75 | O196: 21924 | P196: 1477 | Q196: 537 | R196: 816 | S196: 2.625 | T196: 29908 | U196: 2099 | V196: 923 | W196: 1149 | X196: 3.5 | Y196: 37041 | Z196: 2641 | AA196: 1387 | AB196: 1432 | AC196: 355.393
A197: 18 0135 | B197: 125 | C197: 64 | D197: 6 | F197: 9.6 | G197: 3.6 | H197: 0.6 | I197: 0.9 | J197: 20348 | K197: 912 | L197: 331 | M197: 504 | N197: 1.8 | O197: 37362 | P197: 1741 | Q197: 746 | R197: 955 | S197: 2.7 | T197: 52155 | U197: 2487 | V197: 1243 | W197: 1352 | X197: 3.6 | Y197: 65836 | Z197: 3150 | AA197: 1823 | AB197: 1697 | AC197: 426.471
A198: 18 0137 | B198: 125 | C198: 71 | D198: 6 | F198: 9.3 | G198: 3.3 | H198: 0.55 | I198: 0.825 | J198: 19538 | K198: 835 | L198: 328 | M198: 504 | N198: 1.65 | O198: 36302 | P198: 1598 | Q198: 728 | R198: 959 | S198: 2.475 | T198: 51217 | U198: 2288 | V198: 1201 | W198: 1363 | X198: 3.3 | Y198: 65207 | Z198: 2905 | AA198: 1746 | AB198: 1718 | AC198: 391.515
A199: 18 0139 | B199: 140 | C199: 72 | D199: 3.8 | F199: 8.7 | G199: 4.9 | H199: 1.289 | I199: 1.225 | J199: 9514 | K199: 856 | L199: -2 | M199: 495 | N199: 2.45 | O199: 14773 | P199: 1590 | Q199: 119 | R199: 911 | S199: 3.675 | T199: 17195 | U199: 2201 | V199: 362 | W199: 1249 | X199: 4.9 | Y199: 18199 | Z199: 2690 | AA199: 728 | AB199: 1508 | AC199: 337.734
A200: 18 0140 | B200: 140 | C200: 72 | D200: 5 | F200: 9 | G200: 4 | H200: 0.8 | I200: 1 | J200: 12014 | K200: 745 | L200: 173 | M200: 419 | N200: 2 | O200: 20982 | P200: 1408 | Q200: 428 | R200: 787 | S200: 3 | T200: 27920 | U200: 1990 | V200: 764 | W200: 1101 | X200: 4 | Y200: 33843 | Z200: 2490 | AA200: 1182 | AB200: 1363 | AC200: 444.388
... 48 more rows

Sheet Extra
A1: =Programm!BN88 -> Bestell- | B1: =Programm!BN85 -> kopieren | D1: =Programm!BN87 -> Sonderabmessungen | I1: s = 0,25 h0 | N1: s = 0,50 h0 | S1: s = 0,75 h0 | X1: s = 1,00 h0 | AC1: =Programm!BN90 -> Masse 1000 Stück
A2: =Programm!BN89 -> Nr.: | B2: De | C2: Di | D2: t | E2: t' | F2: l0 | G2: h0 | H2: h0/t | I2: s | J2: F | K2: s1 | L2: s2 | M2: s3 | N2: s | O2: F | P2: s1 | Q2: s2 | R2: s3 | S2: s | T2: F | U2: s1 | V2: s2 | W2: s3 | X2: s | Y2: F | Z2: s1 | AA2: s2 | AB2: s3 | AC2: in kg
A3: 18 0079 | B3: 70 | C3: 35.5 | D3: 4 | E3: 3.75 | F3: 5.8 | G3: 1.8 | H3: 0.45 | I3: 0.45 | J3: 9167 | K3: 977 | L3: 357 | M3: 535 | N3: 0.9 | O3: 17018 | P3: 1877 | Q3: 790 | R3: 1022 | S3: 1.35 | T3: 23923 | U3: 2701 | V3: 1299 | W3: 1460 | X3: 2.05 | Y3: 33656 | Z3: 3831 | AA3: 2244 | AB3: 2045 | AC3: 84.149
A4: 18 0081 | B4: 70 | C4: 40.5 | D4: 4 | E4: 3.75 | F4: 5.7 | G4: 1.7 | H4: 0.425 | I4: 0.425 | J4: 9423 | K4: 942 | L4: 354 | M4: 579 | N4: 0.85 | O4: 17604 | P4: 1813 | Q4: 779 | R4: 1108 | S4: 1.275 | T4: 24889 | U4: 2611 | V4: 1277 | W4: 1588 | X4: 1.95 | Y4: 35467 | Z4: 3731 | AA4: 2215 | AB4: 2246 | AC4: 75.364
A5: 18 0083 | B5: 70 | C5: 40.5 | D5: 5 | E5: 4.7 | F5: 6.4 | G5: 1.4 | H5: 0.28 | I5: 0.35 | J5: 14004 | K5: 886 | L5: 457 | M5: 537 | N5: 0.7 | O5: 27059 | P5: 1722 | Q5: 963 | R5: 1040 | S5: 1.05 | T5: 39410 | U5: 2509 | V5: 1518 | W5: 1509 | X5: 1.7 | Y5: 61324 | Z5: 3841 | AA5: 2680 | AB5: 2289 | AC5: 94.456
A6: 18 0087 | B6: 71 | C6: 36 | D6: 4 | E6: 3.75 | F6: 5.6 | G6: 1.6 | H6: 0.4 | I6: 0.4 | J6: 7685 | K6: 821 | L6: 334 | M6: 447 | N6: 0.8 | O6: 14445 | P6: 1583 | Q6: 727 | R6: 857 | S6: 1.2 | T6: 20535 | U6: 2286 | V6: 1179 | W6: 1230 | X6: 1.85 | Y6: 29661 | Z6: 3302 | AA6: 2039 | AB6: 1755 | AC6: 86.582
A7: 18 0091 | B7: 80 | C7: 31 | D7: 4 | E7: 3.75 | F7: 6.1 | G7: 2.1 | H7: 0.525 | I7: 0.525 | J7: 7717 | K7: 933 | L7: 308 | M7: 406 | N7: 1.05 | O7: 14049 | P7: 1788 | Q7: 694 | R7: 771 | S7: 1.575 | T7: 19394 | U7: 2564 | V7: 1159 | W7: 1094 | X7: 2.35 | Y7: 26327 | Z7: 3566 | AA7: 1989 | AB7: 1495 | AC7: 125.747
A8: 18 0093 | B8: 80 | C8: 35.5 | D8: 4 | E8: 3.75 | F8: 6.2 | G8: 2.2 | H8: 0.55 | I8: 0.55 | J8: 8577 | K8: 964 | L8: 289 | M8: 474 | N8: 1.1 | O8: 15512 | P8: 1843 | Q8: 664 | R8: 899 | S8: 1.65 | T8: 21280 | U8: 2637 | V8: 1124 | W8: 1274 | X8: 2.45 | Y8: 28564 | Z8: 3638 | AA8: 1945 | AB8: 1731 | AC8: 118.828
A9: 18 0098 | B9: 80 | C9: 41 | D9: 4 | E9: 3.75 | F9: 6.2 | G9: 2.2 | H9: 0.55 | I9: 0.55 | J9: 9220 | K9: 965 | L9: 278 | M9: 538 | N9: 1.1 | O9: 16674 | P9: 1843 | Q9: 642 | R9: 1021 | S9: 1.65 | T9: 22874 | U9: 2634 | V9: 1094 | W9: 1448 | X9: 2.45 | Y9: 30703 | Z9: 3630 | AA9: 1906 | AB9: 1970 | AC9: 109.1
A10: 18 0100 | B10: 80 | C10: 41 | D10: 5 | E10: 4.7 | F10: 6.7 | G10: 1.7 | H10: 0.34 | I10: 0.425 | J10: 12211 | K10: 827 | L10: 385 | M10: 452 | N10: 0.85 | O10: 23296 | P10: 1602 | Q10: 822 | R10: 871 | S10: 1.275 | T10: 33559 | U10: 2324 | V10: 1312 | W10: 1255 | X10: 2 | Y10: 50035 | Z10: 3434 | AA10: 2269 | AB10: 1834 | AC10: 136.74
A11: 18 0104 | B11: 90 | C11: 46 | D11: 5 | E11: 4.7 | F11: 7 | G11: 2 | H11: 0.4 | I11: 0.5 | J11: 11713 | K11: 796 | L11: 327 | M11: 437 | N11: 1 | O11: 22035 | P11: 1535 | Q11: 712 | R11: 837 | S11: 1.5 | T11: 31354 | U11: 2217 | V11: 1153 | W11: 1201 | X11: 2.3 | Y11: 45141 | Z11: 3188 | AA11: 1979 | AB11: 1707 | AC11: 173.395
A12: 18 0106 | B12: 100 | C12: 41 | D12: 4 | E12: 3.8 | F12: 7.2 | G12: 3.2 | H12: 0.8 | I12: 0.8 | J12: 9215 | K12: 1004 | L12: 173 | M12: 470 | N12: 1.6 | O12: 15683 | P12: 1898 | Q12: 457 | R12: 880 | S12: 2.4 | T12: 20251 | U12: 2681 | V12: 851 | W12: 1228 | X12: 3.4 | Y12: 24574 | Z12: 3503 | AA12: 1501 | AB12: 1577 | AC12: 194.896
A13: 18 0108 | B13: 100 | C13: 41 | D13: 5 | E13: 4.7 | F13: 7.75 | G13: 2.75 | H13: 0.55 | I13: 0.687 | J13: 13013 | K13: 973 | L13: 303 | M13: 446 | N13: 1.375 | O13: 23561 | P13: 1862 | Q13: 691 | R13: 846 | S13: 2.062 | T13: 32361 | U13: 2665 | V13: 1164 | W13: 1198 | X13: 3.05 | Y13: 43381 | Z13: 3669 | AA13: 1933 | AB13: 1622 | AC13: 241.055
A14: 18 0112 | B14: 100 | C14: 51 | D14: 4 | E14: 3.8 | F14: 7 | G14: 3 | H14: 0.75 | I14: 0.75 | J14: 9156 | K14: 912 | L14: 165 | M14: 513 | N14: 1.5 | O14: 15789 | P14: 1724 | Q14: 429 | R14: 962 | S14: 2.25 | T14: 20674 | U14: 2437 | V14: 792 | W14: 1348 | X14: 3.2 | Y14: 25555 | Z14: 3198 | AA14: 1394 | AB14: 1747 | AC14: 173.342
A15: 18 0114 | B15: 100 | C15: 51 | D15: 5 | E15: 4.7 | F15: 7.8 | G15: 2.8 | H15: 0.56 | I15: 0.7 | J15: 14689 | K15: 983 | L15: 281 | M15: 546 | N15: 1.4 | O15: 26525 | P15: 1877 | Q15: 651 | R15: 1036 | S15: 2.1 | T15: 36339 | U15: 2682 | V15: 1111 | W15: 1468 | X15: 3.1 | Y15: 48503 | Z15: 3676 | AA15: 1923 | AB15: 1987 | AC15: 214.397
A16: 18 0116 | B16: 100 | C16: 51 | D16: 6 | E16: 5.6 | F16: 8.2 | G16: 2.2 | H16: 0.366 | I16: 0.55 | J16: 17753 | K16: 843 | L16: 361 | M16: 461 | N16: 1.1 | O16: 33589 | P16: 1629 | Q16: 778 | R16: 885 | S16: 1.65 | T16: 48022 | U16: 2358 | V16: 1253 | W16: 1273 | X16: 2.6 | Y16: 71153 | Z16: 3483 | AA16: 2207 | AB16: 1858 | AC16: 255.451
A17: 18 0119 | B17: 112 | C17: 57 | D17: 4 | E17: 3.75 | F17: 7.2 | G17: 3.2 | H17: 0.8 | I17: 0.8 | J17: 8192 | K17: 805 | L17: 107 | M17: 454 | N17: 1.6 | O17: 13855 | P17: 1518 | Q17: 305 | R17: 850 | S17: 2.4 | T17: 17752 | U17: 2139 | V17: 595 | W17: 1188 | X17: 3.45 | Y17: 21468 | Z17: 2816 | AA17: 1114 | AB17: 1542 | AC17: 214.896
A18: 18 0121 | B18: 112 | C18: 57 | D18: 6 | E18: 5.6 | F18: 8.5 | G18: 2.5 | H18: 0.416 | I18: 0.625 | J18: 16536 | K18: 786 | L18: 302 | M18: 431 | N18: 1.25 | O18: 30906 | P18: 1513 | Q18: 662 | R18: 824 | S18: 1.875 | T18: 43707 | U18: 2182 | V18: 1081 | W18: 1181 | X18: 2.9 | Y18: 62863 | Z18: 3152 | AA18: 1894 | AB18: 1685 | AC18: 320.911
A19: 18 0123 | B19: 125 | C19: 51 | D19: 4 | E19: 3.8 | F19: 8.5 | G19: 4.5 | H19: 1.125 | I19: 1.125 | J19: 10705 | K19: 1031 | L19: 19 | M19: 492 | N19: 2.25 | O19: 16830 | P19: 1924 | Q19: 176 | R19: 908 | S19: 3.375 | T19: 19817 | U19: 2680 | V19: 471 | W19: 1249 | X19: 4.7 | Y19: 21268 | Z19: 3394 | AA19: 994 | AB19: 1554 | AC19: 305.123
A20: 18 0125 | B20: 125 | C20: 51 | D20: 5 | E20: 4.75 | F20: 8.9 | G20: 3.9 | H20: 0.78 | I20: 0.975 | J20: 13804 | K20: 972 | L20: 179 | M20: 452 | N20: 1.95 | O20: 23619 | P20: 1838 | Q20: 463 | R20: 847 | S20: 2.925 | T20: 30669 | U20: 2599 | V20: 852 | W20: 1183 | X20: 4.15 | Y20: 37492 | Z20: 3405 | AA20: 1492 | AB20: 1524 | AC20: 381.404
A21: 18 0127 | B21: 125 | C21: 51 | D21: 6 | E21: 5.65 | F21: 9.4 | G21: 3.4 | H21: 0.566 | I21: 0.85 | J21: 17944 | K21: 931 | L21: 282 | M21: 426 | N21: 1.7 | O21: 32369 | P21: 1779 | Q21: 647 | R21: 806 | S21: 2.55 | T21: 44307 | U21: 2544 | V21: 1095 | W21: 1140 | X21: 3.75 | Y21: 58923 | Z21: 3482 | AA21: 1868 | AB21: 1535 | AC21: 453.7
A22: 18 0129 | B22: 125 | C22: 61 | D22: 5 | E22: 4.75 | F22: 9 | G22: 4 | H22: 0.8 | I22: 1 | J22: 15455 | K22: 990 | L22: 155 | M22: 538 | N22: 2 | O22: 26305 | P22: 1869 | Q22: 421 | R22: 1007 | S22: 3 | T22: 33965 | U22: 2637 | V22: 799 | W22: 1407 | X22: 4.25 | Y22: 41217 | Z22: 3439 | AA22: 1428 | AB22: 1811 | AC22: 348.605
A23: 18 0131 | B23: 125 | C23: 61 | D23: 6 | E23: 5.6 | F23: 9.6 | G23: 3.6 | H23: 0.6 | I23: 0.9 | J23: 21079 | K23: 996 | L23: 249 | M23: 535 | N23: 1.8 | O23: 37539 | P23: 1897 | Q23: 592 | R23: 1011 | S23: 2.7 | T23: 50722 | U23: 2703 | V23: 1031 | W23: 1429 | X23: 4 | Y23: 66696 | Z23: 3701 | AA23: 1831 | AB23: 1929 | AC23: 410.987
A24: 18 0134 | B24: 125 | C24: 64 | D24: 5 | E24: 4.7 | F24: 8.5 | G24: 3.5 | H24: 0.7 | I24: 0.875 | J24: 13031 | K24: 842 | L24: 163 | M24: 475 | N24: 1.75 | O24: 22661 | P24: 1596 | Q24: 415 | R24: 893 | S24: 2.625 | T24: 29908 | U24: 2262 | V24: 754 | W24: 1254 | X24: 3.8 | Y24: 37673 | Z24: 3017 | AA24: 1350 | AB24: 1651 | AC24: 334.069
A25: 18 0136 | B25: 125 | C25: 64 | D25: 6 | E25: 5.6 | F25: 9.6 | G25: 3.6 | H25: 0.6 | I25: 0.9 | J25: 21674 | K25: 1000 | L25: 246 | M25: 560 | N25: 1.8 | O25: 38599 | P25: 1905 | Q25: 587 | R25: 1059 | S25: 2.7 | T25: 52155 | U25: 2714 | V25: 1024 | W25: 1497 | X25: 4 | Y25: 68579 | Z25: 3713 | AA25: 1825 | AB25: 2022 | AC25: 398.04
A26: 18 0138 | B26: 125 | C26: 71 | D26: 6 | E26: 5.6 | F26: 9.3 | G26: 3.3 | H26: 0.55 | I26: 0.825 | J26: 20725 | K26: 919 | L26: 250 | M26: 561 | N26: 1.65 | O26: 37411 | P26: 1754 | Q26: 583 | R26: 1065 | S26: 2.475 | T26: 51217 | U26: 2504 | V26: 1001 | W26: 1511 | X26: 3.7 | Y26: 68887 | Z26: 3464 | AA26: 1776 | AB26: 2067 | AC26: 365.414
A27: 18 0141 | B27: 140 | C27: 72 | D27: 5 | E27: 4.7 | F27: 9 | G27: 4 | H27: 0.8 | I27: 1 | J27: 12847 | K27: 803 | L27: 109 | M27: 457 | N27: 2 | O27: 21756 | P27: 1516 | Q27: 310 | R27: 856 | S27: 3 | T27: 27920 | U27: 2136 | V27: 601 | W27: 1196 | X27: 4.3 | Y27: 33792 | Z27: 2807 | AA27: 1117 | AB27: 1551 | AC27: 417.724
A28: 18 0143 | B28: 150 | C28: 61 | D28: 5 | E28: 4.75 | F28: 10.3 | G28: 5.3 | H28: 1.06 | I28: 1.325 | J28: 16221 | K28: 1029 | L28: 48 | M28: 488 | N28: 2.65 | O28: 25883 | P28: 1925 | Q28: 228 | R28: 903 | S28: 3.975 | T28: 31041 | U28: 2688 | V28: 542 | W28: 1245 | X28: 5.55 | Y28: 34160 | Z28: 3422 | AA28: 1088 | AB28: 1557 | AC28: 549.937
A29: 18 0145 | B29: 150 | C29: 61 | D29: 6 | E29: 5.7 | F29: 10.8 | G29: 4.8 | H29: 0.8 | I29: 1.2 | J29: 20684 | K29: 1006 | L29: 174 | M29: 463 | N29: 2.4 | O29: 35204 | P29: 1901 | Q29: 459 | R29: 875 | S29: 3.6 | T29: 45456 | U29: 2686 | V29: 855 | W29: 1221 | X29: 5.1 | Y29: 55161 | Z29: 3510 | AA29: 1506 | AB29: 1569 | AC29: 659.925
A30: 18 0147 | B30: 150 | C30: 71 | D30: 6 | E30: 5.6 | F30: 10.85 | G30: 4.85 | H30: 0.808 | I30: 1.212 | J30: 22703 | K30: 1023 | L30: 131 | M30: 544 | N30: 2.425 | O30: 38235 | P30: 1930 | Q30: 379 | R30: 1017 | S30: 3.637 | T30: 48749 | U30: 2721 | V30: 743 | W30: 1420 | X30: 5.25 | Y30: 58662 | Z30: 3591 | AA30: 1408 | AB30: 1846 | AC30: 602.774
A31: 18 0149 | B31: 160 | C31: 82 | D31: 4.3 | E31: 4.15 | F31: 9.9 | G31: 5.6 | H31: 1.302 | I31: 1.4 | J31: 12653 | K31: 880 | L31: -45 | M31: 510 | N31: 2.8 | O31: 19288 | P31: 1632 | Q31: 38 | R31: 938 | S31: 4.2 | T31: 21843 | U31: 2256 | V31: 250 | W31: 1284 | X31: 5.75 | Y31: 22250 | Z31: 2797 | AA31: 634 | AB31: 1572 | AC31: 482.953
A32: 18 0151 | B32: 160 | C32: 82 | D32: 6 | E32: 5.6 | F32: 10.5 | G32: 4.5 | H32: 0.75 | I32: 1.125 | J32: 18496 | K32: 818 | L32: 125 | M32: 464 | N32: 2.25 | O32: 31633 | P32: 1547 | Q32: 341 | R32: 870 | S32: 3.375 | T32: 41008 | U32: 2186 | V32: 646 | W32: 1218 | X32: 4.9 | Y32: 50562 | Z32: 2908 | AA32: 1203 | AB32: 1599 | AC32: 651.696
A33: 18 0153 | B33: 180 | C33: 92 | D33: 4.8 | E33: 4.6 | F33: 11 | G33: 6.2 | H33: 1.291 | I33: 1.55 | J33: 15352 | K33: 861 | L33: -48 | M33: 498 | N33: 3.1 | O33: 23387 | P33: 1597 | Q33: 30 | R33: 916 | S33: 4.65 | T33: 26442 | U33: 2208 | V33: 233 | W33: 1255 | X33: 6.4 | Y33: 26839 | Z33: 2747 | AA33: 612 | AB33: 1540 | AC33: 678.822
A34: 18 0155 | B34: 180 | C34: 92 | D34: 6 | E34: 5.6 | F34: 11.1 | G34: 5.1 | H34: 0.85 | I34: 1.275 | J34: 17866 | K34: 765 | L34: 76 | M34: 435 | N34: 2.55 | O34: 29767 | P34: 1440 | Q34: 243 | R34: 812 | S34: 3.825 | T34: 37502 | U34: 2024 | V34: 499 | W34: 1132 | X34: 5.5 | Y34: 44355 | Z34: 2654 | AA34: 974 | AB34: 1464 | AC34: 826.393
A35: 18 0157 | B35: 200 | C35: 102 | D35: 5.5 | E35: 5.3 | F35: 12.5 | G35: 7 | H35: 1.272 | I35: 1.75 | J35: 20659 | K35: 892 | L35: -37 | M35: 514 | N35: 3.5 | O35: 31663 | P35: 1655 | Q35: 54 | R35: 946 | S35: 5.25 | T35: 36111 | U35: 2289 | V35: 274 | W35: 1296 | X35: 7.2 | Y35: 37138 | Z35: 2845 | AA35: 671 | AB35: 1590 | AC35: 967.066
A36: 18 0173 | B36: 200 | C36: 82 | D36: 5 | E36: 4.8 | F36: 10.5 | G36: 5.5 | H36: 1.1 | I36: 1.375 | J36: 9700 | K36: 600 | L36: 26 | M36: 290 | N36: 2.75 | O36: 15400 | P36: 1130 | Q36: 130 | R36: 530 | S36: 4.125 | T36: 18400 | U36: 1570 | V36: 310 | W36: 730 | X36: 5.7 | Y36: 20100 | Z36: 1980 | AA36: 620 | AB36: 910 | AC36: 980
A37: 18 0174 | B37: 200 | C37: 82 | D37: 6 | E37: 5.8 | F37: 13 | G37: 7 | H37: 1.167 | I37: 1.75 | J37: 22300 | K37: 940 | L37: 22 | M37: 450 | N37: 3.5 | O37: 35000 | P37: 1750 | Q37: 170 | R37: 830 | S37: 5.25 | T37: 41200 | U37: 2440 | V37: 450 | W37: 1140 | X37: 7.2 | Y37: 44200 | Z37: 3050 | AA37: 900 | AB37: 1400 | AC37: 1190
A38: 18 0175 | B38: 200 | C38: 112 | D38: 6 | E38: 5.8 | F38: 12 | G38: 6 | H38: 1 | I38: 1.5 | J38: 19700 | K38: 770 | L38: 50 | M38: 470 | N38: 3 | O38: 32200 | P38: 1430 | Q38: 200 | R38: 880 | S38: 4.5 | T38: 39700 | U38: 2000 | V38: 450 | W38: 1210 | X38: 6.2 | Y38: 45100 | Z38: 2530 | AA38: 850 | AB38: 1520 | AC38: 980
A39: 19 0041 | B39: 200 | C39: 82 | D39: 8.5 | E39: 8.1 | F39: 14.5 | G39: 6 | H39: 0.706 | I39: 1.5 | J39: 38500 | K39: 960 | L39: 220 | M39: 440 | N39: 3 | O39: 67200 | P39: 1810 | Q39: 540 | R39: 830 | S39: 4.5 | T39: 89300 | U39: 2580 | V39: 960 | W39: 1170 | X39: 6.4 | Y39: 112100 | Z39: 3400 | AA39: 1620 | AB39: 1520 | AC39: 1660
A40: 19 0042 | B40: 200 | C40: 82 | D40: 13 | E40: 12.1 | F40: 16.5 | G40: 3.5 | H40: 0.269 | I40: 0.875 | J40: 62100 | K40: 700 | L40: 370 | M40: 310 | N40: 1.75 | O40: 120000 | P40: 1360 | Q40: 780 | R40: 600 | S40: 2.625 | T40: 174800 | U40: 1990 | V40: 1220 | W40: 870 | X40: 4.4 | Y40: 280300 | Z40: 3150 | AA40: 2240 | AB40: 1360 | AC40: 2480
A41: 19 0043 | B41: 200 | C41: 102 | D41: 8.3 | E41: 7.8 | F41: 14.3 | G41: 6 | H41: 0.723 | I41: 1.5 | J41: 40500 | K41: 950 | L41: 170 | M41: 530 | N41: 3 | O41: 70000 | P41: 1790 | Q41: 440 | R41: 1000 | S41: 4.5 | T41: 91800 | U41: 2530 | V41: 810 | W41: 1400 | X41: 6.5 | Y41: 114600 | Z41: 3370 | AA41: 1470 | AB41: 1840 | AC41: 1420
A42: 19 0044 | B42: 200 | C42: 102 | D42: 9 | E42: 8.6 | F42: 14.6 | G42: 5.6 | H42: 0.622 | I42: 1.4 | J42: 44100 | K42: 890 | L42: 240 | M42: 500 | N42: 2.8 | O42: 78800 | P42: 1700 | Q42: 570 | R42: 940 | S42: 4.2 | T42: 107100 | U42: 2420 | V42: 980 | W42: 1330 | X42: 6 | Y42: 138600 | Z42: 3220 | AA42: 1640 | AB42: 1750 | AC42: 1570
A43: 19 0045 | B43: 200 | C43: 102 | D43: 11 | E43: 10.3 | F43: 15 | G43: 4 | H43: 0.364 | I43: 1 | J43: 49500 | K43: 700 | L43: 300 | M43: 380 | N43: 2 | O43: 93900 | P43: 1350 | Q43: 660 | R43: 730 | S43: 3 | T43: 134500 | U43: 1950 | V43: 1050 | W43: 1050 | X43: 4.7 | Y43: 198700 | Z43: 2870 | AA43: 1840 | AB43: 1530 | AC43: 1880
A44: 19 0046 | B44: 200 | C44: 112 | D44: 15 | E44: 14 | F44: 18 | G44: 3 | H44: 0.2 | I44: 0.75 | J44: 93500 | K44: 660 | L44: 390 | M44: 390 | N44: 1.5 | O44: 183100 | P44: 1290 | Q44: 810 | R44: 750 | S44: 2.25 | T44: 269700 | U44: 1900 | V44: 1260 | W44: 1100 | X44: 4 | Y44: 465200 | Z44: 3200 | AA44: 2400 | AB44: 1840 | AC44: 2370
A45: 19 0047 | B45: 225 | C45: 112 | D45: 9 | E45: 8.45 | F45: 15.5 | G45: 6.5 | H45: 0.722 | I45: 1.625 | J45: 43600 | K45: 880 | L45: 160 | M45: 480 | N45: 3.25 | O45: 75300 | P45: 1660 | Q45: 410 | R45: 910 | S45: 4.875 | T45: 98800 | U45: 2350 | V45: 760 | W45: 1270 | X45: 7.05 | Y45: 123300 | Z45: 3130 | AA45: 1370 | AB45: 1670 | AC45: 1980
A46: 19 0048 | B46: 225 | C46: 112 | D46: 10 | E46: 9.4 | F46: 16.2 | G46: 6.2 | H46: 0.62 | I46: 1.55 | J46: 52800 | K46: 880 | L46: 220 | M46: 480 | N46: 3.1 | O46: 93900 | P46: 1680 | Q46: 520 | R46: 910 | S46: 4.65 | T46: 126700 | U46: 2400 | V46: 910 | W46: 1290 | X46: 6.8 | Y46: 164800 | Z46: 3240 | AA46: 1590 | AB46: 1720 | AC46: 2200
A47: 19 0049 | B47: 225 | C47: 112 | D47: 10.8 | E47: 10 | F47: 16.5 | G47: 5.7 | H47: 0.528 | I47: 1.425 | J47: 58100 | K47: 850 | L47: 240 | M47: 470 | N47: 2.85 | O47: 105200 | P47: 1630 | Q47: 560 | R47: 880 | S47: 4.275 | T47: 144400 | U47: 2340 | V47: 960 | W47: 1250 | X47: 6.5 | Y47: 197000 | Z47: 3290 | AA47: 1720 | AB47: 1740 | AC47: 2350
A48: 19 0050 | B48: 250 | C48: 127 | D48: 7.5 | E48: 7 | F48: 16.5 | G48: 9 | H48: 1.2 | I48: 2.25 | J48: 41900 | K48: 1000 | L48: 53 | M48: 580 | N48: 4.5 | O48: 64400 | P48: 1860 | Q48: 40 | R48: 1060 | S48: 6.75 | T48: 73500 | U48: 2580 | V48: 270 | W48: 1460 | X48: 9.5 | Y48: 75100 | Z48: 3260 | AA48: 740 | AB48: 1820 | AC48: 2000
A49: 19 0051 | B49: 250 | C49: 127 | D49: 9 | E49: 8.45 | F49: 16.6 | G49: 7.6 | H49: 0.844 | I49: 1.9 | J49: 45900 | K49: 880 | L49: 98 | M49: 500 | N49: 3.8 | O49: 76800 | P49: 1650 | Q49: 300 | R49: 930 | S49: 5.7 | T49: 97300 | U49: 2330 | V49: 600 | W49: 1290 | X49: 8.15 | Y49: 115600 | Z49: 3040 | AA49: 1150 | AB49: 1670 | AC49: 2420
A50: 19 0052 | B50: 250 | C50: 127 | D50: 9.2 | E50: 8.6 | F50: 17.4 | G50: 8.2 | H50: 0.891 | I50: 2.05 | J50: 55200 | K50: 990 | L50: 80 | M50: 560 | N50: 4.1 | O50: 91000 | P50: 1860 | Q50: 280 | R50: 1050 | S50: 6.15 | T50: 113400 | U50: 2620 | V50: 600 | W50: 1460 | X50: 8.8 | Y50: 132000 | Z50: 3410 | AA50: 1200 | AB50: 1870 | AC50: 2460
A51: 19 0053 | B51: 250 | C51: 127 | D51: 10.5 | E51: 9.9 | F51: 18 | G51: 7.5 | H51: 0.714 | I51: 1.875 | J51: 64800 | K51: 950 | L51: 180 | M51: 530 | N51: 3.75 | O51: 112500 | P51: 1800 | Q51: 460 | R51: 1000 | S51: 5.625 | T51: 148100 | U51: 2550 | V51: 840 | W51: 1400 | X51: 8.1 | Y51: 185500 | Z51: 3380 | AA51: 1500 | AB51: 1840 | AC51: 2830
A52: 19 0054 | B52: 250 | C52: 127 | D52: 11 | E52: 10.4 | F52: 18.8 | G52: 7.8 | H52: 0.709 | I52: 1.95 | J52: 77000 | K52: 1030 | L52: 200 | M52: 580 | N52: 3.9 | O52: 133900 | P52: 1950 | Q52: 520 | R52: 1080 | S52: 5.85 | T52: 176900 | U52: 2760 | V52: 940 | W52: 1520 | X52: 8.4 | Y52: 222000 | Z52: 3660 | AA52: 1650 | AB52: 1990 | AC52: 2970
A53: 19 0055 | B53: 250 | C53: 127 | D53: 13 | E53: 12.2 | F53: 19.6 | G53: 6.6 | H53: 0.508 | I53: 1.65 | J53: 93900 | K53: 940 | L53: 300 | M53: 520 | N53: 3.3 | O53: 171800 | P53: 1800 | Q53: 680 | R53: 990 | S53: 4.95 | T53: 238300 | U53: 2580 | V53: 1150 | W53: 1400 | X53: 7.4 | Y53: 325800 | Z53: 3590 | AA53: 1980 | AB53: 1930 | AC53: 3490
A54: 19 0056 | B54: 250 | C54: 127 | D54: 13.5 | E54: 12.6 | F54: 19.6 | G54: 6.1 | H54: 0.452 | I54: 1.525 | J54: 94200 | K54: 880 | L54: 310 | M54: 480 | N54: 3.05 | O54: 174400 | P54: 1700 | Q54: 700 | R54: 930 | S54: 4.575 | T54: 244700 | U54: 2440 | V54: 1150 | W54: 1320 | X54: 7 | Y54: 345300 | Z54: 3480 | AA54: 2010 | AB54: 1860 | AC54: 3600
A55: 19 0057 | B55: 250 | C55: 127 | D55: 14.5 | E55: 13.6 | F55: 20 | G55: 5.5 | H55: 0.379 | I55: 1.375 | J55: 100400 | K55: 820 | L55: 350 | M55: 440 | N55: 2.75 | O55: 189700 | P55: 1570 | Q55: 750 | R55: 850 | S55: 4.125 | T55: 270800 | U55: 2280 | V55: 1210 | W55: 1220 | X55: 6.4 | Y55: 395600 | Z55: 3310 | AA55: 2090 | AB55: 1760 | AC55: 3890
A56: 19 0058 | B56: 250 | C56: 127 | D56: 15 | E56: 14.1 | F56: 21 | G56: 6 | H56: 0.4 | I56: 1.5 | J56: 122500 | K56: 930 | L56: 380 | M56: 510 | N56: 3 | O56: 230500 | P56: 1790 | Q56: 830 | R56: 970 | S56: 4.5 | T56: 327900 | U56: 2580 | V56: 1350 | W56: 1390 | X56: 6.9 | Y56: 472100 | Z56: 3720 | AA56: 2310 | AB56: 1980 | AC56: 4030
A57: 19 0059 | B57: 250 | C57: 127 | D57: 16.8 | E57: 15.65 | F57: 22 | G57: 5.2 | H57: 0.31 | I57: 1.3 | J57: 142800 | K57: 870 | L57: 410 | M57: 470 | N57: 2.6 | O57: 273500 | P57: 1680 | Q57: 880 | R57: 900 | S57: 3.9 | T57: 395400 | U57: 2440 | V57: 1390 | W57: 1310 | X57: 6.35 | Y57: 611600 | Z57: 3740 | AA57: 2510 | AB57: 1980 | AC57: 4470
A58: 19 0060 | B58: 250 | C58: 127 | D58: 17.5 | E58: 16.35 | F58: 22 | G58: 4.5 | H58: 0.257 | I58: 1.125 | J58: 136000 | K58: 750 | L58: 400 | M58: 400 | N58: 2.25 | O58: 263600 | P58: 1460 | Q58: 850 | R58: 780 | S58: 3.375 | T58: 384900 | U58: 2140 | V58: 1330 | W58: 1140 | X58: 5.65 | Y58: 619500 | Z58: 3390 | AA58: 2410 | AB58: 1780 | AC58: 4670
A59: 19 0061 | B59: 250 | C59: 127 | D59: 18.5 | E59: 17.3 | F59: 23 | G59: 4.5 | H59: 0.243 | I59: 1.125 | J59: 159700 | K59: 790 | L59: 440 | M59: 420 | N59: 2.25 | O59: 310400 | P59: 1530 | Q59: 910 | R59: 820 | S59: 3.375 | T59: 454300 | U59: 2240 | V59: 1420 | W59: 1190 | X59: 5.7 | Y59: 739800 | Z59: 3590 | AA59: 2600 | AB59: 1890 | AC59: 4950
A60: 19 0062 | B60: 270 | C60: 127 | D60: 10.65 | E60: 10 | F60: 18 | G60: 7.35 | H60: 0.69 | I60: 1.838 | J60: 53800 | K60: 800 | L60: 160 | M60: 420 | N60: 3.675 | O60: 93700 | P60: 1520 | Q60: 410 | R60: 790 | S60: 5.513 | T60: 123900 | U60: 2150 | V60: 740 | W60: 1110 | X60: 8 | Y60: 156700 | Z60: 2880 | AA60: 1320 | AB60: 1460 | AC60: 3500
A61: 19 0063 | B61: 270 | C61: 142 | D61: 22 | F61: 26.9 | G61: 4.9 | H61: 0.223 | I61: 1.225 | J61: 248700 | K61: 780 | L61: 550 | M61: 430 | N61: 2.45 | O61: 490700 | P61: 1530 | Q61: 1130 | R61: 830 | S61: 3.675 | T61: 728300 | U61: 2250 | V61: 1750 | W61: 1210 | X61: 4.9 | Y61: 963500 | Z61: 2930 | AA61: 2400 | AB61: 1580 | AC61: 7150
A62: 19 0064 | B62: 280 | C62: 127 | D62: 12 | E62: 11.4 | F62: 21.4 | G62: 9.4 | H62: 0.783 | I62: 2.35 | J62: 95400 | K62: 1110 | L62: 190 | M62: 560 | N62: 4.7 | O62: 163100 | P62: 2090 | Q62: 500 | R62: 1060 | S62: 7.05 | T62: 211600 | U62: 2950 | V62: 940 | W62: 1480 | X62: 10 | Y62: 258300 | Z62: 3860 | AA62: 1650 | AB62: 1900 | AC62: 4380
A63: 19 0065 | B63: 280 | C63: 127 | D63: 19 | E63: 18 | F63: 25 | G63: 6 | H63: 0.316 | I63: 1.5 | J63: 178200 | K63: 880 | L63: 450 | M63: 430 | N63: 3 | O63: 342600 | P63: 1710 | Q63: 950 | R63: 830 | S63: 4.5 | T63: 496800 | U63: 2490 | V63: 1510 | W63: 1200 | X63: 7 | Y63: 741600 | Z63: 3670 | AA63: 2550 | AB63: 1740 | AC63: 6910
A64: 19 0066 | B64: 280 | C64: 142 | D64: 12 | E64: 11.3 | F64: 21 | G64: 9 | H64: 0.75 | I64: 2.25 | J64: 95100 | K64: 1060 | L64: 180 | M64: 590 | N64: 4.5 | O64: 163400 | P64: 2000 | Q64: 470 | R64: 1110 | S64: 6.75 | T64: 212900 | U64: 2820 | V64: 880 | W64: 1560 | X64: 9.7 | Y64: 262900 | Z64: 3730 | AA64: 1590 | AB64: 2030 | AC64: 4060
A65: 19 0067 | B65: 280 | C65: 142 | D65: 15 | E65: 14.1 | F65: 21.4 | G65: 6.4 | H65: 0.427 | I65: 1.6 | J65: 105700 | K65: 800 | L65: 310 | M65: 440 | N65: 3.2 | O65: 197600 | P65: 1540 | Q65: 680 | R65: 840 | S65: 4.8 | T65: 279500 | U65: 2220 | V65: 1120 | W65: 1200 | X65: 7.3 | Y65: 396800 | Z65: 3160 | AA65: 1910 | AB65: 1690 | AC65: 5060
A66: 19 0068 | B66: 280 | C66: 142 | D66: 16.6 | E66: 15.6 | F66: 23.25 | G66: 6.65 | H66: 0.401 | I66: 1.663 | J66: 146600 | K66: 910 | L66: 370 | M66: 490 | N66: 3.325 | O66: 275800 | P66: 1750 | Q66: 810 | R66: 950 | S66: 4.988 | T66: 392300 | U66: 2530 | V66: 1310 | W66: 1360 | X66: 7.65 | Y66: 564800 | Z66: 3640 | AA66: 2260 | AB66: 1930 | AC66: 5600
A67: 19 0069 | B67: 280 | C67: 142 | D67: 17.45 | E67: 16.4 | F67: 23.9 | G67: 6.45 | H67: 0.37 | I67: 1.613 | J67: 162300 | K67: 910 | L67: 400 | M67: 490 | N67: 3.225 | O67: 307600 | P67: 1760 | Q67: 860 | R67: 950 | S67: 4.838 | T67: 440400 | U67: 2540 | V67: 1380 | W67: 1360 | X67: 7.5 | Y67: 645100 | Z67: 3700 | AA67: 2380 | AB67: 1960 | AC67: 5890
A68: 19 0070 | B68: 280 | C68: 142 | D68: 18 | E68: 16.9 | F68: 24 | G68: 6 | H68: 0.333 | I68: 1.5 | J68: 162600 | K68: 860 | L68: 400 | M68: 460 | N68: 3 | O68: 310600 | P68: 1660 | Q68: 860 | R68: 890 | S68: 4.5 | T68: 447900 | U68: 2400 | V68: 1370 | W68: 1290 | X68: 7.1 | Y68: 672000 | Z68: 3570 | AA68: 2370 | AB68: 1890 | AC68: 6070
A69: 19 0071 | B69: 280 | C69: 142 | D69: 18.9 | E69: 17.8 | F69: 24.6 | G69: 5.7 | H69: 0.302 | I69: 1.425 | J69: 175800 | K69: 830 | L69: 420 | M69: 450 | N69: 2.85 | O69: 338300 | P69: 1620 | Q69: 890 | R69: 870 | S69: 4.275 | T69: 491000 | U69: 2350 | V69: 1410 | W69: 1250 | X69: 6.8 | Y69: 748700 | Z69: 3540 | AA69: 2450 | AB69: 1870 | AC69: 6390
A70: 19 0072 | B70: 280 | C70: 142 | D70: 20.3 | E70: 19.1 | F70: 25.4 | G70: 5.1 | H70: 0.251 | I70: 1.275 | J70: 190600 | K70: 780 | L70: 430 | M70: 420 | N70: 2.55 | O70: 370300 | P70: 1510 | Q70: 903 | R70: 810 | S70: 3.825 | T70: 542100 | U70: 2210 | V70: 1410 | W70: 1170 | X70: 6.3 | Y70: 862700 | Z70: 3460 | AA70: 2510 | AB70: 1820 | AC70: 6860
A71: 19 0073 | B71: 280 | C71: 142 | D71: 22 | E71: 20.65 | F71: 26.35 | G71: 4.35 | H71: 0.198 | I71: 1.088 | J71: 202800 | K71: 700 | L71: 430 | M71: 370 | N71: 2.175 | O71: 397600 | P71: 1360 | Q71: 880 | R71: 720 | S71: 3.263 | T71: 586300 | U71: 2000 | V71: 1360 | W71: 1060 | X71: 5.7 | Y71: 996900 | Z71: 3330 | AA71: 2550 | AB71: 1740 | AC71: 7410
A72: 19 0074 | B72: 280 | C72: 152 | D72: 12.8 | E72: 11.9 | F72: 19.8 | G72: 7 | H72: 0.547 | I72: 1.75 | J72: 82100 | K72: 820 | L72: 220 | M72: 480 | N72: 3.5 | O72: 148000 | P72: 1560 | Q72: 520 | R72: 910 | S72: 5.25 | T72: 202500 | U72: 2230 | V72: 890 | W72: 1290 | X72: 7.9 | Y72: 273200 | Z72: 3110 | AA72: 1590 | AB72: 1780 | AC72: 4060
A73: 19 0075 | B73: 280 | C73: 152 | D73: 15 | E73: 14 | F73: 21.4 | G73: 6.4 | H73: 0.427 | I73: 1.6 | J73: 111300 | K73: 820 | L73: 300 | M73: 480 | N73: 3.2 | O73: 207500 | P73: 1580 | Q73: 670 | R73: 910 | S73: 4.8 | T73: 292700 | U73: 2270 | V73: 1100 | W73: 1300 | X73: 7.4 | Y73: 418700 | Z73: 3260 | AA73: 1930 | AB73: 1850 | AC73: 4770
A74: 19 0076 | B74: 280 | C74: 152 | D74: 18.5 | E74: 17.4 | F74: 23.6 | G74: 5.1 | H74: 0.276 | I74: 1.275 | J74: 152700 | K74: 730 | L74: 380 | M74: 420 | N74: 2.55 | O74: 295400 | P74: 1420 | Q74: 800 | R74: 810 | S74: 3.825 | T74: 430600 | U74: 2060 | V74: 1270 | W74: 1170 | X74: 6.2 | Y74: 671500 | Z74: 3170 | AA74: 2230 | AB74: 1780 | AC74: 5930
A75: 19 0077 | B75: 300 | C75: 127 | D75: 12 | E75: 11.3 | F75: 21 | G75: 9 | H75: 0.75 | I75: 2.25 | J75: 76300 | K75: 930 | L75: 170 | M75: 440 | N75: 4.5 | O75: 131000 | P75: 1750 | Q75: 440 | R75: 830 | S75: 6.75 | T75: 170700 | U75: 2480 | V75: 810 | W75: 1170 | X75: 9.7 | Y75: 210800 | Z75: 3280 | AA75: 1440 | AB75: 1520 | AC75: 5150
A76: 19 0078 | B76: 300 | C76: 127 | D76: 13 | E76: 12.3 | F76: 20.5 | G76: 7.5 | H76: 0.577 | I76: 1.875 | J76: 70900 | K76: 770 | L76: 230 | M76: 360 | N76: 3.75 | O76: 127800 | P76: 1460 | Q76: 530 | R76: 680 | S76: 5.625 | T76: 174900 | U76: 2090 | V76: 900 | W76: 970 | X76: 8.2 | Y76: 231100 | Z76: 2840 | AA76: 1520 | AB76: 1290 | AC76: 5600
A77: 19 0079 | B77: 300 | C77: 127 | D77: 14 | E77: 13.3 | F77: 21 | G77: 7 | H77: 0.5 | I77: 1.75 | J77: 78300 | K77: 740 | L77: 270 | M77: 340 | N77: 3.5 | O77: 144200 | P77: 1410 | Q77: 600 | R77: 660 | S77: 5.25 | T77: 201400 | U77: 2030 | V77: 980 | W77: 930 | X77: 7.7 | Y77: 273700 | Z77: 2790 | AA77: 1630 | AB77: 1260 | AC77: 6060
A78: 19 0080 | B78: 300 | C78: 127 | D78: 15.3 | F78: 22.8 | G78: 7.5 | H78: 0.49 | I78: 1.875 | J78: 104600 | K78: 800 | L78: 370 | M78: 370 | N78: 3.75 | O78: 197000 | P78: 1540 | Q78: 800 | R78: 700 | S78: 5.625 | T78: 281200 | U78: 2210 | V78: 1290 | W78: 1000 | X78: 7.5 | Y78: 361400 | Z78: 2830 | AA78: 1840 | AB78: 1270 | AC78: 6970
A79: 19 0081 | B79: 300 | C79: 127 | D79: 16 | E79: 15.2 | F79: 24.3 | G79: 8.3 | H79: 0.519 | I79: 2.075 | J79: 140200 | K79: 1010 | L79: 350 | M79: 470 | N79: 4.15 | O79: 257000 | P79: 1930 | Q79: 790 | R79: 900 | S79: 6.225 | T79: 357400 | U79: 2770 | V79: 1310 | W79: 1270 | X79: 9.1 | Y79: 482200 | Z79: 3790 | AA79: 2170 | AB79: 1720 | AC79: 6920
A80: 19 0082 | B80: 300 | C80: 127 | D80: 17 | E80: 16.1 | F80: 23.8 | G80: 6.8 | H80: 0.4 | I80: 1.7 | J80: 128400 | K80: 830 | L80: 360 | M80: 380 | N80: 3.4 | O80: 242200 | P80: 1600 | Q80: 780 | R80: 730 | S80: 5.1 | T80: 345500 | U80: 2310 | V80: 1260 | W80: 1050 | X80: 7.7 | Y80: 492600 | Z80: 3280 | AA80: 2100 | AB80: 1470 | AC80: 7330
A81: 19 0083 | B81: 300 | C81: 127 | D81: 17.4 | E81: 16.45 | F81: 22.65 | G81: 5.25 | H81: 0.302 | I81: 1.313 | J81: 101100 | K81: 620 | L81: 320 | M81: 280 | N81: 2.625 | O81: 194800 | P81: 1200 | Q81: 690 | R81: 550 | S81: 3.938 | T81: 283000 | U81: 1750 | V81: 1080 | W81: 790 | X81: 6.2 | Y81: 428200 | Z81: 2620 | AA81: 1840 | AB81: 1160 | AC81: 7490
A82: 19 0084 | B82: 300 | C82: 152 | D82: 8.5 | E82: 8.25 | F82: 16.8 | G82: 8.3 | H82: 0.976 | I82: 2.075 | J82: 31300 | K82: 640 | L82: 60 | M82: 360 | N82: 4.15 | O82: 51500 | P82: 1200 | Q82: 200 | R82: 670 | S82: 6.225 | T82: 64100 | U82: 1680 | V82: 420 | W82: 930 | X82: 8.55 | Y82: 73700 | Z82: 2130 | AA82: 760 | AB82: 1160 | AC82: 3400
A83: 19 0085 | B83: 300 | C83: 152 | D83: 10 | E83: 9.4 | F83: 20 | G83: 10 | H83: 1 | I83: 2.5 | J83: 64900 | K83: 950 | L83: 40 | M83: 540 | N83: 5 | O83: 104500 | P83: 1780 | Q83: 190 | R83: 1000 | S83: 7.5 | T83: 126600 | U83: 2480 | V83: 470 | W83: 1390 | X83: 10.6 | Y83: 141500 | Z83: 3180 | AA83: 990 | AB83: 1750 | AC83: 3880
A84: 19 0086 | B84: 300 | C84: 152 | D84: 12 | E84: 11.3 | F84: 21 | G84: 9 | H84: 0.75 | I84: 2.25 | J84: 82800 | K84: 920 | L84: 150 | M84: 520 | N84: 4.5 | O84: 142200 | P84: 1740 | Q84: 410 | R84: 970 | S84: 6.75 | T84: 185300 | U84: 2460 | V84: 760 | W84: 1350 | X84: 9.7 | Y84: 228900 | Z84: 3250 | AA84: 1380 | AB84: 1770 | AC84: 4660
A85: 19 0087 | B85: 300 | C85: 152 | D85: 13 | E85: 12.2 | F85: 22 | G85: 9 | H85: 0.692 | I85: 2.25 | J85: 101200 | K85: 970 | L85: 190 | M85: 540 | N85: 4.5 | O85: 176200 | P85: 1850 | Q85: 480 | R85: 1020 | S85: 6.75 | T85: 232800 | U85: 2620 | V85: 880 | W85: 1440 | X85: 9.8 | Y85: 294200 | Z85: 3500 | AA85: 1580 | AB85: 1900 | AC85: 5030
A86: 19 0088 | B86: 300 | C86: 152 | D86: 14 | E86: 13.2 | F86: 22 | G86: 8 | H86: 0.571 | I86: 2 | J86: 102500 | K86: 880 | L86: 250 | M86: 480 | N86: 4 | O86: 184700 | P86: 1670 | Q86: 580 | R86: 920 | S86: 6 | T86: 252700 | U86: 2380 | V86: 980 | W86: 1300 | X86: 8.8 | Y86: 335200 | Z86: 3250 | AA86: 1690 | AB86: 1750 | AC86: 5440
A87: 19 0089 | B87: 300 | C87: 152 | D87: 14.5 | E87: 13.6 | F87: 22 | G87: 7.5 | H87: 0.517 | I87: 1.875 | J87: 103400 | K87: 830 | L87: 260 | M87: 460 | N87: 3.75 | O87: 188600 | P87: 1590 | Q87: 590 | R87: 870 | S87: 5.625 | T87: 260900 | U87: 2280 | V87: 1000 | W87: 1240 | X87: 8.4 | Y87: 355300 | Z87: 3170 | AA87: 1730 | AB87: 1700 | AC87: 5610
A88: 19 0090 | B88: 300 | C88: 152 | D88: 15 | E88: 14.1 | F88: 23 | G88: 8 | H88: 0.533 | I88: 2 | J88: 123100 | K88: 920 | L88: 280 | M88: 510 | N88: 4 | O88: 223900 | P88: 1770 | Q88: 650 | R88: 970 | S88: 6 | T88: 308900 | U88: 2530 | V88: 1090 | W88: 1370 | X88: 8.9 | Y88: 417100 | Z88: 3490 | AA88: 1880 | AB88: 1870 | AC88: 5820
A89: 19 0091 | B89: 300 | C89: 152 | D89: 15.5 | E89: 14.6 | F89: 23.5 | G89: 8 | H89: 0.516 | I89: 2 | J89: 134100 | K89: 940 | L89: 300 | M89: 520 | N89: 4 | O89: 245200 | P89: 1800 | Q89: 690 | R89: 990 | S89: 6 | T89: 339900 | U89: 2590 | V89: 1150 | W89: 1400 | X89: 8.9 | Y89: 461800 | Z89: 3570 | AA89: 1970 | AB89: 1910 | AC89: 6020
A90: 19 0092 | B90: 300 | C90: 152 | D90: 16.1 | E90: 15.1 | F90: 23.7 | G90: 7.6 | H90: 0.472 | I90: 1.9 | J90: 139200 | K90: 910 | L90: 320 | M90: 500 | N90: 3.8 | O90: 257000 | P90: 1750 | Q90: 710 | R90: 960 | S90: 5.7 | T90: 359500 | U90: 2520 | V90: 1180 | W90: 1360 | X90: 8.6 | Y90: 500100 | Z90: 3550 | AA90: 2030 | AB90: 1890 | AC90: 6230
A91: 19 0093 | B91: 300 | C91: 152 | D91: 16.5 | F91: 23 | G91: 6.5 | H91: 0.394 | I91: 1.625 | J91: 117500 | K91: 700 | L91: 370 | M91: 380 | N91: 3.25 | O91: 225600 | P91: 1350 | Q91: 790 | R91: 720 | S91: 4.875 | T91: 327600 | U91: 1960 | V91: 1260 | W91: 1040 | X91: 6.5 | Y91: 426400 | Z91: 2520 | AA91: 1770 | AB91: 1320 | AC91: 6810
A92: 19 0094 | B92: 300 | C92: 152 | D92: 17 | E92: 16 | F92: 24.4 | G92: 7.4 | H92: 0.435 | I92: 1.85 | J92: 155600 | K92: 920 | L92: 350 | M92: 500 | N92: 3.7 | O92: 290300 | P92: 1760 | Q92: 770 | R92: 960 | S92: 5.55 | T92: 410000 | U92: 2540 | V92: 1270 | W92: 1370 | X92: 8.4 | Y92: 578800 | Z92: 3600 | AA92: 2160 | AB92: 1920 | AC92: 6600
A93: 19 0095 | B93: 300 | C93: 152 | D93: 18 | E93: 16.8 | F93: 25 | G93: 7 | H93: 0.389 | I93: 1.75 | J93: 170900 | K93: 910 | L93: 370 | M93: 490 | N93: 3.5 | O93: 321700 | P93: 1750 | Q93: 800 | R93: 950 | S93: 5.25 | T93: 457700 | U93: 2520 | V93: 1300 | W93: 1360 | X93: 8.2 | Y93: 669000 | Z93: 3690 | AA93: 2280 | AB93: 1960 | AC93: 6930
A94: 19 0096 | B94: 300 | C94: 152 | D94: 18.5 | E94: 17.4 | F94: 25 | G94: 6.5 | H94: 0.351 | I94: 1.625 | J94: 167900 | K94: 840 | L94: 380 | M94: 450 | N94: 3.25 | O94: 319600 | P94: 1620 | Q94: 820 | R94: 870 | S94: 4.875 | T94: 459500 | U94: 2350 | V94: 1300 | W94: 1250 | X94: 7.6 | Y94: 679600 | Z94: 3440 | AA94: 2250 | AB94: 1820 | AC94: 7180
A95: 19 0097 | B95: 300 | C95: 152 | D95: 19.5 | E95: 18.3 | F95: 26.2 | G95: 6.7 | H95: 0.344 | I95: 1.675 | J95: 202200 | K95: 910 | L95: 420 | M95: 490 | N95: 3.35 | O95: 385200 | P95: 1760 | Q95: 890 | R95: 950 | S95: 5.025 | T95: 554200 | U95: 2550 | V95: 1420 | W95: 1360 | X95: 7.9 | Y95: 826600 | Z95: 3770 | AA95: 2480 | AB95: 1990 | AC95: 7550
A96: 19 0098 | B96: 300 | C96: 152 | D96: 20 | E96: 18.8 | F96: 25.5 | G96: 5.5 | H96: 0.275 | I96: 1.375 | J96: 173000 | K96: 730 | L96: 390 | M96: 390 | N96: 2.75 | O96: 334500 | P96: 1420 | Q96: 810 | R96: 760 | S96: 4.125 | T96: 487600 | U96: 2070 | V96: 1280 | W96: 1100 | X96: 6.7 | Y96: 761900 | Z96: 3190 | AA96: 2260 | AB96: 1680 | AC96: 7750
A97: 19 0099 | B97: 300 | C97: 152 | D97: 20.5 | E97: 19.3 | F97: 26.5 | G97: 6 | H97: 0.293 | I97: 1.5 | J97: 204700 | K97: 820 | L97: 420 | M97: 440 | N97: 3 | O97: 394700 | P97: 1600 | Q97: 900 | R97: 860 | S97: 4.5 | T97: 573800 | U97: 2330 | V97: 1410 | W97: 1240 | X97: 7.2 | Y97: 881200 | Z97: 3530 | AA97: 2460 | AB97: 1860 | AC97: 7960
A98: 19 0100 | B98: 300 | C98: 182 | D98: 12 | E98: 11.1 | F98: 18 | G98: 6 | H98: 0.5 | I98: 1.5 | J98: 54400 | K98: 590 | L98: 170 | M98: 380 | N98: 3 | O98: 99100 | P98: 1130 | Q98: 390 | R98: 730 | S98: 4.5 | T98: 136900 | U98: 1620 | V98: 660 | W98: 1030 | X98: 6.9 | Y98: 189600 | Z98: 2290 | AA98: 1210 | AB98: 1450 | AC98: 3890
A99: 19 0101 | B99: 320 | C99: 172 | D99: 8.1 | E99: 7.6 | F99: 16.3 | G99: 8.2 | H99: 1.012 | I99: 2.05 | J99: 26200 | K99: 560 | L99: 10 | M99: 340 | N99: 4.1 | O99: 42000 | P99: 1050 | Q99: 100 | R99: 630 | S99: 6.15 | T99: 50600 | U99: 1470 | V99: 260 | W99: 870 | X99: 8.7 | Y99: 56200 | Z99: 1890 | AA99: 570 | AB99: 1100 | AC99: 3410
A100: 19 0102 | B100: 320 | C100: 172 | D100: 9 | E100: 8.5 | F100: 19 | G100: 10 | H100: 1.111 | I100: 2.5 | J100: 47000 | K100: 790 | L100: 10 | M100: 470 | N100: 5 | O100: 73900 | P100: 1470 | Q100: 90 | R100: 880 | S100: 7.5 | T100: 87100 | U100: 2050 | V100: 302 | W100: 1210 | X100: 10.5 | Y100: 93500 | Z100: 2590 | AA100: 690 | AB100: 1510 | AC100: 3820
A101: 19 0103 | B101: 320 | C101: 172 | D101: 13 | E101: 12.2 | F101: 20 | G101: 7 | H101: 0.538 | I101: 1.75 | J101: 64400 | K101: 620 | L101: 180 | M101: 360 | N101: 3.5 | O101: 117000 | P101: 1190 | Q101: 420 | R101: 690 | S101: 5.25 | T101: 161000 | U101: 1710 | V101: 720 | W101: 980 | X101: 7.8 | Y101: 217100 | Z101: 2360 | AA101: 1250 | AB101: 1330 | AC101: 5480
A102: 19 0104 | B102: 320 | C102: 172 | D102: 15 | E102: 14.1 | F102: 21 | G102: 6 | H102: 0.4 | I102: 1.5 | J102: 77600 | K102: 570 | L102: 230 | M102: 330 | N102: 3 | O102: 146100 | P102: 1100 | Q102: 510 | R102: 630 | S102: 4.5 | T102: 207900 | U102: 1590 | V102: 820 | W102: 900 | X102: 6.9 | Y102: 299300 | Z102: 2290 | AA102: 1410 | AB102: 1280 | AC102: 6330
A103: 19 0105 | B103: 340 | C103: 172 | D103: 9.2 | E103: 8.65 | F103: 19.4 | G103: 10.2 | H103: 1.109 | I103: 2.55 | J103: 43700 | K103: 720 | L103: 10 | M103: 410 | N103: 5.1 | O103: 68600 | P103: 1350 | Q103: 90 | R103: 760 | S103: 7.65 | T103: 80700 | U103: 1870 | V103: 280 | W103: 1050 | X103: 10.75 | Y103: 86300 | Z103: 2380 | AA103: 640 | AB103: 1320 | AC103: 4590
A104: 19 0106 | B104: 340 | C104: 172 | D104: 9.5 | E104: 8.9 | F104: 20.8 | G104: 11.3 | H104: 1.189 | I104: 2.825 | J104: 57000 | K104: 850 | L104: 40 | M104: 490 | N104: 5.65 | O104: 87900 | P104: 1590 | Q104: 50 | R104: 900 | S104: 8.475 | T104: 100800 | U104: 2200 | V104: 250 | W104: 1240 | X104: 11.9 | Y104: 104000 | Z104: 2790 | AA104: 650 | AB104: 1550 | AC104: 4720
A105: 19 0107 | B105: 340 | C105: 172 | D105: 10.5 | E105: 9.9 | F105: 22.5 | G105: 12 | H105: 1.143 | I105: 3 | J105: 78300 | K105: 980 | L105: 20 | M105: 560 | N105: 6 | O105: 122200 | P105: 1830 | Q105: 100 | R105: 1030 | S105: 9 | T105: 142500 | U105: 2540 | V105: 350 | W105: 1420 | X105: 12.6 | Y105: 150800 | Z105: 3210 | AA105: 830 | AB105: 1780 | AC105: 5250
A106: 19 0108 | B106: 340 | C106: 172 | D106: 11 | E106: 10.4 | F106: 22.4 | G106: 11.4 | H106: 1.036 | I106: 2.85 | J106: 78300 | K106: 930 | L106: 30 | M106: 530 | N106: 5.7 | O106: 125400 | P106: 1750 | Q106: 180 | R106: 980 | S106: 8.55 | T106: 151000 | U106: 2440 | V106: 450 | W106: 1360 | X106: 12 | Y106: 167000 | Z106: 3110 | AA106: 940 | AB106: 1710 | AC106: 5520
A107: 19 0109 | B107: 340 | C107: 172 | D107: 11.5 | E107: 10.8 | F107: 22.9 | G107: 11.4 | H107: 0.991 | I107: 2.85 | J107: 87000 | K107: 970 | L107: 40 | M107: 550 | N107: 5.7 | O107: 140300 | P107: 1810 | Q107: 200 | R107: 1020 | S107: 8.55 | T107: 170400 | U107: 2530 | V107: 490 | W107: 1410 | X107: 12.1 | Y107: 191000 | Z107: 3250 | AA107: 1020 | AB107: 1790 | AC107: 5730
A108: 19 0110 | B108: 340 | C108: 172 | D108: 12.5 | E108: 11.8 | F108: 23 | G108: 10.5 | H108: 0.84 | I108: 2.625 | J108: 90800 | K108: 900 | L108: 110 | M108: 510 | N108: 5.25 | O108: 152500 | P108: 1700 | Q108: 330 | R108: 950 | S108: 7.875 | T108: 194000 | U108: 2390 | V108: 650 | W108: 1320 | X108: 11.2 | Y108: 231400 | Z108: 3120 | AA108: 1200 | AB108: 1700 | AC108: 6260
A109: 19 0111 | B109: 340 | C109: 172 | D109: 13.5 | E109: 12.7 | F109: 23.5 | G109: 10 | H109: 0.741 | I109: 2.5 | J109: 101300 | K109: 890 | L109: 150 | M109: 500 | N109: 5 | O109: 174300 | P109: 1690 | Q109: 400 | R109: 940 | S109: 7.5 | T109: 227600 | U109: 2390 | V109: 750 | W109: 1310 | X109: 10.8 | Y109: 282100 | Z109: 3160 | AA109: 1360 | AB109: 1720 | AC109: 6740
A110: 19 0112 | B110: 340 | C110: 172 | D110: 13.7 | E110: 12.9 | F110: 24.3 | G110: 10.6 | H110: 0.774 | I110: 2.65 | J110: 115000 | K110: 970 | L110: 150 | M110: 550 | N110: 5.3 | O110: 196200 | P110: 1840 | Q110: 410 | R110: 1020 | S110: 7.95 | T110: 253900 | U110: 2600 | V110: 780 | W110: 1430 | X110: 11.4 | Y110: 310700 | Z110: 3420 | AA110: 1420 | AB110: 1860 | AC110: 6840
A111: 19 0113 | B111: 340 | C111: 172 | D111: 14.2 | E111: 13.3 | F111: 24.4 | G111: 10.2 | H111: 0.718 | I111: 2.55 | J111: 118800 | K111: 950 | L111: 170 | M111: 530 | N111: 5.1 | O111: 205200 | P111: 1800 | Q111: 440 | R111: 1000 | S111: 7.65 | T111: 268900 | U111: 2550 | V111: 810 | W111: 1400 | X111: 11.1 | Y111: 336100 | Z111: 3410 | AA111: 1480 | AB111: 1850 | AC111: 7050
A112: 19 0114 | B112: 340 | C112: 172 | D112: 14.6 | E112: 13.7 | F112: 25.1 | G112: 10.5 | H112: 0.719 | I112: 2.625 | J112: 132700 | K112: 1010 | L112: 180 | M112: 560 | N112: 5.25 | O112: 229400 | P112: 1910 | Q112: 470 | R112: 1060 | S112: 7.875 | T112: 300900 | U112: 2700 | V112: 870 | W112: 1480 | X112: 11.4 | Y112: 376100 | Z112: 3590 | AA112: 1570 | AB112: 1950 | AC112: 7270
A113: 19 0115 | B113: 340 | C113: 172 | D113: 15.3 | E113: 14.4 | F113: 24.7 | G113: 9.4 | H113: 0.614 | I113: 2.35 | J113: 126200 | K113: 900 | L113: 220 | M113: 500 | N113: 4.7 | O113: 224700 | P113: 1700 | Q113: 540 | R113: 940 | S113: 7.05 | T113: 303700 | U113: 2430 | V113: 930 | W113: 1320 | X113: 10.3 | Y113: 396100 | Z113: 3290 | AA113: 1630 | AB113: 1770 | AC113: 7640
A114: 19 0116 | B114: 340 | C114: 172 | D114: 15.8 | E114: 14.8 | F114: 25.5 | G114: 9.7 | H114: 0.614 | I114: 2.425 | J114: 144000 | K114: 960 | L114: 230 | M114: 530 | N114: 4.85 | O114: 255900 | P114: 1830 | Q114: 560 | R114: 1010 | S114: 7.275 | T114: 345200 | U114: 2600 | V114: 980 | W114: 1420 | X114: 10.7 | Y114: 450700 | Z114: 3540 | AA114: 1730 | AB114: 1910 | AC114: 7850
A115: 19 0117 | B115: 340 | C115: 172 | D115: 16.2 | E115: 15.2 | F115: 25.6 | G115: 9.4 | H115: 0.58 | I115: 2.35 | J115: 146700 | K115: 940 | L115: 250 | M115: 520 | N115: 4.7 | O115: 263200 | P115: 1790 | Q115: 590 | R115: 980 | S115: 7.05 | T115: 358400 | U115: 2550 | V115: 1020 | W115: 1390 | X115: 10.4 | Y115: 474600 | Z115: 3480 | AA115: 1780 | AB115: 1870 | AC115: 8060
A116: 19 0118 | B116: 340 | C116: 172 | D116: 17 | E116: 16 | F116: 25.3 | G116: 8.3 | H116: 0.488 | I116: 2.075 | J116: 140300 | K116: 820 | L116: 280 | M116: 450 | N116: 4.15 | O116: 258300 | P116: 1580 | Q116: 630 | R116: 860 | S116: 6.225 | T116: 360400 | U116: 2270 | V116: 1050 | W116: 1230 | X116: 9.3 | Y116: 496100 | Z116: 3160 | AA116: 1790 | AB116: 1690 | AC116: 8490
A117: 19 0119 | B117: 340 | C117: 172 | D117: 17.3 | E117: 16.3 | F117: 26.1 | G117: 8.8 | H117: 0.509 | I117: 2.2 | J117: 158700 | K117: 900 | L117: 290 | M117: 490 | N117: 4.4 | O117: 290800 | P117: 1720 | Q117: 660 | R117: 940 | S117: 6.6 | T117: 403900 | U117: 2460 | V117: 1110 | W117: 1330 | X117: 9.8 | Y117: 550500 | Z117: 3410 | AA117: 1900 | AB117: 1820 | AC117: 8640
A118: 19 0120 | B118: 340 | C118: 172 | D118: 18 | E118: 16.9 | F118: 26 | G118: 8 | H118: 0.444 | I118: 2 | J118: 156400 | K118: 820 | L118: 310 | M118: 450 | N118: 4 | O118: 291000 | P118: 1580 | Q118: 680 | R118: 860 | S118: 6 | T118: 409800 | U118: 2280 | V118: 1110 | W118: 1230 | X118: 9.1 | Y118: 577300 | Z118: 3230 | AA118: 1910 | AB118: 1720 | AC118: 8960
A119: 19 0121 | B119: 340 | C119: 172 | D119: 20 | E119: 18.7 | F119: 28 | G119: 8 | H119: 0.4 | I119: 2 | J119: 209500 | K119: 900 | L119: 360 | M119: 490 | N119: 4 | O119: 393500 | P119: 1730 | Q119: 790 | R119: 940 | S119: 6 | T119: 558900 | U119: 2500 | V119: 1280 | W119: 1340 | X119: 9.3 | Y119: 809800 | Z119: 3630 | AA119: 2230 | AB119: 1920 | AC119: 9920
A120: 19 0122 | B120: 340 | C120: 172 | D120: 22 | E120: 20.6 | F120: 28 | G120: 6 | H120: 0.273 | I120: 1.5 | J120: 195500 | K120: 690 | L120: 360 | M120: 370 | N120: 3 | O120: 377900 | P120: 1330 | Q120: 760 | R120: 710 | S120: 4.5 | T120: 550600 | U120: 1950 | V120: 1190 | W120: 1030 | X120: 7.4 | Y120: 869300 | Z120: 3020 | AA120: 2130 | AB120: 1590 | AC120: 10900
A121: 19 0123 | B121: 360 | C121: 182 | D121: 15.5 | E121: 14.6 | F121: 23.5 | G121: 8 | H121: 0.516 | I121: 2 | J121: 93000 | K121: 650 | L121: 210 | M121: 360 | N121: 4 | O121: 170000 | P121: 1250 | Q121: 480 | R121: 680 | S121: 6 | T121: 235700 | U121: 1800 | V121: 800 | W121: 970 | X121: 8.9 | Y121: 320300 | Z121: 2480 | AA121: 1370 | AB121: 1330 | AC121: 8680
A122: 19 0124 | B122: 360 | C122: 182 | D122: 20 | E122: 18.8 | F122: 28.3 | G122: 8.3 | H122: 0.415 | I122: 2.075 | J122: 194800 | K122: 830 | L122: 330 | M122: 450 | N122: 4.15 | O122: 365200 | P122: 1600 | Q122: 730 | R122: 870 | S122: 6.225 | T122: 518000 | U122: 2310 | V122: 1180 | W122: 1240 | X122: 9.4 | Y122: 739800 | Z122: 3310 | AA122: 2020 | AB122: 1750 | AC122: 11200
A123: 19 0125 | B123: 360 | C123: 182 | D123: 21 | E123: 19.7 | F123: 28 | G123: 7 | H123: 0.333 | I123: 1.75 | J123: 182000 | K123: 700 | L123: 330 | M123: 380 | N123: 3.5 | O123: 347500 | P123: 1370 | Q123: 700 | R123: 730 | S123: 5.25 | T123: 501000 | U123: 1980 | V123: 1120 | W123: 1060 | X123: 8.3 | Y123: 752700 | Z123: 2950 | AA123: 1960 | AB123: 1560 | AC123: 11700
A124: 19 0126 | B124: 360 | C124: 182 | D124: 21.5 | E124: 20.2 | F124: 29.5 | G124: 8 | H124: 0.372 | I124: 2 | J124: 227700 | K124: 840 | L124: 370 | M124: 460 | N124: 4 | O124: 431200 | P124: 1630 | Q124: 790 | R124: 880 | S124: 6 | T124: 617000 | U124: 2350 | V124: 1270 | W124: 1260 | X124: 9.3 | Y124: 902900 | Z124: 3430 | AA124: 2190 | AB124: 1810 | AC124: 12000
A125: 19 0127 | B125: 360 | C125: 182 | D125: 23 | E125: 21.6 | F125: 30.2 | G125: 7.2 | H125: 0.313 | I125: 1.8 | J125: 243300 | K125: 780 | L125: 380 | M125: 420 | N125: 3.6 | O125: 466700 | P125: 1520 | Q125: 810 | R125: 810 | S125: 5.4 | T125: 675700 | U125: 2210 | V125: 1290 | W125: 1180 | X125: 8.6 | Y125: 1027000 | Z125: 3320 | AA125: 2250 | AB125: 1750 | AC125: 12800
A126: 19 0128 | B126: 370 | C126: 202 | D126: 25 | E126: 23.2 | F126: 31.4 | G126: 6.4 | H126: 0.256 | I126: 1.6 | J126: 271200 | K126: 710 | L126: 370 | M126: 410 | N126: 3.2 | O126: 525000 | P126: 1390 | Q126: 780 | R126: 790 | S126: 4.8 | T126: 765700 | U126: 2030 | V126: 1220 | W126: 1160 | X126: 8.2 | Y126: 1252000 | Z126: 3260 | AA126: 2290 | AB126: 1840 | AC126: 13700
A127: 19 0129 | B127: 370 | C127: 202 | D127: 26 | E127: 24.2 | F127: 32.8 | G127: 6.8 | H127: 0.262 | I127: 1.7 | J127: 324500 | K127: 790 | L127: 410 | M127: 450 | N127: 3.4 | O127: 628000 | P127: 1530 | Q127: 860 | R127: 880 | S127: 5.1 | T127: 915500 | U127: 2240 | V127: 1350 | W127: 1270 | X127: 8.6 | Y127: 1480000 | Z127: 3550 | AA127: 2490 | AB127: 2010 | AC127: 14300
A128: 19 0130 | B128: 380 | C128: 152 | D128: 19 | E128: 18 | F128: 29 | G128: 10 | H128: 0.526 | I128: 2.5 | J128: 174600 | K128: 920 | L128: 310 | M128: 410 | N128: 5 | O128: 319100 | P128: 1760 | Q128: 710 | R128: 780 | S128: 7.5 | T128: 442400 | U128: 2520 | V128: 1180 | W128: 1100 | X128: 11 | Y128: 596100 | Z128: 3460 | AA128: 1960 | AB128: 1490 | AC128: 13500
A129: 19 0131 | B129: 380 | C129: 192 | D129: 13.5 | E129: 12.7 | F129: 26.2 | G129: 12.7 | H129: 0.941 | I129: 3.175 | J129: 120300 | K129: 990 | L129: 70 | M129: 560 | N129: 6.35 | O129: 196600 | P129: 1850 | Q129: 260 | R129: 1040 | S129: 9.525 | T129: 242400 | U129: 2600 | V129: 570 | W129: 1440 | X129: 13.5 | Y129: 277600 | Z129: 3350 | AA129: 1130 | AB129: 1840 | AC129: 8420
A130: 19 0132 | B130: 380 | C130: 192 | D130: 25 | E130: 23.4 | F130: 33 | G130: 8 | H130: 0.32 | I130: 2 | J130: 313100 | K130: 860 | L130: 410 | M130: 460 | N130: 4 | O130: 599300 | P130: 1660 | Q130: 870 | R130: 890 | S130: 6 | T130: 865600 | U130: 2410 | V130: 1380 | W130: 1290 | X130: 9.6 | Y130: 1318000 | Z130: 3640 | AA130: 2440 | AB130: 1910 | AC130: 15500
A131: 19 0133 | B131: 380 | C131: 202 | D131: 12 | E131: 11.5 | F131: 25 | G131: 13 | H131: 1.083 | I131: 3.25 | J131: 98100 | K131: 940 | L131: 20 | M131: 560 | N131: 6.5 | O131: 156300 | P131: 1760 | Q131: 170 | R131: 1040 | S131: 9.75 | T131: 187300 | U131: 2450 | V131: 440 | W131: 1430 | X131: 13.5 | Y131: 205700 | Z131: 3100 | AA131: 920 | AB131: 1780 | AC131: 7350
A132: 19 0134 | B132: 380 | C132: 202 | D132: 15 | E132: 14.1 | F132: 27 | G132: 12 | H132: 0.8 | I132: 3 | J132: 144400 | K132: 990 | L132: 130 | M132: 580 | N132: 6 | O132: 244600 | P132: 1860 | Q132: 380 | R132: 1080 | S132: 9 | T132: 313900 | U132: 2630 | V132: 7301 | W132: 1510 | X132: 12.9 | Y132: 379900 | Z132: 3450 | AA132: 1360 | AB132: 1960 | AC132: 9000
A133: 19 0135 | B133: 380 | C133: 212 | D133: 18 | E133: 16.7 | F133: 27 | G133: 9 | H133: 0.5 | I133: 2.25 | J133: 158000 | K133: 790 | L133: 240 | M133: 480 | N133: 4.5 | O133: 288300 | P133: 1520 | Q133: 540 | R133: 910 | S133: 6.75 | T133: 398700 | U133: 2180 | V133: 920 | W133: 1290 | X133: 10.3 | Y133: 551200 | Z133: 3070 | AA133: 1650 | AB133: 1800 | AC133: 10200
A134: 19 0136 | B134: 400 | C134: 202 | D134: 10 | E134: 9.6 | F134: 22 | G134: 12 | H134: 1.2 | I134: 3 | J134: 50100 | K134: 680 | L134: 10 | M134: 390 | N134: 6 | O134: 77900 | P134: 1260 | Q134: 70 | R134: 710 | S134: 9 | T134: 90400 | U134: 1750 | V134: 250 | W134: 980 | X134: 12.4 | Y134: 95200 | Z134: 2190 | AA134: 560 | AB134: 1210 | AC134: 7050
A135: 19 0137 | B135: 400 | C135: 202 | D135: 12 | E135: 11.3 | F135: 26.5 | G135: 14.5 | H135: 1.208 | I135: 3.625 | J135: 107500 | K135: 1000 | L135: 40 | M135: 570 | N135: 7.25 | O135: 165400 | P135: 1860 | Q135: 50 | R135: 1060 | S135: 10.875 | T135: 189200 | U135: 2580 | V135: 290 | W135: 1450 | X135: 15.2 | Y135: 194700 | Z135: 3250 | AA135: 760 | AB135: 1800 | AC135: 8300
A136: 19 0138 | B136: 400 | C136: 202 | D136: 14 | E136: 13.2 | F136: 27 | G136: 13 | H136: 0.929 | I136: 3.25 | J136: 122400 | K136: 940 | L136: 70 | M136: 530 | N136: 6.5 | O136: 200800 | P136: 1760 | Q136: 260 | R136: 990 | S136: 9.75 | T136: 248900 | U136: 2470 | V136: 560 | W136: 1370 | X136: 13.8 | Y136: 286700 | Z136: 3190 | AA136: 1100 | AB136: 1750 | AC136: 9700
A137: 19 0139 | B137: 400 | C137: 202 | D137: 16 | E137: 15.1 | F137: 28 | G137: 12 | H137: 0.75 | I137: 3 | J137: 146600 | K137: 920 | L137: 160 | M137: 510 | N137: 6 | O137: 252100 | P137: 1735 | Q137: 410 | R137: 960 | S137: 9 | T137: 328800 | U137: 2450 | V137: 770 | W137: 1350 | X137: 12.9 | Y137: 406200 | Z137: 3240 | AA137: 1390 | AB137: 1750 | AC137: 11100
A138: 19 0140 | B138: 400 | C138: 202 | D138: 19 | E138: 17.9 | F138: 30 | G138: 11 | H138: 0.579 | I138: 2.75 | J138: 198900 | K138: 920 | L138: 260 | M138: 510 | N138: 5.5 | O138: 357700 | P138: 1760 | Q138: 600 | R138: 960 | S138: 8.25 | T138: 488200 | U138: 2510 | V138: 1020 | W138: 1360 | X138: 12.1 | Y138: 645800 | Z138: 3420 | AA138: 1760 | AB138: 1830 | AC138: 13200
A139: 19 0141 | B139: 400 | C139: 202 | D139: 20.3 | E139: 19.1 | F139: 31.1 | G139: 10.8 | H139: 0.532 | I139: 2.7 | J139: 230900 | K139: 950 | L139: 290 | M139: 520 | N139: 5.4 | O139: 420300 | P139: 1810 | Q139: 670 | R139: 990 | S139: 8.1 | T139: 580100 | U139: 2590 | V139: 1120 | W139: 1400 | X139: 12 | Y139: 783300 | Z139: 3570 | AA139: 1930 | AB139: 1910 | AC139: 14000
A140: 19 0142 | B140: 400 | C140: 202 | D140: 21.2 | E140: 19.9 | F140: 31.4 | G140: 10.2 | H140: 0.481 | I140: 2.55 | J140: 240700 | K140: 910 | L140: 310 | M140: 500 | N140: 5.1 | O140: 443500 | P140: 1750 | Q140: 700 | R140: 950 | S140: 7.65 | T140: 619200 | U140: 2510 | V140: 1160 | W140: 1360 | X140: 11.5 | Y140: 857100 | Z140: 3520 | AA140: 2000 | AB140: 1880 | AC140: 14600
A141: 19 0143 | B141: 400 | C141: 202 | D141: 22.5 | E141: 21.2 | F141: 32.5 | G141: 10 | H141: 0.444 | I141: 2.5 | J141: 274900 | K141: 930 | L141: 350 | M141: 500 | N141: 5 | O141: 512000 | P141: 1780 | Q141: 770 | R141: 960 | S141: 7.5 | T141: 722000 | U141: 2560 | V141: 1270 | W141: 1380 | X141: 11.3 | Y141: 1014000 | Z141: 3610 | AA141: 2150 | AB141: 1920 | AC141: 15600
A142: 19 0144 | B142: 400 | C142: 202 | D142: 30 | E142: 28.2 | F142: 37.2 | G142: 7.2 | H142: 0.24 | I142: 1.8 | J142: 422500 | K142: 790 | L142: 450 | M142: 420 | N142: 3.6 | O142: 822700 | P142: 1540 | Q142: 930 | R142: 820 | S142: 5.4 | T142: 1206000 | U142: 2250 | V142: 1460 | W142: 1190 | X142: 9 | Y142: 1945000 | Z142: 3570 | AA142: 2620 | AB142: 1860 | AC142: 20700
A143: 19 0145 | B143: 440 | C143: 212 | D143: 18.5 | F143: 32 | G143: 13.5 | H143: 0.73 | I143: 3.375 | J143: 190400 | K143: 910 | L143: 250 | M143: 480 | N143: 6.75 | O143: 338500 | P143: 1720 | Q143: 600 | R143: 900 | S143: 10.125 | T143: 458400 | U143: 2440 | V143: 1040 | W143: 1270 | X143: 13.5 | Y143: 564300 | Z143: 3060 | AA143: 1570 | AB143: 1570 | AC143: 17000
A144: 19 0146 | B144: 440 | C144: 252 | D144: 25 | E144: 23.2 | F144: 33 | G144: 8 | H144: 0.32 | I144: 2 | J144: 257500 | K144: 670 | L144: 300 | M144: 400 | N144: 4 | O144: 491700 | P144: 1290 | Q144: 640 | R144: 780 | S144: 6 | T144: 708500 | U144: 1870 | V144: 1030 | W144: 1120 | X144: 9.8 | Y144: 1094000 | Z144: 2870 | AA144: 1870 | AB144: 1700 | AC144: 18600
A145: 19 0147 | B145: 450 | C145: 202 | D145: 25.5 | E145: 24 | F145: 34.1 | G145: 8.6 | H145: 0.337 | I145: 2.15 | J145: 241500 | K145: 670 | L145: 320 | M145: 330 | N145: 4.3 | O145: 461200 | P145: 1300 | Q145: 690 | R145: 630 | S145: 6.45 | T145: 665000 | U145: 1890 | V145: 1090 | W145: 900 | X145: 10.1 | Y145: 991000 | Z145: 2800 | AA145: 1880 | AB145: 1320 | AC145: 23900
A146: 19 0148 | B146: 450 | C146: 252 | D146: 21 | E146: 19.5 | F146: 33 | G146: 12 | H146: 0.571 | I146: 3 | J146: 251200 | K146: 910 | L146: 230 | M146: 550 | N146: 6 | O146: 449800 | P146: 1740 | Q146: 540 | R146: 1050 | S146: 9 | T146: 610900 | U146: 2480 | V146: 940 | W146: 1480 | X146: 13.5 | Y146: 814900 | Z146: 3430 | AA146: 1700 | AB146: 2030 | AC146: 16700
A147: 19 0149 | B147: 450 | C147: 252 | D147: 25 | E147: 23.3 | F147: 33.8 | G147: 8.8 | H147: 0.352 | I147: 2.2 | J147: 269500 | K147: 700 | L147: 300 | M147: 420 | N147: 4.4 | O147: 511400 | P147: 1360 | Q147: 650 | R147: 800 | S147: 6.6 | T147: 733000 | U147: 1970 | V147: 1050 | W147: 1160 | X147: 10.5 | Y147: 1099000 | Z147: 2940 | AA147: 1870 | AB147: 1710 | AC147: 20000
A148: 19 0150 | B148: 470 | C148: 237 | D148: 33 | E148: 31 | F148: 42 | G148: 9 | H148: 0.273 | I148: 2.25 | J148: 516100 | K148: 800 | L148: 430 | M148: 430 | N148: 4.5 | O148: 999000 | P148: 1560 | Q148: 900 | R148: 830 | S148: 6.75 | T148: 1456000 | U148: 2290 | V148: 1410 | W148: 1210 | X148: 11 | Y148: 2282000 | Z148: 3520 | AA148: 2490 | AB148: 1840 | AC148: 31500
A149: 19 0151 | B149: 480 | C149: 252 | D149: 20.3 | E149: 19 | F149: 33 | G149: 12.7 | H149: 0.626 | I149: 3.175 | J149: 207400 | K149: 820 | L149: 190 | M149: 470 | N149: 6.35 | O149: 367200 | P149: 1560 | Q149: 460 | R149: 890 | S149: 9.525 | T149: 493500 | U149: 2220 | V149: 810 | W149: 1250 | X149: 14 | Y149: 641300 | Z149: 3010 | AA149: 1440 | AB149: 1680 | AC149: 19600
A150: 19 0152 | B150: 480 | C150: 252 | D150: 20.7 | F150: 36.6 | G150: 15.9 | H150: 0.768 | I150: 3.975 | J150: 285500 | K150: 1030 | L150: 260 | M150: 590 | N150: 7.95 | O150: 502600 | P150: 1950 | Q150: 630 | R150: 1110 | S150: 11.925 | T150: 674300 | U150: 2760 | V150: 1100 | W150: 1550 | X150: 15.9 | Y150: 823100 | Z150: 3460 | AA150: 1690 | AB150: 1930 | AC150: 21300
A151: 19 0153 | B151: 500 | C151: 202 | D151: 37 | E151: 35 | F151: 44.4 | G151: 7.4 | H151: 0.2 | I151: 1.85 | J151: 466200 | K151: 630 | L151: 400 | M151: 270 | N151: 3.7 | O151: 914900 | P151: 1240 | Q151: 830 | R151: 530 | S151: 5.55 | T151: 1350000 | U151: 1820 | V151: 1280 | W151: 770 | X151: 9.4 | Y151: 2233000 | Z151: 2950 | AA151: 2310 | AB151: 1240 | AC151: 45100
A152: 19 0154 | B152: 500 | C152: 242 | D152: 32 | E152: 30 | F152: 41 | G152: 9 | H152: 0.281 | I152: 2.25 | J152: 408400 | K152: 690 | L152: 360 | M152: 360 | N152: 4.5 | O152: 788400 | P152: 1350 | Q152: 760 | R152: 690 | S152: 6.75 | T152: 1147000 | U152: 1960 | V152: 1200 | W152: 1000 | X152: 11 | Y152: 1794000 | Z152: 3030 | AA152: 2120 | AB152: 1520 | AC152: 35400
A153: 19 0155 | B153: 500 | C153: 252 | D153: 19 | F153: 34.5 | G153: 15.5 | H153: 0.816 | I153: 3.875 | J153: 200100 | K153: 860 | L153: 190 | M153: 480 | N153: 7.75 | O153: 348100 | P153: 1630 | Q153: 480 | R153: 900 | S153: 11.625 | T153: 461300 | U153: 2310 | V153: 870 | W153: 1250 | X153: 15.5 | Y153: 557200 | Z153: 2880 | AA153: 1350 | AB153: 1550 | AC153: 21900
A154: 19 0156 | B154: 600 | C154: 282 | D154: 22 | F154: 44 | G154: 22 | H154: 1 | I154: 5.5 | J154: 340100 | K154: 1070 | L154: 140 | M154: 560 | N154: 11 | O154: 564800 | P154: 2000 | Q154: 420 | R154: 1050 | S154: 16.5 | T154: 712400 | U154: 2810 | V154: 8201 | W154: 1450 | X154: 22 | Y154: 821500 | Z154: 3480 | AA154: 1360 | AB154: 1780 | AC154: 38000
A155: 19 0157 | B155: 600 | C155: 282 | D155: 24 | F155: 46 | G155: 22 | H155: 0.917 | I155: 5.5 | J155: 413600 | K155: 1120 | L155: 200 | M155: 590 | N155: 11 | O155: 701300 | P155: 2110 | Q155: 530 | R155: 1100 | S155: 16.5 | T155: 905000 | U155: 2970 | V155: 990 | W155: 1530 | X155: 22 | Y155: 1066000 | Z155: 3700 | AA155: 1580 | AB155: 1880 | AC155: 41500
